date,department/service,beneficiary,amount,summary of purpose,category,transaction number,SAP vendor number
05.01.2021,ADULT SOCIAL CARE,REDACTED PERSONAL DATA,279.85,APPOINTEESHIPS,OTHER PAYMENTS FOR CLIENTS,REDACTED,REDACTED
05.01.2021,ADULT SOCIAL CARE,REDACTED PERSONAL DATA,395.2,APPOINTEESHIPS,OTHER PAYMENTS FOR CLIENTS,REDACTED,REDACTED
05.01.2021,ADULT SOCIAL CARE,DAS LAW LIMITED,"90,469.38",DIR OF ASC,LEGAL FEES & COURT COSTS,5902449613,1000086117
05.01.2021,ADULT SOCIAL CARE,THAMES HOMECARE SERVICE LTD,367.94,DISCHARGE TO ACCESS,HOMECARE - C&V,2103195601,1000079295
05.01.2021,ADULT SOCIAL CARE,THAMES HOMECARE SERVICE LTD,286.18,DISCHARGE TO ACCESS,HOMECARE - SPOT,2103195642,1000079295
05.01.2021,ADULT SOCIAL CARE,BUDDI LTD,360,LD LTS 18-64,EQUIPMENT PURCHASE & REPAIR,2103195677,1000067243
05.01.2021,ADULT SOCIAL CARE,BLACKFRIARS SETTLEMENT,"-1,348.57",MH LTS 18-64,DAYCARE,2103175059,1000071456
05.01.2021,ADULT SOCIAL CARE,THAMES HOMECARE SERVICE LTD,472.42,MH LTS 65+,HOMECARE - SPOT,2103195666,1000079295
05.01.2021,ADULT SOCIAL CARE,THAMES HOMECARE SERVICE LTD,508.76,MH LTS 65+,HOMECARE - SPOT,2103195629,1000079295
05.01.2021,ADULT SOCIAL CARE,BUDDI LTD,604,PHY LTS 18-64,EQUIPMENT PURCHASE & REPAIR,2103195676,1000067243
05.01.2021,ADULT SOCIAL CARE,PROFAD CARE AGENCY,981.24,PHY LTS 18-64,HOMECARE - SPOT,2103195588,1000079032
05.01.2021,ADULT SOCIAL CARE,THAMES HOMECARE SERVICE LTD,717.72,PHY LTS 18-64,HOMECARE - C&V,2103195634,1000079295
05.01.2021,ADULT SOCIAL CARE,THAMES HOMECARE SERVICE LTD,258.92,PHY LTS 18-64,HOMECARE - SPOT,2103195610,1000079295
05.01.2021,ADULT SOCIAL CARE,THAMES HOMECARE SERVICE LTD,286.18,PHY LTS 18-64,HOMECARE - SPOT,2103195627,1000079295
05.01.2021,ADULT SOCIAL CARE,THAMES HOMECARE SERVICE LTD,299.81,PHY LTS 18-64,HOMECARE - SPOT,2103195617,1000079295
05.01.2021,ADULT SOCIAL CARE,THAMES HOMECARE SERVICE LTD,327.06,PHY LTS 18-64,HOMECARE - SPOT,2103195624,1000079295
05.01.2021,ADULT SOCIAL CARE,THAMES HOMECARE SERVICE LTD,363.4,PHY LTS 18-64,HOMECARE - SPOT,2103195605,1000079295
05.01.2021,ADULT SOCIAL CARE,THAMES HOMECARE SERVICE LTD,386.11,PHY LTS 18-64,HOMECARE - SPOT,2103195648,1000079295
05.01.2021,ADULT SOCIAL CARE,THAMES HOMECARE SERVICE LTD,572.36,PHY LTS 18-64,HOMECARE - SPOT,2103195619,1000079295
05.01.2021,ADULT SOCIAL CARE,THAMES HOMECARE SERVICE LTD,572.36,PHY LTS 18-64,HOMECARE - SPOT,2103195672,1000079295
05.01.2021,ADULT SOCIAL CARE,THAMES HOMECARE SERVICE LTD,649.58,PHY LTS 18-64,HOMECARE - SPOT,2103195673,1000079295
05.01.2021,ADULT SOCIAL CARE,THAMES HOMECARE SERVICE LTD,844.91,PHY LTS 18-64,HOMECARE - SPOT,2103195616,1000079295
05.01.2021,ADULT SOCIAL CARE,THAMES HOMECARE SERVICE LTD,935.76,PHY LTS 18-64,HOMECARE - SPOT,2103195637,1000079295
05.01.2021,ADULT SOCIAL CARE,PROFAD CARE AGENCY,404.37,PHY LTS 65+,HOMECARE - SPOT,2103195592,1000079032
05.01.2021,ADULT SOCIAL CARE,PROFAD CARE AGENCY,584.96,PHY LTS 65+,HOMECARE - SPOT,2103195591,1000079032
05.01.2021,ADULT SOCIAL CARE,PROFAD CARE AGENCY,"1,000.12",PHY LTS 65+,HOMECARE - SPOT,2103195589,1000079032
05.01.2021,ADULT SOCIAL CARE,PROFAD CARE AGENCY,"1,132.20",PHY LTS 65+,HOMECARE - SPOT,2103195590,1000079032
05.01.2021,ADULT SOCIAL CARE,THAMES HOMECARE SERVICE LTD,681.38,PHY LTS 65+,HOMECARE - C&V,2103195674,1000079295
05.01.2021,ADULT SOCIAL CARE,THAMES HOMECARE SERVICE LTD,268.01,PHY LTS 65+,HOMECARE - SPOT,2103195651,1000079295
05.01.2021,ADULT SOCIAL CARE,THAMES HOMECARE SERVICE LTD,272.55,PHY LTS 65+,HOMECARE - SPOT,2103195650,1000079295
05.01.2021,ADULT SOCIAL CARE,THAMES HOMECARE SERVICE LTD,286.18,PHY LTS 65+,HOMECARE - SPOT,2103195604,1000079295
05.01.2021,ADULT SOCIAL CARE,THAMES HOMECARE SERVICE LTD,286.18,PHY LTS 65+,HOMECARE - SPOT,2103195643,1000079295
05.01.2021,ADULT SOCIAL CARE,THAMES HOMECARE SERVICE LTD,349.77,PHY LTS 65+,HOMECARE - SPOT,2103195598,1000079295
05.01.2021,ADULT SOCIAL CARE,THAMES HOMECARE SERVICE LTD,413.37,PHY LTS 65+,HOMECARE - SPOT,2103195596,1000079295
05.01.2021,ADULT SOCIAL CARE,THAMES HOMECARE SERVICE LTD,499.68,PHY LTS 65+,HOMECARE - SPOT,2103195628,1000079295
05.01.2021,ADULT SOCIAL CARE,THAMES HOMECARE SERVICE LTD,508.76,PHY LTS 65+,HOMECARE - SPOT,2103195613,1000079295
05.01.2021,ADULT SOCIAL CARE,THAMES HOMECARE SERVICE LTD,572.36,PHY LTS 65+,HOMECARE - SPOT,2103195620,1000079295
05.01.2021,ADULT SOCIAL CARE,THAMES HOMECARE SERVICE LTD,572.36,PHY LTS 65+,HOMECARE - SPOT,2103195659,1000079295
05.01.2021,ADULT SOCIAL CARE,THAMES HOMECARE SERVICE LTD,572.36,PHY LTS 65+,HOMECARE - SPOT,2103195660,1000079295
05.01.2021,ADULT SOCIAL CARE,THAMES HOMECARE SERVICE LTD,576.9,PHY LTS 65+,HOMECARE - SPOT,2103195646,1000079295
05.01.2021,ADULT SOCIAL CARE,THAMES HOMECARE SERVICE LTD,599.61,PHY LTS 65+,HOMECARE - SPOT,2103195654,1000079295
05.01.2021,ADULT SOCIAL CARE,THAMES HOMECARE SERVICE LTD,608.7,PHY LTS 65+,HOMECARE - SPOT,2103195669,1000079295
05.01.2021,ADULT SOCIAL CARE,THAMES HOMECARE SERVICE LTD,635.95,PHY LTS 65+,HOMECARE - SPOT,2103195658,1000079295
05.01.2021,ADULT SOCIAL CARE,THAMES HOMECARE SERVICE LTD,640.49,PHY LTS 65+,HOMECARE - SPOT,2103195670,1000079295
05.01.2021,ADULT SOCIAL CARE,THAMES HOMECARE SERVICE LTD,663.21,PHY LTS 65+,HOMECARE - SPOT,2103195652,1000079295
05.01.2021,ADULT SOCIAL CARE,THAMES HOMECARE SERVICE LTD,699.55,PHY LTS 65+,HOMECARE - SPOT,2103195621,1000079295
05.01.2021,ADULT SOCIAL CARE,THAMES HOMECARE SERVICE LTD,699.55,PHY LTS 65+,HOMECARE - SPOT,2103195626,1000079295
05.01.2021,ADULT SOCIAL CARE,THAMES HOMECARE SERVICE LTD,763.14,PHY LTS 65+,HOMECARE - SPOT,2103195662,1000079295
05.01.2021,ADULT SOCIAL CARE,THAMES HOMECARE SERVICE LTD,799.48,PHY LTS 65+,HOMECARE - SPOT,2103195645,1000079295
05.01.2021,ADULT SOCIAL CARE,THAMES HOMECARE SERVICE LTD,"1,044.78",PHY LTS 65+,HOMECARE - SPOT,2103195641,1000079295
05.01.2021,ADULT SOCIAL CARE,THAMES HOMECARE SERVICE LTD,"1,480.86",PHY LTS 65+,HOMECARE - SPOT,2103195657,1000079295
05.01.2021,ADULT SOCIAL CARE,THAMES HOMECARE SERVICE LTD,699.55,PHY STS 18-64,HOMECARE - IC,2103195615,1000079295
05.01.2021,ADULT SOCIAL CARE,THAMES HOMECARE SERVICE LTD,699.55,PHY STS 18-64,HOMECARE - IC,2103195668,1000079295
05.01.2021,ADULT SOCIAL CARE,THAMES HOMECARE SERVICE LTD,286.18,PHY STS 65+,HOMECARE - IC,2103195594,1000079295
05.01.2021,ADULT SOCIAL CARE,THAMES HOMECARE SERVICE LTD,545.1,PHY STS 65+,HOMECARE - IC,2103195632,1000079295
05.01.2021,ADULT SOCIAL CARE,SIDLOFF ASSOCIATES LTD,500,SAFEGUARDING & DOLS,EXTERNAL AGENCIES AND BODIES,5902449671,1000081744
05.01.2021,ADULT SOCIAL CARE,LENUS GLOBAL LIMITED,540,SAFEGUARDING & DOLS,OTHER CONTRACTORS,5902449669,1000083112
05.01.2021,ADULT SOCIAL CARE,LENUS GLOBAL LIMITED,700,SAFEGUARDING & DOLS,OTHER CONTRACTORS,5902449665,1000083112
05.01.2021,ADULT SOCIAL CARE,THAMES HOMECARE SERVICE LTD,304.35,SEN LTS 65+,HOMECARE - SPOT,2103195611,1000079295
05.01.2021,CHIEF EXECUTIVE,KENT COUNTY COUNCIL - LASER,"2,078.43",CAPITAL PS (REGEN),CONSTRUCTION MAIN CONTRACT -CERTIFICATED,5902449559,1000012926
05.01.2021,CHIEF EXECUTIVE,HAYATSU ARCHITECTS LTD,"4,937.40",CAPITAL PS (REGEN),CONSTRUCTION FEES,5902449615,1000082843
05.01.2021,CHILDREN AND FAMILIES,SERENITY WELFARE LTD,"1,046.75",16 PLUS TEAM,OTHER PAYMENTS FOR CLIENTS,5902449382,1000081553
05.01.2021,CHILDREN AND FAMILIES,REDACTED PERSONAL DATA,567.14,16 PLUS TEAM,OTHER PAYMENTS FOR CLIENTS,REDACTED,REDACTED
05.01.2021,CHILDREN AND FAMILIES,REDACTED PERSONAL DATA,300,CARELEAVER UNIV SUPP,CLIENT TRANSPORT,REDACTED,REDACTED
05.01.2021,CHILDREN AND FAMILIES,REDACTED PERSONAL DATA,"2,550.00",CARELEAVER UNIV SUPP,OTHER PAYMENTS FOR CLIENTS,REDACTED,REDACTED
05.01.2021,CHILDREN AND FAMILIES,REDACTED PERSONAL DATA,"1,750.00",CARELEAVER UNIV SUPP,OTHER PAYMENTS FOR CLIENTS,REDACTED,REDACTED
05.01.2021,CHILDREN AND FAMILIES,KENT COUNTY COUNCIL - LASER,"3,524.08",CENTRAL SUPPORT,ELECTRICITY,5902449551,1000012926
05.01.2021,CHILDREN AND FAMILIES,NETWORK RECRUITMENT SOLUTIONS,525,CONTACT SERVICE,OTHER PAYMENTS FOR CLIENTS,5902449646,1000071241
05.01.2021,CHILDREN AND FAMILIES,NETWORK RECRUITMENT SOLUTIONS,600,CONTACT SERVICE,OTHER PAYMENTS FOR CLIENTS,5902449644,1000071241
05.01.2021,CHILDREN AND FAMILIES,NEGOTIATORS LTD,400,CONTACT SERVICE,OTHER PAYMENTS FOR CLIENTS,5902449598,1000075672
05.01.2021,CHILDREN AND FAMILIES,NEGOTIATORS LTD,420,CONTACT SERVICE,OTHER PAYMENTS FOR CLIENTS,5902449552,1000075672
05.01.2021,CHILDREN AND FAMILIES,NEGOTIATORS LTD,420,CONTACT SERVICE,OTHER PAYMENTS FOR CLIENTS,5902449553,1000075672
05.01.2021,CHILDREN AND FAMILIES,NEGOTIATORS LTD,420,CONTACT SERVICE,OTHER PAYMENTS FOR CLIENTS,5902449555,1000075672
05.01.2021,CHILDREN AND FAMILIES,NEGOTIATORS LTD,420,CONTACT SERVICE,OTHER PAYMENTS FOR CLIENTS,5902449602,1000075672
05.01.2021,CHILDREN AND FAMILIES,NEGOTIATORS LTD,425,CONTACT SERVICE,OTHER PAYMENTS FOR CLIENTS,5902449608,1000075672
05.01.2021,CHILDREN AND FAMILIES,NEGOTIATORS LTD,450,CONTACT SERVICE,OTHER PAYMENTS FOR CLIENTS,5902449599,1000075672
05.01.2021,CHILDREN AND FAMILIES,NEGOTIATORS LTD,450,CONTACT SERVICE,OTHER PAYMENTS FOR CLIENTS,5902449617,1000075672
05.01.2021,CHILDREN AND FAMILIES,NEGOTIATORS LTD,450,CONTACT SERVICE,OTHER PAYMENTS FOR CLIENTS,5902449619,1000075672
05.01.2021,CHILDREN AND FAMILIES,NEGOTIATORS LTD,500,CONTACT SERVICE,OTHER PAYMENTS FOR CLIENTS,5902449632,1000075672
05.01.2021,CHILDREN AND FAMILIES,NEGOTIATORS LTD,875,CONTACT SERVICE,OTHER PAYMENTS FOR CLIENTS,5902449558,1000075672
05.01.2021,CHILDREN AND FAMILIES,NEGOTIATORS LTD,"1,000.00",CONTACT SERVICE,OTHER PAYMENTS FOR CLIENTS,5902449625,1000075672
05.01.2021,CHILDREN AND FAMILIES,NEGOTIATORS LTD,"1,200.00",CONTACT SERVICE,OTHER PAYMENTS FOR CLIENTS,5902449627,1000075672
05.01.2021,CHILDREN AND FAMILIES,REDACTED PERSONAL DATA,300,FE SUPPORT,CLIENT TRANSPORT,REDACTED,REDACTED
05.01.2021,CHILDREN AND FAMILIES,LOGICOUS LTD,"1,296.25",FRIENDS &FAMILY FOST,NURSING PLACEMENTS FEES,5902449686,1000073852
05.01.2021,CHILDREN AND FAMILIES,YOUNG LONDON TODAY,"2,699.78",SEMI-IND LAC 16-17,EXTERNAL AGENCIES AND BODIES,2103195700,1000071232
05.01.2021,CHILDREN AND FAMILIES,NATIONWIDE ACCOMMODATION,"2,220.00",TEMP ACCOM FOR IH,EXTERNAL AGENCIES AND BODIES,5902449574,1000076112
05.01.2021,CHILDREN AND FAMILIES,REDACTED PERSONAL DATA,439.06,UASC CARELEAVERS,OTHER PAYMENTS FOR CLIENTS,REDACTED,REDACTED
05.01.2021,CHILDREN AND FAMILIES,PURPLE PEBBLES(CHILD CARE) SERVICES,"1,107.14",UASC LAC 16-17,EXTERNAL AGENCIES AND BODIES,2103195699,1000070705
05.01.2021,COMMUNITIES,SOUTHWARK GROUP OF TENANTS ORGANISATION,"57,000.00",RESIDENTS PARTICIPATION FUND,EXTERNAL AGENCIES AND BODIES,5902449393,1479419
05.01.2021,COMMUNITIES,ST FAITHS COMMUNITY CENTRE,"5,000.00",VCS GRANTS,GRANTS,5902449392,1039446
05.01.2021,COMMUNITIES,AGE UK LEWISHAM & SOUTHWARK,"4,500.00",VCS GRANTS,GRANTS,5902449394,1507154
05.01.2021,COMMUNITIES,TIME & TALENTS ASSOCIATION,"4,500.00",VCS GRANTS,GRANTS,5902449395,1757632
05.01.2021,COMMUNITIES,LONDON WILDLIFE TRUST,"7,500.00",VCS GRANTS,GRANTS,5902449396,1832374
05.01.2021,COMMUNITIES,SOUTHWARK CITIZENS ADVICE,"5,600.00",VCS GRANTS,GRANTS,5902449397,1874379
05.01.2021,COMMUNITIES,SOMALI INTEGRATION & DEVELOPMENT ASSOCIATION,"14,000.00",VCS GRANTS,GRANTS,5902449398,11048946
05.01.2021,COMMUNITIES,BEDE HSE,"4,500.00",VCS GRANTS,GRANTS,5902449400,11248731
05.01.2021,COMMUNITIES,CAMBRIDGE HOUSE & TALBOT,"4,500.00",VCS GRANTS,GRANTS,5902449401,11248874
05.01.2021,COMMUNITIES,PECAN LTD,"6,500.00",VCS GRANTS,GRANTS,5902449403,11263114
05.01.2021,COMMUNITIES,PECAN LTD,"7,250.00",VCS GRANTS,GRANTS,5902449402,11263114
05.01.2021,COMMUNITIES,SURREY DOCKS FARM PROVIDENT SOCIETY,"10,000.00",VCS GRANTS,GRANTS,5902449404,1000000958
05.01.2021,COMMUNITIES,AAINA WOMEN GROUP,"8,018.25",VCS GRANTS,GRANTS,5902449405,1000002442
05.01.2021,COMMUNITIES,BANKSIDE OPEN SPACES TRUST,"4,208.00",VCS GRANTS,GRANTS,5902449406,1000018290
05.01.2021,COMMUNITIES,SOUTHWARK PENSIONERS CENTRE,"25,855.25",VCS GRANTS,GRANTS,5902449407,1000027831
05.01.2021,COMMUNITIES,SWK DAY CTR FOR ASYLUM SEEKERS,"11,330.25",VCS GRANTS,GRANTS,5902449408,1000040491
05.01.2021,COMMUNITIES,SOUTHWARK EVERY WOMAN'S CENTRE,"5,250.00",VCS GRANTS,GRANTS,5902449409,1000042216
05.01.2021,COMMUNITIES,FUTURE MEN,"4,000.00",VCS GRANTS,GRANTS,5902449410,1000046010
05.01.2021,COMMUNITIES,THE MANNA CENTRE,"13,750.00",VCS GRANTS,GRANTS,5902449411,1000048508
05.01.2021,COMMUNITIES,MENTAL FIGHT CLUB,"2,250.00",VCS GRANTS,GRANTS,5902449412,1000051170
05.01.2021,COMMUNITIES,CRYSTAL PALACE COMM DEV TRUST,"3,000.00",VCS GRANTS,GRANTS,5902449413,1000054200
05.01.2021,COMMUNITIES,LATIN AMERICAN DISABLED PEOPLE PROJECT,"4,500.00",VCS GRANTS,GRANTS,5902449414,1000058588
05.01.2021,COMMUNITIES,LATIN AMERICAN WOMEN'S RIGHTS SERVICES,"4,500.00",VCS GRANTS,GRANTS,5902449415,1000068356
05.01.2021,COMMUNITIES,PAXTON GREEN TIME BANK,"3,937.50",VCS GRANTS,GRANTS,5902449416,1000070648
05.01.2021,COMMUNITIES,BLACKFRIARS SETTLEMENT,"4,500.00",VCS GRANTS,GRANTS,5902449417,1000071456
05.01.2021,COMMUNITIES,PEMBROKE COLLEGE SETTLEMENT,"4,500.00",VCS GRANTS,GRANTS,5902449418,1000073444
05.01.2021,COMMUNITIES,BERMONDSEY COMMUNITY KITCHEN,"3,750.00",VCS GRANTS,GRANTS,5902449419,1000075477
05.01.2021,COMMUNITIES,THE BIKE PROJECT,"3,750.00",VCS GRANTS,GRANTS,5902449420,1000077217
05.01.2021,COMMUNITIES,SOUTHWARK TRAVELLERS' ACTION,"5,750.00",VCS GRANTS,GRANTS,5902449421,1000077795
05.01.2021,CUSTOMER EXPERIENCE,PARK RETAIL LTD,509,COMPLAINTS,OFFICE EXPENSES,5902449565,1000053528
05.01.2021,CUSTOMER EXPERIENCE,KENT COUNTY COUNCIL - LASER,"2,791.21",CUSTOMER SUPPORT,ELECTRICITY,5902449581,1000012926
05.01.2021,CUSTOMER EXPERIENCE,THE PARTNERSHIP (2009) LTD,595,SALES & ACQUISITIONS,LEGAL FEES & COURT COSTS,5902449663,1000075201
05.01.2021,CUSTOMER EXPERIENCE HGF,SG PATH LTD,415.8,CORONER'S,PROFESSIONAL FEES,5902449538,1000077883
05.01.2021,CUSTOMER EXPERIENCE HGF,HIAM ALI LTD,"7,740.80",CORONER'S,PROFESSIONAL FEES,5902449536,1000084044
05.01.2021,CUSTOMER EXPERIENCE HGF,PARAGON REALTY LTD,"1,235.82",HOMELESS PROJECTS,GRANTS,5902449541,1000079707
05.01.2021,CUSTOMER EXPERIENCE HGF,HELP2SUPPORT LIMITED,713.22,HOMELESS PROJECTS,GRANTS,5902449676,1000084604
05.01.2021,CUSTOMER EXPERIENCE HGF,TUNSTALL HEALTHCARE (UK) LTD,"1,090.00",LAMBETH RESPONSE,EQUIPMENT PURCHASE & REPAIR,5902449639,1012297
05.01.2021,CUSTOMER EXPERIENCE HGF,K3 PROPERTY MANAGEMENT LTD,"21,354.00",NIGHTLY TA (NSC),EXTERNAL AGENCIES AND BODIES,5902449609,1000068219
05.01.2021,CUSTOMER EXPERIENCE HGF,NATIONWIDE ACCOMMODATION,"-1,209.00",NIGHTLY TA (NSC),EXTERNAL AGENCIES AND BODIES,5902449570,1000076112
05.01.2021,CUSTOMER EXPERIENCE HGF,NATIONWIDE ACCOMMODATION,"117,291.80",NIGHTLY TA (NSC),EXTERNAL AGENCIES AND BODIES,5902449568,1000076112
05.01.2021,EDUCATION,SANDRA MATHERS,400,EARLY YEARS IMPROVEMENT,CONSULTANTS SERVICES,5902449595,1000085817
05.01.2021,ENVIRONMENT DIRECTORATE,UNIFIED CONSULTANCY LTD,"1,815.82",BUSINESS CORE,DATA COMMUNICATIONS,5902449594,1000081827
05.01.2021,ENVIRONMENT DIRECTORATE,GREENHAM TRADING LTD,-292.8,ESTATE CLEANING-GENERAL,MATERIALS,5902449642,1000006610
05.01.2021,ENVIRONMENT DIRECTORATE,GREENHAM TRADING LTD,-292.8,ESTATE CLEANING-GENERAL,MATERIALS,5902449648,1000006610
05.01.2021,ENVIRONMENT DIRECTORATE,GREENHAM TRADING LTD,768,ESTATE CLEANING-GENERAL,MATERIALS,5902449638,1000006610
05.01.2021,F & C S EXCLUDING CORPORATE BUDGETS,REDACTED PERSONAL DATA,500,SESS,OTHER PAYMENTS FOR CLIENTS,REDACTED,REDACTED
05.01.2021,F & C S EXCLUDING CORPORATE BUDGETS,REDACTED PERSONAL DATA,500,SESS,OTHER PAYMENTS FOR CLIENTS,REDACTED,REDACTED
05.01.2021,F & C S EXCLUDING CORPORATE BUDGETS,REDACTED PERSONAL DATA,500,SESS,OTHER PAYMENTS FOR CLIENTS,REDACTED,REDACTED
05.01.2021,F & C S EXCLUDING CORPORATE BUDGETS,REDACTED PERSONAL DATA,500,SESS,OTHER PAYMENTS FOR CLIENTS,REDACTED,REDACTED
05.01.2021,HOUSING,OCO LIMITED,"138,474.17",PAYMENTS CONTROL ACCOUNT - OCO,I-WORLD CONTRACTORS HOLDING ACCOUNT,5902449391,1006066
05.01.2021,HOUSING HRA,HARRADINES REMOVALS,"2,100.00",CAPITAL PS (HRA),CAPITAL GRANTS,5902449660,1006511
05.01.2021,LEISURE DIRECTORATE,ADVANCED TREE SERVICES LTD,"10,870.00",TREES PRINCIPAL ROADS,OTHER CONTRACTORS,5902449577,1000079711
05.01.2021,LEISURE DIRECTORATE,ADVANCED TREE SERVICES LTD,"19,230.00",TREES PRINCIPAL ROADS,OTHER CONTRACTORS,5902449583,1000079711
05.01.2021,MODERNISATION HGF,KENT COUNTY COUNCIL - LASER,"29,332.48",160 TOOLEY ST.,ELECTRICITY,5902449592,1000012926
05.01.2021,MODERNISATION HGF,KENT COUNTY COUNCIL - LASER,"31,240.99",160 TOOLEY ST.,ELECTRICITY,5902449680,1000012926
05.01.2021,MODERNISATION HGF,KENT COUNTY COUNCIL - LASER,"4,495.21",160 TOOLEY ST.,GAS,5902449659,1000012926
05.01.2021,MODERNISATION HGF,KENT COUNTY COUNCIL - LASER,"5,859.57",34 PECKHAM ROAD,ELECTRICITY,5902449566,1000012926
05.01.2021,MODERNISATION HGF,KENT COUNTY COUNCIL - LASER,436.41,7 TALFOURD ROAD,ELECTRICITY,5902449655,1000012926
05.01.2021,MODERNISATION HGF,KENT COUNTY COUNCIL - LASER,458.17,7 TALFOURD ROAD,ELECTRICITY,5902449614,1000012926
05.01.2021,MODERNISATION HGF,KENT COUNTY COUNCIL - LASER,698.25,BOURNEMOUTH GROVE,ELECTRICITY,5902449596,1000012926
05.01.2021,MODERNISATION HGF,KENT COUNTY COUNCIL - LASER,"1,181.06",BOURNEMOUTH GROVE,ELECTRICITY,5902449601,1000012926
05.01.2021,MODERNISATION HGF,KENT COUNTY COUNCIL - LASER,"1,241.57",BOURNEMOUTH GROVE,ELECTRICITY,5902449597,1000012926
05.01.2021,MODERNISATION HGF,KENT COUNTY COUNCIL - LASER,421.4,BOURNEMOUTH GROVE,GAS,5902449678,1000012926
05.01.2021,MODERNISATION HGF,GIVEGOOD LIMITED T/A HB PUBLICATIONS AND TRAINING UNTERNATIONAL,500,CORPORATE TRAINING BUDGETS,TRAINING,5902449525,1000084122
05.01.2021,MODERNISATION HGF,BRITISH GAS,688.99,CURLEW HOUSE,GAS,5902449542,1000054825
05.01.2021,MODERNISATION HGF,KENT COUNTY COUNCIL - LASER,"7,585.58",QUEENS RD 1 (BLOCK F),ELECTRICITY,5902449612,1000012926
05.01.2021,MODERNISATION HGF,KENT COUNTY COUNCIL - LASER,"7,780.42",QUEENS RD 1 (BLOCK F),ELECTRICITY,5902449652,1000012926
05.01.2021,MODERNISATION HGF,KENT COUNTY COUNCIL - LASER,"3,288.97",QUEENS ROAD 2 (BLOCK J),ELECTRICITY,5902449579,1000012926
05.01.2021,RESIDENT SERVICES,BRITISH GAS TRADING LTD,296.09,OPERATIONS/OFFICES ACCOMMODATION,ELECTRICITY,5902449586,1000055977
05.01.2021,SBS OPERATIONS,TRAVIS PERKINS TRADING COMPANY LTD,313.33,NUNHEAD DD,MATERIALS,5902449578,1514319
05.01.2021,SBS OPERATIONS,TRAVIS PERKINS TRADING COMPANY LTD,313.17,PECKHAM DD,MATERIALS,5902449460,1514319
05.01.2021,SBS OPERATIONS,TRAVIS PERKINS TRADING COMPANY LTD,853.2,PECKHAM VOIDS,MATERIALS,5902449528,1514319
05.01.2021,SBS OPERATIONS,TRAVIS PERKINS TRADING COMPANY LTD,270,WALWORTH DD,MATERIALS,5902449530,1514319
05.01.2021,STRATEGIC FINANCING BUDGETS,GREATER LONDON AUTHORITY,"152,024.00",LONDON PENSION FUND,LEVIES,5902449383,1000015827
06.01.2021,ADULT SOCIAL CARE,LEONARD CHESHIRE DISABILITY,"22,500.00",ALL AGE DISABILITIES HUBS,EXTERNAL AGENCIES AND BODIES,5902449766,1000065128
06.01.2021,ADULT SOCIAL CARE,LEONARD CHESHIRE DISABILITY,"22,500.00",ALL AGE DISABILITIES HUBS,EXTERNAL AGENCIES AND BODIES,5902449767,1000065128
06.01.2021,ADULT SOCIAL CARE,LEONARD CHESHIRE DISABILITY,"22,500.00",ALL AGE DISABILITIES HUBS,EXTERNAL AGENCIES AND BODIES,5902449768,1000065128
06.01.2021,ADULT SOCIAL CARE,WINDSOR WALK HOUSING ASSOCIATION,266.8,APPOINTEESHIPS,OTHER PAYMENTS FOR CLIENTS,2103196376,1012653
06.01.2021,ADULT SOCIAL CARE,CHOICE SUPPORT,400,APPOINTEESHIPS,OTHER PAYMENTS FOR CLIENTS,2103196309,1104183
06.01.2021,ADULT SOCIAL CARE,SOUTHSIDE PARTNERSHIP LTD,537.8,APPOINTEESHIPS,OTHER PAYMENTS FOR CLIENTS,2103196355,1716624
06.01.2021,ADULT SOCIAL CARE,SOUTHSIDE PARTNERSHIP LTD,537.8,APPOINTEESHIPS,OTHER PAYMENTS FOR CLIENTS,2103196356,1716624
06.01.2021,ADULT SOCIAL CARE,PEABODY TRUST,554.44,APPOINTEESHIPS,OTHER PAYMENTS FOR CLIENTS,2103196347,11275862
06.01.2021,ADULT SOCIAL CARE,PEABODY TRUST,638.84,APPOINTEESHIPS,OTHER PAYMENTS FOR CLIENTS,2103196348,11275862
06.01.2021,ADULT SOCIAL CARE,EQUINOX CARE,600,APPOINTEESHIPS,OTHER PAYMENTS FOR CLIENTS,2103196319,11325422
06.01.2021,ADULT SOCIAL CARE,HYDE HOUSING ASSOCIATION LTD,900.16,APPOINTEESHIPS,OTHER PAYMENTS FOR CLIENTS,2103196371,1000013980
06.01.2021,ADULT SOCIAL CARE,HYDE HOUSING ASSOCIATION LTD,"1,166.68",APPOINTEESHIPS,OTHER PAYMENTS FOR CLIENTS,2103196369,1000013980
06.01.2021,ADULT SOCIAL CARE,PLUS SERVICES,516,APPOINTEESHIPS,OTHER PAYMENTS FOR CLIENTS,2103196351,1000021241
06.01.2021,ADULT SOCIAL CARE,SOUTH LONDON & MAUDSLEY NHS TRUST,280,APPOINTEESHIPS,OTHER PAYMENTS FOR CLIENTS,2103196354,1000043352
06.01.2021,ADULT SOCIAL CARE,GLEN CARE GROUP,300,APPOINTEESHIPS,OTHER PAYMENTS FOR CLIENTS,2103196320,1000050223
06.01.2021,ADULT SOCIAL CARE,AFFINITY SUTTON HOMES LTD,319.24,APPOINTEESHIPS,OTHER PAYMENTS FOR CLIENTS,2103196298,1000051647
06.01.2021,ADULT SOCIAL CARE,HEXAGON HOUSING ASSOCIATION LTD,604.12,APPOINTEESHIPS,OTHER PAYMENTS FOR CLIENTS,2103196322,1000056905
06.01.2021,ADULT SOCIAL CARE,ST MUNGO'S ASSOCIATION,325.16,APPOINTEESHIPS,OTHER PAYMENTS FOR CLIENTS,2103196358,1000058785
06.01.2021,ADULT SOCIAL CARE,DINARDO SUPPORTS LTD,378.53,APPOINTEESHIPS,OTHER PAYMENTS FOR CLIENTS,2103196315,1000063093
06.01.2021,ADULT SOCIAL CARE,DINARDO SUPPORTS LTD,378.53,APPOINTEESHIPS,OTHER PAYMENTS FOR CLIENTS,2103196316,1000063093
06.01.2021,ADULT SOCIAL CARE,FOUNTAIN CARE LTD,344.4,APPOINTEESHIPS,OTHER PAYMENTS FOR CLIENTS,2103196383,1000066815
06.01.2021,ADULT SOCIAL CARE,METROPOLITAN HOUSING TRUST,477.36,APPOINTEESHIPS,OTHER PAYMENTS FOR CLIENTS,2103196339,1000069880
06.01.2021,ADULT SOCIAL CARE,DERWENT RESIDENTIAL CARE LTD,459,APPOINTEESHIPS,OTHER PAYMENTS FOR CLIENTS,5902449843,1000069967
06.01.2021,ADULT SOCIAL CARE,LOOK AHEAD CARE AND SUPPORT LTD,278.08,APPOINTEESHIPS,OTHER PAYMENTS FOR CLIENTS,2103196336,1000072923
06.01.2021,ADULT SOCIAL CARE,LONDON CYRENIANS HOUSING LTD,600,APPOINTEESHIPS,OTHER PAYMENTS FOR CLIENTS,2103196331,1000078600
06.01.2021,ADULT SOCIAL CARE,ELIZABETH PETERS CARE HOMES LTD,280,APPOINTEESHIPS,OTHER PAYMENTS FOR CLIENTS,2103196317,1000078858
06.01.2021,ADULT SOCIAL CARE,STRADA CARE LTD,560,APPOINTEESHIPS,OTHER PAYMENTS FOR CLIENTS,2103196360,1000082133
06.01.2021,ADULT SOCIAL CARE,SALISBURY SUPPORT 4 AUTISM LTD,400,APPOINTEESHIPS,OTHER PAYMENTS FOR CLIENTS,2103196353,1000082674
06.01.2021,ADULT SOCIAL CARE,HOUSE OF SHAN LTD,460,APPOINTEESHIPS,OTHER PAYMENTS FOR CLIENTS,2103196326,1000083169
06.01.2021,ADULT SOCIAL CARE,229 MITCHAM LANE LTD,420,APPOINTEESHIPS,OTHER PAYMENTS FOR CLIENTS,2103196368,1000083875
06.01.2021,ADULT SOCIAL CARE,CYGNET HEALTH CHURCHHILL HOSPITAL,320,APPOINTEESHIPS,OTHER PAYMENTS FOR CLIENTS,2103196311,1000085783
06.01.2021,ADULT SOCIAL CARE,REDACTED PERSONAL DATA,320,APPOINTEESHIPS,OTHER PAYMENTS FOR CLIENTS,REDACTED,REDACTED
06.01.2021,ADULT SOCIAL CARE,REDACTED PERSONAL DATA,260,APPOINTEESHIPS,OTHER PAYMENTS FOR CLIENTS,REDACTED,REDACTED
06.01.2021,ADULT SOCIAL CARE,REDACTED PERSONAL DATA,623.4,APPOINTEESHIPS,OTHER PAYMENTS FOR CLIENTS,REDACTED,REDACTED
06.01.2021,ADULT SOCIAL CARE,REDACTED PERSONAL DATA,520,APPOINTEESHIPS,OTHER PAYMENTS FOR CLIENTS,REDACTED,REDACTED
06.01.2021,ADULT SOCIAL CARE,REDACTED PERSONAL DATA,400,APPOINTEESHIPS,OTHER PAYMENTS FOR CLIENTS,REDACTED,REDACTED
06.01.2021,ADULT SOCIAL CARE,REDACTED PERSONAL DATA,440,APPOINTEESHIPS,OTHER PAYMENTS FOR CLIENTS,REDACTED,REDACTED
06.01.2021,ADULT SOCIAL CARE,THAMES HOMECARE SERVICE LTD,"26,600.00",REABLEMENT CONTRACT,HOMECARE - C&V,5902449808,1000079295
06.01.2021,ADULT SOCIAL CARE,THAMES HOMECARE SERVICE LTD,"26,600.00",REABLEMENT CONTRACT,HOMECARE - C&V,5902449852,1000079295
06.01.2021,ADULT SOCIAL CARE,THAMES HOMECARE SERVICE LTD,"26,600.00",REABLEMENT CONTRACT,HOMECARE - C&V,5902449855,1000079295
06.01.2021,ADULT SOCIAL CARE,THAMES HOMECARE SERVICE LTD,"27,968.00",REABLEMENT CONTRACT,HOMECARE - C&V,5902449851,1000079295
06.01.2021,ADULT SOCIAL CARE,THAMES HOMECARE SERVICE LTD,"28,671.00",REABLEMENT CONTRACT,HOMECARE - C&V,5902449856,1000079295
06.01.2021,ADULT SOCIAL CARE,METRO HOMECARE LTD,-279,SPECIALIST CARE,SECTION 17 PAYMENTS TO AGENCIES/CARERS,2103196235,1000070695
06.01.2021,ADULT SOCIAL CARE,METRO HOMECARE LTD,-264,SPECIALIST CARE,SECTION 17 PAYMENTS TO AGENCIES/CARERS,2103196230,1000070695
06.01.2021,ADULT SOCIAL CARE,METRO HOMECARE LTD,-264,SPECIALIST CARE,SECTION 17 PAYMENTS TO AGENCIES/CARERS,2103196241,1000070695
06.01.2021,ADULT SOCIAL CARE,METRO HOMECARE LTD,264,SPECIALIST CARE,SECTION 17 PAYMENTS TO AGENCIES/CARERS,2103196228,1000070695
06.01.2021,ADULT SOCIAL CARE,METRO HOMECARE LTD,264,SPECIALIST CARE,SECTION 17 PAYMENTS TO AGENCIES/CARERS,2103196247,1000070695
06.01.2021,ADULT SOCIAL CARE,METRO HOMECARE LTD,264,SPECIALIST CARE,SECTION 17 PAYMENTS TO AGENCIES/CARERS,2103196248,1000070695
06.01.2021,ADULT SOCIAL CARE,METRO HOMECARE LTD,264,SPECIALIST CARE,SECTION 17 PAYMENTS TO AGENCIES/CARERS,2103196251,1000070695
06.01.2021,ADULT SOCIAL CARE,METRO HOMECARE LTD,330,SPECIALIST CARE,SECTION 17 PAYMENTS TO AGENCIES/CARERS,2103196243,1000070695
06.01.2021,ADULT SOCIAL CARE,METRO HOMECARE LTD,363,SPECIALIST CARE,SECTION 17 PAYMENTS TO AGENCIES/CARERS,2103196240,1000070695
06.01.2021,ADULT SOCIAL CARE,METRO HOMECARE LTD,396,SPECIALIST CARE,SECTION 17 PAYMENTS TO AGENCIES/CARERS,2103196226,1000070695
06.01.2021,ADULT SOCIAL CARE,METRO HOMECARE LTD,396,SPECIALIST CARE,SECTION 17 PAYMENTS TO AGENCIES/CARERS,2103196233,1000070695
06.01.2021,ADULT SOCIAL CARE,METRO HOMECARE LTD,396,SPECIALIST CARE,SECTION 17 PAYMENTS TO AGENCIES/CARERS,2103196239,1000070695
06.01.2021,ADULT SOCIAL CARE,METRO HOMECARE LTD,396,SPECIALIST CARE,SECTION 17 PAYMENTS TO AGENCIES/CARERS,2103196252,1000070695
06.01.2021,ADULT SOCIAL CARE,METRO HOMECARE LTD,396,SPECIALIST CARE,SECTION 17 PAYMENTS TO AGENCIES/CARERS,2103196255,1000070695
06.01.2021,ADULT SOCIAL CARE,METRO HOMECARE LTD,495,SPECIALIST CARE,SECTION 17 PAYMENTS TO AGENCIES/CARERS,2103196231,1000070695
06.01.2021,ADULT SOCIAL CARE,METRO HOMECARE LTD,528,SPECIALIST CARE,SECTION 17 PAYMENTS TO AGENCIES/CARERS,2103196250,1000070695
06.01.2021,ADULT SOCIAL CARE,METRO HOMECARE LTD,594,SPECIALIST CARE,SECTION 17 PAYMENTS TO AGENCIES/CARERS,2103196254,1000070695
06.01.2021,ADULT SOCIAL CARE,METRO HOMECARE LTD,693,SPECIALIST CARE,SECTION 17 PAYMENTS TO AGENCIES/CARERS,2103196227,1000070695
06.01.2021,ADULT SOCIAL CARE,METRO HOMECARE LTD,759,SPECIALIST CARE,SECTION 17 PAYMENTS TO AGENCIES/CARERS,2103196244,1000070695
06.01.2021,ADULT SOCIAL CARE,METRO HOMECARE LTD,775.5,SPECIALIST CARE,SECTION 17 PAYMENTS TO AGENCIES/CARERS,2103196245,1000070695
06.01.2021,ADULT SOCIAL CARE,METRO HOMECARE LTD,858,SPECIALIST CARE,SECTION 17 PAYMENTS TO AGENCIES/CARERS,2103196242,1000070695
06.01.2021,ADULT SOCIAL CARE,METRO HOMECARE LTD,924,SPECIALIST CARE,SECTION 17 PAYMENTS TO AGENCIES/CARERS,2103196236,1000070695
06.01.2021,ADULT SOCIAL CARE,HCP STAFFING SERVICES LTD,351.52,SPECIALIST CARE,SECTION 17 PAYMENTS TO AGENCIES/CARERS,2103196234,1000078329
06.01.2021,CENTRAL FUNCTIONS,BRESLIN CONSTRUCTION LTD,"5,700.00",COMMERCIAL PROPERTIES,BUILDING R&M,5902449756,1000078031
06.01.2021,CENTRAL FUNCTIONS,STANBURY BUILDING SERVICES LTD,395,COMMERCIAL PROPERTIES,BUILDING R&M,5902449744,1000078207
06.01.2021,CENTRAL FUNCTIONS,STANBURY BUILDING SERVICES LTD,400,COMMERCIAL PROPERTIES,BUILDING R&M,5902449752,1000078207
06.01.2021,CENTRAL FUNCTIONS,STANBURY BUILDING SERVICES LTD,500,COMMERCIAL PROPERTIES,BUILDING R&M,5902449740,1000078207
06.01.2021,CENTRAL FUNCTIONS,FRANKHAM CONSULTANCY GROUP LTD,825,DIGITAL INFRASTRUCTURE PROGRAMME,CONSULTANTS SERVICES,5902449745,1000043952
06.01.2021,CENTRAL FUNCTIONS,MY LANDLADY PROPERTIES LIMITED,963.11,HOME OWNERSHIP INCOME,HOUSING RESIDENTIAL RENTS,2103196292,1000086126
06.01.2021,CHIEF EXECUTIVE,RICHARD ROGERS CONSERVATION LTD,"16,929.00",CAPITAL PS (REGEN),CONSTRUCTION FEES  - EXTERNAL,5902449854,1000082960
06.01.2021,CHIEF EXECUTIVE,MERISTEM DESIGN LIMITED,"2,610.00",CAPITAL PS (REGEN),"PLANT, MACHINERY & EQUIP ACQUISIT'N FEE",5902449845,1000084640
06.01.2021,CHILDREN AND FAMILIES,AREA CAMDEN LTD,"2,214.28",CHILDREN�S RESID,EXTERNAL AGENCIES AND BODIES,2103196176,1000083221
06.01.2021,CHILDREN AND FAMILIES,AREA CAMDEN LTD,"16,164.29",CHILDREN�S RESID,RESIDENTIAL CARE,2103196175,1000083221
06.01.2021,CHILDREN AND FAMILIES,PARTNERS IN CARE LTD,"20,571.43",CHILDREN�S RESID,RESIDENTIAL CARE,2103196174,1000086043
06.01.2021,CHILDREN AND FAMILIES,LEAEFF LTD,"1,500.00",DIRECTOR OF C&F,PROFESSIONAL FEES,5902449863,1000083779
06.01.2021,CHILDREN AND FAMILIES,LEAEFF LTD,"2,500.00",DIRECTOR OF C&F,PROFESSIONAL FEES,5902449861,1000083779
06.01.2021,CHILDREN AND FAMILIES,LEAEFF LTD,"2,500.00",DIRECTOR OF C&F,PROFESSIONAL FEES,5902449862,1000083779
06.01.2021,CHILDREN AND FAMILIES,EGOLI 2020 LTD,"1,750.00",DIRECTOR OF C&F,PROFESSIONAL FEES,5902449857,1000084442
06.01.2021,CHILDREN AND FAMILIES,EGOLI 2020 LTD,"1,750.00",DIRECTOR OF C&F,PROFESSIONAL FEES,5902449858,1000084442
06.01.2021,CHILDREN AND FAMILIES,EGOLI 2020 LTD,"1,750.00",DIRECTOR OF C&F,PROFESSIONAL FEES,5902449859,1000084442
06.01.2021,CHILDREN AND FAMILIES,EGOLI 2020 LTD,"1,750.00",DIRECTOR OF C&F,PROFESSIONAL FEES,5902449860,1000084442
06.01.2021,CHILDREN AND FAMILIES,FIVE RIVERS CHILD CARE LTD,"3,393.61",FRIENDS & FAMILY FOSTERING,EXTERNAL AGENCIES AND BODIES,2103196196,1000018792
06.01.2021,CHILDREN AND FAMILIES,FIVE RIVERS CHILD CARE LTD,"3,514.29",FRIENDS & FAMILY FOSTERING,EXTERNAL AGENCIES AND BODIES,2103196187,1000018792
06.01.2021,CHILDREN AND FAMILIES,FIVE RIVERS CHILD CARE LTD,"3,522.49",FRIENDS & FAMILY FOSTERING,EXTERNAL AGENCIES AND BODIES,2103196199,1000018792
06.01.2021,CHILDREN AND FAMILIES,FIVE RIVERS CHILD CARE LTD,"3,631.43",FRIENDS & FAMILY FOSTERING,EXTERNAL AGENCIES AND BODIES,2103196178,1000018792
06.01.2021,CHILDREN AND FAMILIES,GREATER LONDON FOSTERING,"3,286.00",FRIENDS & FAMILY FOSTERING,EXTERNAL AGENCIES AND BODIES,2103196193,1000029184
06.01.2021,CHILDREN AND FAMILIES,GREATER LONDON FOSTERING,"3,286.00",FRIENDS & FAMILY FOSTERING,EXTERNAL AGENCIES AND BODIES,2103196197,1000029184
06.01.2021,CHILDREN AND FAMILIES,GREATER LONDON FOSTERING,"3,386.75",FRIENDS & FAMILY FOSTERING,EXTERNAL AGENCIES AND BODIES,2103196189,1000029184
06.01.2021,CHILDREN AND FAMILIES,GREATER LONDON FOSTERING,"3,572.13",FRIENDS & FAMILY FOSTERING,EXTERNAL AGENCIES AND BODIES,2103196184,1000029184
06.01.2021,CHILDREN AND FAMILIES,GREATER LONDON FOSTERING,"3,760.30",FRIENDS & FAMILY FOSTERING,EXTERNAL AGENCIES AND BODIES,2103196179,1000029184
06.01.2021,CHILDREN AND FAMILIES,GREATER LONDON FOSTERING,"4,645.35",FRIENDS & FAMILY FOSTERING,EXTERNAL AGENCIES AND BODIES,2103196177,1000029184
06.01.2021,CHILDREN AND FAMILIES,FAMILY FOSTERING LTD,"5,757.01",FRIENDS & FAMILY FOSTERING,EXTERNAL AGENCIES AND BODIES,2103196217,1000075179
06.01.2021,CHILDREN AND FAMILIES,FOSTERING LONDON LTD,"5,092.68",FRIENDS & FAMILY FOSTERING,EXTERNAL AGENCIES AND BODIES,2103196192,1000077541
06.01.2021,CHILDREN AND FAMILIES,FOSTERING LONDON LTD,"8,720.00",FRIENDS & FAMILY FOSTERING,EXTERNAL AGENCIES AND BODIES,2103196194,1000077541
06.01.2021,CHILDREN AND FAMILIES,FOSTERING FOR YOU LTD,"3,271.21",FRIENDS & FAMILY FOSTERING,EXTERNAL AGENCIES AND BODIES,2103196182,1000080380
06.01.2021,CHILDREN AND FAMILIES,FOSTERING FOR YOU LTD,"3,271.21",FRIENDS & FAMILY FOSTERING,EXTERNAL AGENCIES AND BODIES,2103196195,1000080380
06.01.2021,CHILDREN AND FAMILIES,FOSTERING FOR YOU LTD,"3,443.39",FRIENDS & FAMILY FOSTERING,EXTERNAL AGENCIES AND BODIES,2103196185,1000080380
06.01.2021,CHILDREN AND FAMILIES,FOSTERING FOR YOU LTD,"3,443.39",FRIENDS & FAMILY FOSTERING,EXTERNAL AGENCIES AND BODIES,2103196186,1000080380
06.01.2021,CHILDREN AND FAMILIES,FOSTERING FOR YOU LTD,"3,443.39",FRIENDS & FAMILY FOSTERING,EXTERNAL AGENCIES AND BODIES,2103196190,1000080380
06.01.2021,CHILDREN AND FAMILIES,FOSTERING FOR YOU LTD,"3,443.39",FRIENDS & FAMILY FOSTERING,EXTERNAL AGENCIES AND BODIES,2103196191,1000080380
06.01.2021,CHILDREN AND FAMILIES,FOSTERING FOR YOU LTD,"3,443.39",FRIENDS & FAMILY FOSTERING,EXTERNAL AGENCIES AND BODIES,2103196198,1000080380
06.01.2021,CHILDREN AND FAMILIES,DIVERSITY FOSTER CARE LTD,"3,976.16",FRIENDS & FAMILY FOSTERING,EXTERNAL AGENCIES AND BODIES,2103196181,1000081399
06.01.2021,CHILDREN AND FAMILIES,DIVERSITY FOSTER CARE LTD,"3,976.16",FRIENDS & FAMILY FOSTERING,EXTERNAL AGENCIES AND BODIES,2103196183,1000081399
06.01.2021,CHILDREN AND FAMILIES,DIVERSITY FOSTER CARE LTD,"4,108.69",FRIENDS & FAMILY FOSTERING,EXTERNAL AGENCIES AND BODIES,2103196180,1000081399
06.01.2021,CHILDREN AND FAMILIES,DIVERSITY FOSTER CARE LTD,"4,108.69",FRIENDS & FAMILY FOSTERING,EXTERNAL AGENCIES AND BODIES,2103196188,1000081399
06.01.2021,CHILDREN AND FAMILIES,FAMILY WORKS FOSTERING LTD,"5,624.33",FRIENDS & FAMILY FOSTERING,EXTERNAL AGENCIES AND BODIES,2103196200,1000082529
06.01.2021,CHILDREN AND FAMILIES,REDACTED PERSONAL DATA,300,FRIENDS &FAMILY FOST,OTHER PAYMENTS FOR CLIENTS,REDACTED,REDACTED
06.01.2021,CHILDREN AND FAMILIES,REDACTED PERSONAL DATA,"1,322.72",FRIENDS &FAMILY FOST,PAYMENTS TO CARERS,REDACTED,REDACTED
06.01.2021,CHILDREN AND FAMILIES,LOOK AHEAD CARE AND SUPPORT LTD,"2,505.24",SEMI-IND CARELEAVERS,EXTERNAL AGENCIES AND BODIES,2103196224,1000047299
06.01.2021,CHILDREN AND FAMILIES,NETPEX LTD CORPORATE SERVICES,689.99,SEMI-IND CARELEAVERS,EXTERNAL AGENCIES AND BODIES,2103196221,1000076073
06.01.2021,CHILDREN AND FAMILIES,NETPEX LTD CORPORATE SERVICES,"2,767.99",SEMI-IND CARELEAVERS,EXTERNAL AGENCIES AND BODIES,2103196218,1000076073
06.01.2021,CHILDREN AND FAMILIES,NETPEX LTD CORPORATE SERVICES,"3,321.34",SEMI-IND CARELEAVERS,EXTERNAL AGENCIES AND BODIES,2103196209,1000076073
06.01.2021,CHILDREN AND FAMILIES,NETPEX LTD CORPORATE SERVICES,"4,207.32",SEMI-IND CARELEAVERS,EXTERNAL AGENCIES AND BODIES,2103196208,1000076073
06.01.2021,CHILDREN AND FAMILIES,NETPEX LTD CORPORATE SERVICES,300,SEMI-IND CARELEAVERS,OTHER PAYMENTS FOR CLIENTS,2103196225,1000076073
06.01.2021,CHILDREN AND FAMILIES,SYDNEY CARE LTD,"5,314.28",SEMI-IND CARELEAVERS,EXTERNAL AGENCIES AND BODIES,2103196211,1000081598
06.01.2021,CHILDREN AND FAMILIES,SYDNEY CARE LTD,"5,314.28",SEMI-IND CARELEAVERS,EXTERNAL AGENCIES AND BODIES,2103196222,1000081598
06.01.2021,CHILDREN AND FAMILIES,SYDNEY CARE LTD,310,SEMI-IND CARELEAVERS,OTHER PAYMENTS FOR CLIENTS,2103196220,1000081598
06.01.2021,CHILDREN AND FAMILIES,LOOK AHEAD CARE AND SUPPORT LTD,"4,767.44",SEMI-IND LAC 16-17,EXTERNAL AGENCIES AND BODIES,2103196204,1000047299
06.01.2021,CHILDREN AND FAMILIES,SYDNEY CARE LTD,"7,612.71",SEMI-IND LAC 16-17,EXTERNAL AGENCIES AND BODIES,2103196205,1000081598
06.01.2021,CHILDREN AND FAMILIES,SYDNEY CARE LTD,310,SEMI-IND LAC 16-17,OTHER PAYMENTS FOR CLIENTS,2103196201,1000081598
06.01.2021,CHILDREN AND FAMILIES,SYDNEY CARE LTD,310,SEMI-IND LAC 16-17,OTHER PAYMENTS FOR CLIENTS,2103196206,1000081598
06.01.2021,CHILDREN AND FAMILIES,REDACTED PERSONAL DATA,"1,476.50",SEMI-IND LAC 16-17,OTHER PAYMENTS FOR CLIENTS,REDACTED,REDACTED
06.01.2021,CHILDREN AND FAMILIES,MAGIC ROUNDABOUT NURSERIES LTD,990,SPECIAL GUARDIANSHIP,EXTERNAL AGENCIES AND BODIES,5902449793,1000045128
06.01.2021,CHILDREN AND FAMILIES,MAGIC ROUNDABOUT NURSERIES LTD,990,SPECIAL GUARDIANSHIP,EXTERNAL AGENCIES AND BODIES,5902449795,1000045128
06.01.2021,CHILDREN AND FAMILIES,ARC COMMUNITY TRUSTEES,650,SPECIAL GUARDIANSHIP,EXTERNAL AGENCIES AND BODIES,5902449763,1000046206
06.01.2021,CHILDREN AND FAMILIES,REDACTED PERSONAL DATA,388.04,SPECIAL GUARDIANSHIP,PAYMENTS TO CARERS,REDACTED,REDACTED
06.01.2021,CHILDREN AND FAMILIES,REDACTED PERSONAL DATA,342.45,SPECIAL GUARDIANSHIP,PAYMENTS TO CARERS,REDACTED,REDACTED
06.01.2021,CHILDREN AND FAMILIES,REDACTED PERSONAL DATA,389.34,SPECIAL GUARDIANSHIP,PAYMENTS TO CARERS,REDACTED,REDACTED
06.01.2021,CHILDREN AND FAMILIES,REDACTED PERSONAL DATA,356.15,SPECIAL GUARDIANSHIP,PAYMENTS TO CARERS,REDACTED,REDACTED
06.01.2021,CHILDREN AND FAMILIES,REDACTED PERSONAL DATA,403.04,SPECIAL GUARDIANSHIP,PAYMENTS TO CARERS,REDACTED,REDACTED
06.01.2021,CHILDREN AND FAMILIES,REDACTED PERSONAL DATA,343.05,SPECIAL GUARDIANSHIP,PAYMENTS TO CARERS,REDACTED,REDACTED
06.01.2021,CHILDREN AND FAMILIES,REDACTED PERSONAL DATA,525,SPECIAL GUARDIANSHIP,PAYMENTS TO CARERS,REDACTED,REDACTED
06.01.2021,CHILDREN AND FAMILIES,REDACTED PERSONAL DATA,525,SPECIAL GUARDIANSHIP,PAYMENTS TO CARERS,REDACTED,REDACTED
06.01.2021,CHILDREN AND FAMILIES,REDACTED PERSONAL DATA,395,SPECIAL GUARDIANSHIP,PAYMENTS TO CARERS,REDACTED,REDACTED
06.01.2021,CHILDREN AND FAMILIES,REDACTED PERSONAL DATA,341.15,SPECIAL GUARDIANSHIP,PAYMENTS TO CARERS,REDACTED,REDACTED
06.01.2021,CHILDREN AND FAMILIES,REDACTED PERSONAL DATA,535.62,SPECIAL GUARDIANSHIP,PAYMENTS TO CARERS,REDACTED,REDACTED
06.01.2021,CHILDREN AND FAMILIES,GREATER LONDON FOSTERING,"2,316.54",STAYPUT- FOST CARERS,EXTERNAL AGENCIES AND BODIES,2103196212,1000029184
06.01.2021,CHILDREN AND FAMILIES,LOOK AHEAD CARE AND SUPPORT LTD,"2,207.51",UASC CARELEAVERS,EXTERNAL AGENCIES AND BODIES,2103196207,1000047299
06.01.2021,CHILDREN AND FAMILIES,LOOK AHEAD CARE AND SUPPORT LTD,"2,909.65",UASC CARELEAVERS,EXTERNAL AGENCIES AND BODIES,2103196216,1000047299
06.01.2021,CHILDREN AND FAMILIES,NETPEX LTD CORPORATE SERVICES,"1,785.80",UASC CARELEAVERS,EXTERNAL AGENCIES AND BODIES,2103196210,1000076073
06.01.2021,CHILDREN AND FAMILIES,NETPEX LTD CORPORATE SERVICES,"4,207.32",UASC CARELEAVERS,EXTERNAL AGENCIES AND BODIES,2103196223,1000076073
06.01.2021,CHILDREN AND FAMILIES,NETPEX LTD CORPORATE SERVICES,289.5,UASC CARELEAVERS,OTHER PAYMENTS FOR CLIENTS,2103196214,1000076073
06.01.2021,CHILDREN AND FAMILIES,EPIC CARE HOME LTD,"3,764.29",UASC LAC 16-17,EXTERNAL AGENCIES AND BODIES,2103196202,1000084192
06.01.2021,CHILDREN AND FAMILIES,EPIC CARE HOME LTD,310,UASC LAC 16-17,OTHER PAYMENTS FOR CLIENTS,2103196203,1000084192
06.01.2021,CHILDREN AND FAMILIES,IMAGO LTD,"27,819.00",YOUNG CARERS SERVICE,EXTERNAL AGENCIES AND BODIES,5902449839,1000076913
06.01.2021,COMMUNITIES,BRENCHLEY GARDENS MANAGEMENT ASSOCIATION,"31,185.00",BRENCHLEY GARDENS,M&M ALLOWANCE CO-OPS,5902449711,11324247
06.01.2021,CUSTOMER EXPERIENCE HGF,HELP2SUPPORT LIMITED,"1,092.00",HOMELESS PROJECTS,GRANTS,5902449800,1000084604
06.01.2021,CUSTOMER EXPERIENCE HGF,HELP2SUPPORT LIMITED,"1,092.00",HOMELESS PROJECTS,GRANTS,5902449801,1000084604
06.01.2021,CUSTOMER EXPERIENCE HGF,HELP2SUPPORT LIMITED,"1,092.00",HOMELESS PROJECTS,GRANTS,5902449805,1000084604
06.01.2021,CUSTOMER EXPERIENCE HGF,HELP2SUPPORT LIMITED,"1,092.00",HOMELESS PROJECTS,GRANTS,5902449806,1000084604
06.01.2021,CUSTOMER EXPERIENCE HGF,HELP2SUPPORT LIMITED,"1,587.96",HOMELESS PROJECTS,GRANTS,5902449792,1000084604
06.01.2021,CUSTOMER EXPERIENCE HGF,HELP2SUPPORT LIMITED,"1,587.96",HOMELESS PROJECTS,GRANTS,5902449797,1000084604
06.01.2021,CUSTOMER EXPERIENCE HGF,HELP2SUPPORT LIMITED,"1,587.96",HOMELESS PROJECTS,GRANTS,5902449811,1000084604
06.01.2021,CUSTOMER EXPERIENCE HGF,HELP2SUPPORT LIMITED,"1,587.96",HOMELESS PROJECTS,GRANTS,5902449812,1000084604
06.01.2021,CUSTOMER EXPERIENCE HGF,HELP2SUPPORT LIMITED,"1,864.08",HOMELESS PROJECTS,GRANTS,5902449796,1000084604
06.01.2021,CUSTOMER EXPERIENCE HGF,HELP2SUPPORT LIMITED,"3,000.00",HOMELESS PROJECTS,GRANTS,5902449809,1000084604
06.01.2021,CUSTOMER EXPERIENCE HGF,BENSON & PARTNERS LTD,"1,030.00",HOMELESS PROJECTS,GRANTS,5902449714,1000086048
06.01.2021,CUSTOMER EXPERIENCE HGF,S MILEHAM & J REES,"3,668.00",HOMELESS PROJECTS,GRANTS,5902449815,1000086104
06.01.2021,CUSTOMER EXPERIENCE HGF,AMT PROPERTY LTD,"2,286.59",HOUSING OPTIONS,GRANTS,5902449821,1000084257
06.01.2021,CUSTOMER EXPERIENCE HGF,GUYS & ST THOMAS NHS FOUNDATION TRUST,"2,435.00",MORTUARY,OTHER CONTRACTORS,5902449732,1765536
06.01.2021,CUSTOMER EXPERIENCE HGF,GUYS & ST THOMAS NHS FOUNDATION TRUST,"4,407.00",MORTUARY,OTHER CONTRACTORS,5902449732,1765536
06.01.2021,CUSTOMER EXPERIENCE HGF,GUYS & ST THOMAS NHS FOUNDATION TRUST,"7,989.00",MORTUARY,OTHER CONTRACTORS,5902449734,1765536
06.01.2021,CUSTOMER EXPERIENCE HGF,GUYS & ST THOMAS NHS FOUNDATION TRUST,"9,504.00",MORTUARY,OTHER CONTRACTORS,5902449778,1765536
06.01.2021,CUSTOMER EXPERIENCE HGF,GUYS & ST THOMAS NHS FOUNDATION TRUST,"11,180.00",MORTUARY,OTHER CONTRACTORS,5902449733,1765536
06.01.2021,CUSTOMER EXPERIENCE HGF,GUYS & ST THOMAS NHS FOUNDATION TRUST,"11,341.00",MORTUARY,OTHER CONTRACTORS,5902449771,1765536
06.01.2021,CUSTOMER EXPERIENCE HGF,GUYS & ST THOMAS NHS FOUNDATION TRUST,"12,987.00",MORTUARY,OTHER CONTRACTORS,5902449780,1765536
06.01.2021,CUSTOMER EXPERIENCE HGF,GUYS & ST THOMAS NHS FOUNDATION TRUST,"15,595.00",MORTUARY,OTHER CONTRACTORS,5902449773,1765536
06.01.2021,CUSTOMER EXPERIENCE HGF,KINDLY PROPERTIES LTD,"15,153.50",NIGHTLY TA (NSC),EXTERNAL AGENCIES AND BODIES,5902449743,1000060734
06.01.2021,CUSTOMER EXPERIENCE HGF,TAAKSVALE HOUSING LTD,"60,915.75",NIGHTLY TA (NSC),EXTERNAL AGENCIES AND BODIES,5902449751,1000073665
06.01.2021,DSG,FLEET TUTORS,360,PUPIL PREMIUM CURRENT YEAR,EXTERNAL AGENCIES AND BODIES,5902449817,1000044820
06.01.2021,DSG,FLEET TUTORS,"1,080.00",PUPIL PREMIUM CURRENT YEAR,EXTERNAL AGENCIES AND BODIES,5902449814,1000044820
06.01.2021,DSG,FLEET TUTORS,"1,125.00",PUPIL PREMIUM CURRENT YEAR,EXTERNAL AGENCIES AND BODIES,5902449816,1000044820
06.01.2021,DSG,PROSPERO RECRUITMENT LTD,270,PUPIL PREMIUM CURRENT YEAR,EXTERNAL AGENCIES AND BODIES,5902449824,1000082492
06.01.2021,DSG,PROSPERO RECRUITMENT LTD,787.5,PUPIL PREMIUM CURRENT YEAR,EXTERNAL AGENCIES AND BODIES,5902449825,1000082492
06.01.2021,DSG,ACADEMY21 LTD,282,PUPIL PREMIUM CURRENT YEAR,EXTERNAL AGENCIES AND BODIES,5902449820,1000083781
06.01.2021,ENVIRONMENT AND LEISURE,ASH&HARPER LTD,"4,789.32",CAPITAL PS (REGEN),CONSTRUCTION FEES  - EXTERNAL,5902449783,1000085534
06.01.2021,ENVIRONMENT AND LEISURE,CONTEGO SAFETY SOLUTIONS LTD,"2,540.45",MANAGEMENT TEAM,MATERIALS,5902449794,1000077673
06.01.2021,ENVIRONMENT AND LEISURE,GO PRO CHEMICALS LTD,"1,868.24",MANAGEMENT TEAM,MATERIALS,5902449709,1000079528
06.01.2021,ENVIRONMENT AND LEISURE,FUTURE GARMENTS LTD T/A EUROX,512.25,MANAGEMENT TEAM,"CLOTHING, UNIFORMS & LAUNDRY",5902449728,1000080983
06.01.2021,ENVIRONMENT AND LEISURE,RELIANCE HIGH-TECH LTD,"1,731.95",SERVICE DEVELOPMENT TEAM,OFFICE EXPENSES,5902449779,1000079374
06.01.2021,ENVIRONMENT DIRECTORATE,CONWAY AECOM LTD,"2,783.20",FLOOD RISK MANAGEMENT,HIGHWAYS TERM CONTRACT,5902449759,1000071205
06.01.2021,ENVIRONMENT DIRECTORATE,CONWAY AECOM LTD,"10,531.79",FLOOD RISK MANAGEMENT,HIGHWAYS TERM CONTRACT,5902449762,1000071205
06.01.2021,ENVIRONMENT DIRECTORATE,CONWAY AECOM LTD,"14,731.75",FLOOD RISK MANAGEMENT,HIGHWAYS TERM CONTRACT,5902449764,1000071205
06.01.2021,ENVIRONMENT DIRECTORATE,SPALDINGS (UK) LTD,403.84,GROUNDS MAINTENANCE - GENERAL,MATERIALS,5902449701,1907384
06.01.2021,ENVIRONMENT DIRECTORATE,SPALDINGS (UK) LTD,456,GROUNDS MAINTENANCE - GENERAL,MATERIALS,5902449698,1907384
06.01.2021,ENVIRONMENT DIRECTORATE,CONWAY AECOM LTD,"9,761.42",PARKING OVERHEADS,OTHER CONTRACTORS,5902449853,1000071205
06.01.2021,ENVIRONMENT DIRECTORATE,CONWAY AECOM LTD,"1,580.00",SECTION 278 & 38,HIGHWAYS TERM CONTRACT,5902449790,1000071205
06.01.2021,ENVIRONMENT DIRECTORATE,CONWAY AECOM LTD,"1,580.00",SECTION 278 & 38,HIGHWAYS TERM CONTRACT,5902449791,1000071205
06.01.2021,ENVIRONMENT DIRECTORATE,CONWAY AECOM LTD,"1,872.00",SECTION 278 & 38,HIGHWAYS TERM CONTRACT,5902449784,1000071205
06.01.2021,ENVIRONMENT DIRECTORATE,CONWAY AECOM LTD,"1,872.00",SECTION 278 & 38,HIGHWAYS TERM CONTRACT,5902449787,1000071205
06.01.2021,ENVIRONMENT DIRECTORATE,CONWAY AECOM LTD,"1,872.00",SECTION 278 & 38,HIGHWAYS TERM CONTRACT,5902449789,1000071205
06.01.2021,ENVIRONMENT DIRECTORATE,CONWAY AECOM LTD,"15,891.50",SECTION 278 & 38,OTHER CONTRACTORS,5902449713,1000071205
06.01.2021,ENVIRONMENT DIRECTORATE,GLASDON UK LIMITED,"2,257.84",STREET CLEANING-GENERAL,MATERIALS,5902449717,1024073
06.01.2021,F & C S EXCLUDING CORPORATE BUDGETS,DSI BILLING SERVICES LTD,"1,891.55",ADMINISTRATIVE SUPPORT,POSTAGES,5902449803,1000058640
06.01.2021,F & C S EXCLUDING CORPORATE BUDGETS,DSI BILLING SERVICES LTD,"2,986.51",ADMINISTRATIVE SUPPORT,POSTAGES,5902449807,1000058640
06.01.2021,F & C S EXCLUDING CORPORATE BUDGETS,REDACTED PERSONAL DATA,500,SESS,OTHER PAYMENTS FOR CLIENTS,REDACTED,REDACTED
06.01.2021,F & C S EXCLUDING CORPORATE BUDGETS,REDACTED PERSONAL DATA,500,SESS,OTHER PAYMENTS FOR CLIENTS,REDACTED,REDACTED
06.01.2021,F & C S EXCLUDING CORPORATE BUDGETS,REDACTED PERSONAL DATA,500,SESS,OTHER PAYMENTS FOR CLIENTS,REDACTED,REDACTED
06.01.2021,F & C S EXCLUDING CORPORATE BUDGETS,REDACTED PERSONAL DATA,500,SESS,OTHER PAYMENTS FOR CLIENTS,REDACTED,REDACTED
06.01.2021,F & C S EXCLUDING CORPORATE BUDGETS,REDACTED PERSONAL DATA,500,SESS,OTHER PAYMENTS FOR CLIENTS,REDACTED,REDACTED
06.01.2021,F & C S EXCLUDING CORPORATE BUDGETS,REDACTED PERSONAL DATA,500,SESS,OTHER PAYMENTS FOR CLIENTS,REDACTED,REDACTED
06.01.2021,F & C S EXCLUDING CORPORATE BUDGETS,REDACTED PERSONAL DATA,500,SESS,OTHER PAYMENTS FOR CLIENTS,REDACTED,REDACTED
06.01.2021,F & C S EXCLUDING CORPORATE BUDGETS,REDACTED PERSONAL DATA,500,SESS,OTHER PAYMENTS FOR CLIENTS,REDACTED,REDACTED
06.01.2021,F & C S EXCLUDING CORPORATE BUDGETS,REDACTED PERSONAL DATA,500,SESS,OTHER PAYMENTS FOR CLIENTS,REDACTED,REDACTED
06.01.2021,F & C S EXCLUDING CORPORATE BUDGETS,REDACTED PERSONAL DATA,500,SESS,OTHER PAYMENTS FOR CLIENTS,REDACTED,REDACTED
06.01.2021,F & C S EXCLUDING CORPORATE BUDGETS,REDACTED PERSONAL DATA,500,SESS,OTHER PAYMENTS FOR CLIENTS,REDACTED,REDACTED
06.01.2021,F & C S EXCLUDING CORPORATE BUDGETS,REDACTED PERSONAL DATA,500,SESS,OTHER PAYMENTS FOR CLIENTS,REDACTED,REDACTED
06.01.2021,F & C S EXCLUDING CORPORATE BUDGETS,REDACTED PERSONAL DATA,500,SESS,OTHER PAYMENTS FOR CLIENTS,REDACTED,REDACTED
06.01.2021,F & C S EXCLUDING CORPORATE BUDGETS,REDACTED PERSONAL DATA,500,SESS,OTHER PAYMENTS FOR CLIENTS,REDACTED,REDACTED
06.01.2021,F & C S EXCLUDING CORPORATE BUDGETS,REDACTED PERSONAL DATA,500,SESS,OTHER PAYMENTS FOR CLIENTS,REDACTED,REDACTED
06.01.2021,F & C S EXCLUDING CORPORATE BUDGETS,REDACTED PERSONAL DATA,500,SESS,OTHER PAYMENTS FOR CLIENTS,REDACTED,REDACTED
06.01.2021,F & C S EXCLUDING CORPORATE BUDGETS,REDACTED PERSONAL DATA,500,SESS,OTHER PAYMENTS FOR CLIENTS,REDACTED,REDACTED
06.01.2021,F & C S EXCLUDING CORPORATE BUDGETS,REDACTED PERSONAL DATA,500,SESS,OTHER PAYMENTS FOR CLIENTS,REDACTED,REDACTED
06.01.2021,F & C S EXCLUDING CORPORATE BUDGETS,REDACTED PERSONAL DATA,500,SESS,OTHER PAYMENTS FOR CLIENTS,REDACTED,REDACTED
06.01.2021,F & C S EXCLUDING CORPORATE BUDGETS,REDACTED PERSONAL DATA,500,SESS,OTHER PAYMENTS FOR CLIENTS,REDACTED,REDACTED
06.01.2021,F & C S EXCLUDING CORPORATE BUDGETS,REDACTED PERSONAL DATA,500,SESS,OTHER PAYMENTS FOR CLIENTS,REDACTED,REDACTED
06.01.2021,F & C S EXCLUDING CORPORATE BUDGETS,REDACTED PERSONAL DATA,500,SESS,OTHER PAYMENTS FOR CLIENTS,REDACTED,REDACTED
06.01.2021,F & C S EXCLUDING CORPORATE BUDGETS,REDACTED PERSONAL DATA,500,SESS,OTHER PAYMENTS FOR CLIENTS,REDACTED,REDACTED
06.01.2021,F & C S EXCLUDING CORPORATE BUDGETS,REDACTED PERSONAL DATA,500,SESS,OTHER PAYMENTS FOR CLIENTS,REDACTED,REDACTED
06.01.2021,F & C S EXCLUDING CORPORATE BUDGETS,REDACTED PERSONAL DATA,500,SESS,OTHER PAYMENTS FOR CLIENTS,REDACTED,REDACTED
06.01.2021,F & C S EXCLUDING CORPORATE BUDGETS,REDACTED PERSONAL DATA,500,SESS,OTHER PAYMENTS FOR CLIENTS,REDACTED,REDACTED
06.01.2021,F & C S EXCLUDING CORPORATE BUDGETS,REDACTED PERSONAL DATA,500,SESS,OTHER PAYMENTS FOR CLIENTS,REDACTED,REDACTED
06.01.2021,F & C S EXCLUDING CORPORATE BUDGETS,REDACTED PERSONAL DATA,500,SESS,OTHER PAYMENTS FOR CLIENTS,REDACTED,REDACTED
06.01.2021,F & C S EXCLUDING CORPORATE BUDGETS,REDACTED PERSONAL DATA,500,SESS,OTHER PAYMENTS FOR CLIENTS,REDACTED,REDACTED
06.01.2021,F & C S EXCLUDING CORPORATE BUDGETS,REDACTED PERSONAL DATA,500,SESS,OTHER PAYMENTS FOR CLIENTS,REDACTED,REDACTED
06.01.2021,F & C S EXCLUDING CORPORATE BUDGETS,REDACTED PERSONAL DATA,500,SESS,OTHER PAYMENTS FOR CLIENTS,REDACTED,REDACTED
06.01.2021,F & C S EXCLUDING CORPORATE BUDGETS,REDACTED PERSONAL DATA,500,SESS,OTHER PAYMENTS FOR CLIENTS,REDACTED,REDACTED
06.01.2021,F & C S EXCLUDING CORPORATE BUDGETS,REDACTED PERSONAL DATA,500,SESS,OTHER PAYMENTS FOR CLIENTS,REDACTED,REDACTED
06.01.2021,F & C S EXCLUDING CORPORATE BUDGETS,REDACTED PERSONAL DATA,500,SESS,OTHER PAYMENTS FOR CLIENTS,REDACTED,REDACTED
06.01.2021,FINANCE & GOVERNANCE,STAFFINO,"1,425.00",ADMINISTRATION SUPPORT,SOFTWARE,6101965380,INTERNATIONAL PAYMENT
06.01.2021,HOUSING GENERAL FUND,TRUSTEE FIRE & SECURITY LTD,540,CAPITAL PS (REGEN),CONSTRUCTION MAIN CONTRACT,5902449844,1000084141
06.01.2021,HOUSING GENERAL FUND,TRUSTEE FIRE & SECURITY LTD,"10,100.00",CAPITAL PS (REGEN),CONSTRUCTION MAIN CONTRACT,5902449844,1000084141
06.01.2021,HOUSING HRA,MARTIN ARNOLD LTD,"2,580.72",CAPITAL PS (REGEN),CONSTRUCTION FEES - ENGINEER,5902449828,1000076993
06.01.2021,HOUSING HRA,STAFFINO,"1,092.50",HOME OWNERSHIP,SOFTWARE,6101965380,INTERNATIONAL PAYMENT
06.01.2021,HOUSING HRA,KENT COUNTY COUNCIL - LASER,"41,607.96",RESIDENT SERVICES BUSINESS SUPPORT,ELECTRICITY,6101965376,DIRECT DEBIT PAYMENT
06.01.2021,HOUSING HRA,KENT COUNTY COUNCIL - LASER,"27,223.54",RESIDENT SERVICES BUSINESS SUPPORT,ELECTRICITY,6101965377,DIRECT DEBIT PAYMENT
06.01.2021,HUMAN RESOURCES,NEWMANS CONSULTING LIMITED,"3,350.00",OCCUPATIONAL ASSESSMENT,CONSULTANTS SERVICES,5902449822,1000065375
06.01.2021,LEISURE DIRECTORATE,NPOWER LTD,655.85,BLUE ANCHOR LIBRARY,ELECTRICITY,5902449748,1000078994
06.01.2021,LEISURE DIRECTORATE,QUADRON SERVICES LIMITED,400,CLIENT SERV(GRNS MAIN),OTHER CONTRACTORS,5902449769,1000066528
06.01.2021,LEISURE DIRECTORATE,NPOWER LTD,331.7,NUNHEAD LIBRARY,ELECTRICITY,5902449736,1000078994
06.01.2021,LEISURE DIRECTORATE,BIBLIOTHECA LTD,818.11,STOCK SERVICES,STATIONERY,5902449775,1000069536
06.01.2021,MODERNISATION HGF,ARCH CONSULTING,"26,787.58",APPLICATIONS,SOFTWARE,5902449842,1000056829
06.01.2021,MODERNISATION HGF,KENT COUNTY COUNCIL - LASER,842.06,BOURNEMOUTH GROVE,ELECTRICITY,5902449712,1000012926
06.01.2021,MODERNISATION HGF,PLANET TRAINING LIMITED,"2,000.00",CORPORATE TRAINING BUDGETS,TRAINING,5902449731,1000064733
06.01.2021,PLANNING AND TRANSPORT,SECURE-A-FIELD LTD,369.5,CHARGEABLE BUILDING CONTROL,OFFICE EXPENSES,5902449749,1000072371
06.01.2021,PLANNING AND TRANSPORT,WATES PROPERTY SERVICES LTD,"1,660.60",DANGEROUS STRUCTURES,OTHER CONTRACTORS,5902449761,11322039
06.01.2021,PLANNING AND TRANSPORT,WATES PROPERTY SERVICES LTD,"1,702.63",DANGEROUS STRUCTURES,OTHER CONTRACTORS,5902449760,11322039
06.01.2021,PLANNING AND TRANSPORT,SECURE-A-FIELD LTD,369.5,SUPPORT SERVICES,OFFICE EXPENSES,5902449749,1000072371
06.01.2021,REGENERATION,TIBBALDS PLANNING & URBAN DESIGN LTD,"4,700.00",CAMBERWELL GOOD GROWTH FUND,PROFESSIONAL FEES,5902449727,1000029772
06.01.2021,REGENERATION,TIBBALDS PLANNING & URBAN DESIGN LTD,"8,800.00",CAMBERWELL GOOD GROWTH FUND,PROFESSIONAL FEES,5902449727,1000029772
06.01.2021,RESIDENT SERVICES,WALWORTH GARDEN LTD,"6,345.42",GARDEN MAINTENANCE PROJECT,GROUNDS MAINTENANCE,5902449837,1000042204
06.01.2021,RESIDENT SERVICES,WALWORTH GARDEN LTD,"8,878.42",GARDEN MAINTENANCE PROJECT,GROUNDS MAINTENANCE,5902449835,1000042204
07.01.2021,ADULT SOCIAL CARE,DERWENT RESIDENTIAL CARE LTD,459,APPOINTEESHIPS,OTHER PAYMENTS FOR CLIENTS,5902449922,1000069967
07.01.2021,ADULT SOCIAL CARE,REDACTED PERSONAL DATA,400,APPOINTEESHIPS,OTHER PAYMENTS FOR CLIENTS,REDACTED,REDACTED
07.01.2021,ADULT SOCIAL CARE,REDACTED PERSONAL DATA,600,APPOINTEESHIPS,OTHER PAYMENTS FOR CLIENTS,REDACTED,REDACTED
07.01.2021,ADULT SOCIAL CARE,NORTHGATE PUBLIC SERVICES (UK) LTD,850,DEBT TASK FORCE,COMMS & COMPUTING CONTRACT CHARGES,5902449959,1000037405
07.01.2021,ADULT SOCIAL CARE,THAMES HOMECARE SERVICE LTD,367.94,DISCHARGE TO ACCESS,HOMECARE - C&V,2103196563,1000079295
07.01.2021,ADULT SOCIAL CARE,THAMES HOMECARE SERVICE LTD,286.18,DISCHARGE TO ACCESS,HOMECARE - SPOT,2103196423,1000079295
07.01.2021,ADULT SOCIAL CARE,CHOICE SUPPORT,881.76,LD LTS 18-64,SUPPORTED LIVING,2103196644,1104183
07.01.2021,ADULT SOCIAL CARE,CARE O LINE,"1,780.64",LD LTS 18-64,SUPPORTED LIVING,2103196636,11241743
07.01.2021,ADULT SOCIAL CARE,CARE O LINE,"1,835.65",LD LTS 18-64,SUPPORTED LIVING,2103196628,11241743
07.01.2021,ADULT SOCIAL CARE,SURREY DOCKS FARM PROVIDENT SOCIETY,480,LD LTS 18-64,DAYCARE,2103196653,1000000958
07.01.2021,ADULT SOCIAL CARE,SURREY DOCKS FARM PROVIDENT SOCIETY,487.5,LD LTS 18-64,DAYCARE,2103196650,1000000958
07.01.2021,ADULT SOCIAL CARE,SURREY DOCKS FARM PROVIDENT SOCIETY,720,LD LTS 18-64,DAYCARE,2103196651,1000000958
07.01.2021,ADULT SOCIAL CARE,NATIONAL AUTISTIC SOCIETY CARE PACK,"3,449.88",LD LTS 18-64,DAYCARE,2103196622,1000020538
07.01.2021,ADULT SOCIAL CARE,THE CAMDEN SOCIETY (SOCIAL CARE),480,LD LTS 18-64,DAYCARE,2103196639,1000036369
07.01.2021,ADULT SOCIAL CARE,BLISSETT CARE LTD,487.66,LD LTS 18-64,HOMECARE - C&V,2103196617,1000042627
07.01.2021,ADULT SOCIAL CARE,CONTACT PROFESSIONALS,465,LD LTS 18-64,SUPPORTED LIVING,2103196624,1000057263
07.01.2021,ADULT SOCIAL CARE,DARETHEALTHCARE UK LTD,773.67,LD LTS 18-64,SUPPORTED LIVING,2103196625,1000059149
07.01.2021,ADULT SOCIAL CARE,METRO HOMECARE LTD,264,LD LTS 18-64,HOMECARE - SPOT,2103196635,1000070695
07.01.2021,ADULT SOCIAL CARE,METRO HOMECARE LTD,396,LD LTS 18-64,HOMECARE - SPOT,2103196631,1000070695
07.01.2021,ADULT SOCIAL CARE,ACCESS MOBILITY TRANSPORT LTD,"2,087.60",LD LTS 18-64,CLIENT TRANSPORT,2103196642,1000074637
07.01.2021,ADULT SOCIAL CARE,OUT AND ABOUT COMMUNITY SERVICES,340,LD LTS 18-64,DAYCARE,2103196629,1000078603
07.01.2021,ADULT SOCIAL CARE,OUT AND ABOUT COMMUNITY SERVICES,340,LD LTS 18-64,DAYCARE,2103196634,1000078603
07.01.2021,ADULT SOCIAL CARE,OUT AND ABOUT COMMUNITY SERVICES,782,LD LTS 18-64,DAYCARE,2103196626,1000078603
07.01.2021,ADULT SOCIAL CARE,ATEGI LTD,490,LD LTS 18-64,PLACEMENTS - RESPITE,2103196621,1000081382
07.01.2021,ADULT SOCIAL CARE,BLISSETT CARE LTD,487.76,MEM LTS 65+,HOMECARE - C&V,2103196589,1000042627
07.01.2021,ADULT SOCIAL CARE,BLISSETT CARE LTD,574.4,MEM LTS 65+,HOMECARE - C&V,2103196595,1000042627
07.01.2021,ADULT SOCIAL CARE,BLISSETT CARE LTD,"2,247.84",MEM LTS 65+,HOMECARE - C&V,2103196602,1000042627
07.01.2021,ADULT SOCIAL CARE,BUDDI LTD,360,MEM LTS 65+,EQUIPMENT PURCHASE & REPAIR,2103196580,1000067243
07.01.2021,ADULT SOCIAL CARE,BLISSETT CARE LTD,361.55,MH LTS 65+,HOMECARE - C&V,2103196588,1000042627
07.01.2021,ADULT SOCIAL CARE,BLISSETT CARE LTD,588.72,MH LTS 65+,HOMECARE - C&V,2103196606,1000042627
07.01.2021,ADULT SOCIAL CARE,BLISSETT CARE LTD,606.56,MH LTS 65+,HOMECARE - C&V,2103196608,1000042627
07.01.2021,ADULT SOCIAL CARE,THAMES HOMECARE SERVICE LTD,472.42,MH LTS 65+,HOMECARE - SPOT,2103196459,1000079295
07.01.2021,ADULT SOCIAL CARE,THAMES HOMECARE SERVICE LTD,508.76,MH LTS 65+,HOMECARE - SPOT,2103196449,1000079295
07.01.2021,ADULT SOCIAL CARE,BLISSETT CARE LTD,319.26,PHY LTS 18-64,HOMECARE - C&V,2103196599,1000042627
07.01.2021,ADULT SOCIAL CARE,BLISSETT CARE LTD,321.12,PHY LTS 18-64,HOMECARE - C&V,2103196593,1000042627
07.01.2021,ADULT SOCIAL CARE,BLISSETT CARE LTD,321.12,PHY LTS 18-64,HOMECARE - C&V,2103196607,1000042627
07.01.2021,ADULT SOCIAL CARE,BLISSETT CARE LTD,321.12,PHY LTS 18-64,HOMECARE - C&V,2103196615,1000042627
07.01.2021,ADULT SOCIAL CARE,PHOENIX HEALTHCARE & RECRUITMENT,909.2,PHY LTS 18-64,DAYCARE,2103196627,1000065636
07.01.2021,ADULT SOCIAL CARE,THAMES HOMECARE SERVICE LTD,717.72,PHY LTS 18-64,HOMECARE - C&V,2103196557,1000079295
07.01.2021,ADULT SOCIAL CARE,THAMES HOMECARE SERVICE LTD,258.92,PHY LTS 18-64,HOMECARE - SPOT,2103196533,1000079295
07.01.2021,ADULT SOCIAL CARE,THAMES HOMECARE SERVICE LTD,281.64,PHY LTS 18-64,HOMECARE - SPOT,2103196485,1000079295
07.01.2021,ADULT SOCIAL CARE,THAMES HOMECARE SERVICE LTD,286.18,PHY LTS 18-64,HOMECARE - SPOT,2103196447,1000079295
07.01.2021,ADULT SOCIAL CARE,THAMES HOMECARE SERVICE LTD,286.18,PHY LTS 18-64,HOMECARE - SPOT,2103196576,1000079295
07.01.2021,ADULT SOCIAL CARE,THAMES HOMECARE SERVICE LTD,363.4,PHY LTS 18-64,HOMECARE - SPOT,2103196568,1000079295
07.01.2021,ADULT SOCIAL CARE,THAMES HOMECARE SERVICE LTD,386.11,PHY LTS 18-64,HOMECARE - SPOT,2103196445,1000079295
07.01.2021,ADULT SOCIAL CARE,THAMES HOMECARE SERVICE LTD,399.74,PHY LTS 18-64,HOMECARE - SPOT,2103196581,1000079295
07.01.2021,ADULT SOCIAL CARE,THAMES HOMECARE SERVICE LTD,572.36,PHY LTS 18-64,HOMECARE - SPOT,2103196435,1000079295
07.01.2021,ADULT SOCIAL CARE,THAMES HOMECARE SERVICE LTD,572.36,PHY LTS 18-64,HOMECARE - SPOT,2103196577,1000079295
07.01.2021,ADULT SOCIAL CARE,THAMES HOMECARE SERVICE LTD,635.95,PHY LTS 18-64,HOMECARE - SPOT,2103196497,1000079295
07.01.2021,ADULT SOCIAL CARE,THAMES HOMECARE SERVICE LTD,649.58,PHY LTS 18-64,HOMECARE - SPOT,2103196511,1000079295
07.01.2021,ADULT SOCIAL CARE,THAMES HOMECARE SERVICE LTD,699.55,PHY LTS 18-64,HOMECARE - SPOT,2103196521,1000079295
07.01.2021,ADULT SOCIAL CARE,THAMES HOMECARE SERVICE LTD,835.82,PHY LTS 18-64,HOMECARE - SPOT,2103196477,1000079295
07.01.2021,ADULT SOCIAL CARE,THAMES HOMECARE SERVICE LTD,844.91,PHY LTS 18-64,HOMECARE - SPOT,2103196421,1000079295
07.01.2021,ADULT SOCIAL CARE,PAULWAYS KENNELS,600,PHY LTS 65+,EXTERNAL AGENCIES AND BODIES,2103196638,1068767
07.01.2021,ADULT SOCIAL CARE,PAULWAYS KENNELS,"1,041.76",PHY LTS 65+,EXTERNAL AGENCIES AND BODIES,2103196640,1068767
07.01.2021,ADULT SOCIAL CARE,BLISSETT CARE LTD,252.74,PHY LTS 65+,HOMECARE - C&V,2103196591,1000042627
07.01.2021,ADULT SOCIAL CARE,BLISSETT CARE LTD,361.26,PHY LTS 65+,HOMECARE - C&V,2103196601,1000042627
07.01.2021,ADULT SOCIAL CARE,BLISSETT CARE LTD,481.68,PHY LTS 65+,HOMECARE - C&V,2103196605,1000042627
07.01.2021,ADULT SOCIAL CARE,BLISSETT CARE LTD,603.01,PHY LTS 65+,HOMECARE - C&V,2103196611,1000042627
07.01.2021,ADULT SOCIAL CARE,BLISSETT CARE LTD,606.56,PHY LTS 65+,HOMECARE - C&V,2103196596,1000042627
07.01.2021,ADULT SOCIAL CARE,BLISSETT CARE LTD,679.56,PHY LTS 65+,HOMECARE - C&V,2103196604,1000042627
07.01.2021,ADULT SOCIAL CARE,BLISSETT CARE LTD,735.9,PHY LTS 65+,HOMECARE - C&V,2103196603,1000042627
07.01.2021,ADULT SOCIAL CARE,BLISSETT CARE LTD,"1,166.30",PHY LTS 65+,HOMECARE - C&V,2103196619,1000042627
07.01.2021,ADULT SOCIAL CARE,BLISSETT CARE LTD,"1,239.14",PHY LTS 65+,HOMECARE - C&V,2103196620,1000042627
07.01.2021,ADULT SOCIAL CARE,BLISSETT CARE LTD,"1,646.47",PHY LTS 65+,HOMECARE - C&V,2103196592,1000042627
07.01.2021,ADULT SOCIAL CARE,BLISSETT CARE LTD,"1,703.04",PHY LTS 65+,HOMECARE - C&V,2103196598,1000042627
07.01.2021,ADULT SOCIAL CARE,BLISSETT CARE LTD,"1,739.40",PHY LTS 65+,HOMECARE - C&V,2103196613,1000042627
07.01.2021,ADULT SOCIAL CARE,BLISSETT CARE LTD,"2,818.72",PHY LTS 65+,HOMECARE - C&V,2103196600,1000042627
07.01.2021,ADULT SOCIAL CARE,BLISSETT CARE LTD,"2,818.72",PHY LTS 65+,HOMECARE - C&V,2103196614,1000042627
07.01.2021,ADULT SOCIAL CARE,THAMES HOMECARE SERVICE LTD,681.38,PHY LTS 65+,HOMECARE - C&V,2103196507,1000079295
07.01.2021,ADULT SOCIAL CARE,THAMES HOMECARE SERVICE LTD,268.01,PHY LTS 65+,HOMECARE - SPOT,2103196565,1000079295
07.01.2021,ADULT SOCIAL CARE,THAMES HOMECARE SERVICE LTD,272.55,PHY LTS 65+,HOMECARE - SPOT,2103196433,1000079295
07.01.2021,ADULT SOCIAL CARE,THAMES HOMECARE SERVICE LTD,286.18,PHY LTS 65+,HOMECARE - SPOT,2103196425,1000079295
07.01.2021,ADULT SOCIAL CARE,THAMES HOMECARE SERVICE LTD,286.18,PHY LTS 65+,HOMECARE - SPOT,2103196501,1000079295
07.01.2021,ADULT SOCIAL CARE,THAMES HOMECARE SERVICE LTD,331.6,PHY LTS 65+,HOMECARE - SPOT,2103196515,1000079295
07.01.2021,ADULT SOCIAL CARE,THAMES HOMECARE SERVICE LTD,336.15,PHY LTS 65+,HOMECARE - SPOT,2103196491,1000079295
07.01.2021,ADULT SOCIAL CARE,THAMES HOMECARE SERVICE LTD,349.77,PHY LTS 65+,HOMECARE - SPOT,2103196473,1000079295
07.01.2021,ADULT SOCIAL CARE,THAMES HOMECARE SERVICE LTD,381.57,PHY LTS 65+,HOMECARE - SPOT,2103196503,1000079295
07.01.2021,ADULT SOCIAL CARE,THAMES HOMECARE SERVICE LTD,436.08,PHY LTS 65+,HOMECARE - SPOT,2103196489,1000079295
07.01.2021,ADULT SOCIAL CARE,THAMES HOMECARE SERVICE LTD,476.96,PHY LTS 65+,HOMECARE - SPOT,2103196493,1000079295
07.01.2021,ADULT SOCIAL CARE,THAMES HOMECARE SERVICE LTD,508.76,PHY LTS 65+,HOMECARE - SPOT,2103196437,1000079295
07.01.2021,ADULT SOCIAL CARE,THAMES HOMECARE SERVICE LTD,508.76,PHY LTS 65+,HOMECARE - SPOT,2103196495,1000079295
07.01.2021,ADULT SOCIAL CARE,THAMES HOMECARE SERVICE LTD,572.36,PHY LTS 65+,HOMECARE - SPOT,2103196469,1000079295
07.01.2021,ADULT SOCIAL CARE,THAMES HOMECARE SERVICE LTD,572.36,PHY LTS 65+,HOMECARE - SPOT,2103196509,1000079295
07.01.2021,ADULT SOCIAL CARE,THAMES HOMECARE SERVICE LTD,576.9,PHY LTS 65+,HOMECARE - SPOT,2103196537,1000079295
07.01.2021,ADULT SOCIAL CARE,THAMES HOMECARE SERVICE LTD,599.61,PHY LTS 65+,HOMECARE - SPOT,2103196475,1000079295
07.01.2021,ADULT SOCIAL CARE,THAMES HOMECARE SERVICE LTD,608.7,PHY LTS 65+,HOMECARE - SPOT,2103196551,1000079295
07.01.2021,ADULT SOCIAL CARE,THAMES HOMECARE SERVICE LTD,626.87,PHY LTS 65+,HOMECARE - SPOT,2103196439,1000079295
07.01.2021,ADULT SOCIAL CARE,THAMES HOMECARE SERVICE LTD,635.95,PHY LTS 65+,HOMECARE - SPOT,2103196414,1000079295
07.01.2021,ADULT SOCIAL CARE,THAMES HOMECARE SERVICE LTD,640.49,PHY LTS 65+,HOMECARE - SPOT,2103196517,1000079295
07.01.2021,ADULT SOCIAL CARE,THAMES HOMECARE SERVICE LTD,663.21,PHY LTS 65+,HOMECARE - SPOT,2103196479,1000079295
07.01.2021,ADULT SOCIAL CARE,THAMES HOMECARE SERVICE LTD,699.55,PHY LTS 65+,HOMECARE - SPOT,2103196471,1000079295
07.01.2021,ADULT SOCIAL CARE,THAMES HOMECARE SERVICE LTD,763.14,PHY LTS 65+,HOMECARE - SPOT,2103196461,1000079295
07.01.2021,ADULT SOCIAL CARE,THAMES HOMECARE SERVICE LTD,799.48,PHY LTS 65+,HOMECARE - SPOT,2103196427,1000079295
07.01.2021,ADULT SOCIAL CARE,THAMES HOMECARE SERVICE LTD,"1,044.78",PHY LTS 65+,HOMECARE - SPOT,2103196549,1000079295
07.01.2021,ADULT SOCIAL CARE,THAMES HOMECARE SERVICE LTD,"1,480.86",PHY LTS 65+,HOMECARE - SPOT,2103196441,1000079295
07.01.2021,ADULT SOCIAL CARE,METRO HOMECARE LTD,296.82,PHY STS 18-64,HOMECARE - IC,2103196632,1000070695
07.01.2021,ADULT SOCIAL CARE,METRO HOMECARE LTD,296.82,PHY STS 18-64,HOMECARE - IC,2103196633,1000070695
07.01.2021,ADULT SOCIAL CARE,THAMES HOMECARE SERVICE LTD,699.55,PHY STS 18-64,HOMECARE - IC,2103196416,1000079295
07.01.2021,ADULT SOCIAL CARE,THAMES HOMECARE SERVICE LTD,699.55,PHY STS 18-64,HOMECARE - IC,2103196483,1000079295
07.01.2021,ADULT SOCIAL CARE,THAMES HOMECARE SERVICE LTD,286.18,PHY STS 65+,HOMECARE - IC,2103196571,1000079295
07.01.2021,ADULT SOCIAL CARE,THAMES HOMECARE SERVICE LTD,476.97,PHY STS 65+,HOMECARE - IC,2103196541,1000079295
07.01.2021,ADULT SOCIAL CARE,THAMES HOMECARE SERVICE LTD,681.38,PHY STS 65+,HOMECARE - IC,2103196573,1000079295
07.01.2021,ADULT SOCIAL CARE,THAMES HOMECARE SERVICE LTD,763.14,PHY STS 65+,HOMECARE - IC,2103196545,1000079295
07.01.2021,ADULT SOCIAL CARE,THAMES HOMECARE SERVICE LTD,304.35,SEN LTS 65+,HOMECARE - SPOT,2103196574,1000079295
07.01.2021,ASSET MANAGEMENT,CAMBRIDGE HOUSE & TALBOT,"1,950.00",DISREPAIR,PAYMENTS FOR LEGAL SERVICES,2103196661,1139414
07.01.2021,ASSET MANAGEMENT,ANTHONY GOLD SOLICITORS,"4,000.00",DISREPAIR,PAYMENTS FOR LEGAL SERVICES,2103196658,1000050198
07.01.2021,ASSET MANAGEMENT,ASHFORDS LLP,500,DISREPAIR,PAYMENTS FOR LEGAL SERVICES,2103196666,1000055865
07.01.2021,ASSET MANAGEMENT,ASHFORDS LLP,500,DISREPAIR,PAYMENTS FOR LEGAL SERVICES,2103196671,1000055865
07.01.2021,ASSET MANAGEMENT,ASHFORDS LLP,"2,000.00",DISREPAIR,PAYMENTS FOR LEGAL SERVICES,2103196667,1000055865
07.01.2021,ASSET MANAGEMENT,ASHFORDS LLP,"4,000.00",DISREPAIR,PAYMENTS FOR LEGAL SERVICES,2103196663,1000055865
07.01.2021,ASSET MANAGEMENT,ASHFORDS LLP,"7,500.00",DISREPAIR,PAYMENTS FOR LEGAL SERVICES,2103196669,1000055865
07.01.2021,ASSET MANAGEMENT,SETFORDS LAW LTD,"1,500.00",DISREPAIR,PAYMENTS FOR LEGAL SERVICES,2103196664,1000070746
07.01.2021,ASSET MANAGEMENT,HIGH STREET SOLICITORS LTD,600,DISREPAIR,PAYMENTS FOR LEGAL SERVICES,2103196662,1000083576
07.01.2021,ASSET MANAGEMENT,BOND TURNER  SOLICITORS,300,DISREPAIR,PAYMENTS FOR LEGAL SERVICES,2103196659,1000085362
07.01.2021,ASSET MANAGEMENT,BOND TURNER  SOLICITORS,"1,160.00",DISREPAIR,PAYMENTS FOR LEGAL SERVICES,2103196660,1000085362
07.01.2021,ASSET MANAGEMENT,SNK SOLICITORS,"3,045.71",DISREPAIR,PAYMENTS FOR LEGAL SERVICES,2103196665,1000086089
07.01.2021,ASSET MANAGEMENT,LONDON FIRE BRIGADE,346,ENG CONTRACTS (NORTH),LIFTS,5902449895,1000083629
07.01.2021,ASSET MANAGEMENT,LONDON FIRE BRIGADE,346,ENG CONTRACTS (NORTH),LIFTS,5902449898,1000083629
07.01.2021,ASSET MANAGEMENT,LONDON FIRE BRIGADE,346,ENG CONTRACTS (NORTH),LIFTS,5902449902,1000083629
07.01.2021,CENTRAL FUNCTIONS,STANBURY BUILDING SERVICES LTD,325,COMMERCIAL PROPERTIES,BUILDING R&M,5902449934,1000078207
07.01.2021,CHIEF EXECUTIVE,LDA DESIGN CONSULTING LTD,"4,145.49",CAPITAL PS (REGEN),CONSTRUCTION FEES - ARCHITECT,5902449970,1000031830
07.01.2021,CHILDREN AND FAMILIES,WESLEY GRYK SOLICITORS,"3,093.60",16 PLUS TEAM,OTHER PAYMENTS FOR CLIENTS,2103196582,1000080430
07.01.2021,CHILDREN AND FAMILIES,INTERPRETING DIRECT CO (UK) LTD,"11,044.50",CENTRAL SUPPORT,INTERPRETING SERVICES,5902449980,1000070133
07.01.2021,CHILDREN AND FAMILIES,ITL NORTH EAST LTD,251.45,CENTRAL SUPPORT,INTERPRETING SERVICES,5902450007,1000082415
07.01.2021,CHILDREN AND FAMILIES,ITL NORTH EAST LTD,260.16,CENTRAL SUPPORT,INTERPRETING SERVICES,5902450007,1000082415
07.01.2021,CHILDREN AND FAMILIES,ITL NORTH EAST LTD,517.45,CENTRAL SUPPORT,INTERPRETING SERVICES,5902450007,1000082415
07.01.2021,CHILDREN AND FAMILIES,ITL NORTH EAST LTD,533.63,CENTRAL SUPPORT,INTERPRETING SERVICES,5902450007,1000082415
07.01.2021,CHILDREN AND FAMILIES,ITL NORTH EAST LTD,536.8,CENTRAL SUPPORT,INTERPRETING SERVICES,5902450007,1000082415
07.01.2021,CHILDREN AND FAMILIES,ITL NORTH EAST LTD,577.3,CENTRAL SUPPORT,INTERPRETING SERVICES,5902450007,1000082415
07.01.2021,CHILDREN AND FAMILIES,ITL NORTH EAST LTD,792.7,CENTRAL SUPPORT,INTERPRETING SERVICES,5902450007,1000082415
07.01.2021,CHILDREN AND FAMILIES,ITL NORTH EAST LTD,"3,099.25",CENTRAL SUPPORT,INTERPRETING SERVICES,5902450007,1000082415
07.01.2021,CHILDREN AND FAMILIES,KENT COUNTY COUNCIL - LASER,"1,064.17",MGMT & PARENTING,ELECTRICITY,5902449906,1000012926
07.01.2021,CHILDREN AND FAMILIES,CARE O LINE,349.62,TEAM B,OTHER PAYMENTS FOR CLIENTS,2103196586,11241743
07.01.2021,CHILDREN AND FAMILIES,CARE O LINE,"1,526.68",TEAM B,OTHER PAYMENTS FOR CLIENTS,2103196584,11241743
07.01.2021,CHILDREN AND FAMILIES,CARE O LINE,"1,536.04",TEAM B,OTHER PAYMENTS FOR CLIENTS,2103196587,11241743
07.01.2021,CHILDREN AND FAMILIES,CARE O LINE,"2,630.89",TEAM B,OTHER PAYMENTS FOR CLIENTS,2103196585,11241743
07.01.2021,CHILDREN AND FAMILIES,CARE O LINE,"3,046.71",TEAM B,OTHER PAYMENTS FOR CLIENTS,2103196583,11241743
07.01.2021,CUSTOMER EXPERIENCE HGF,GUYS & ST THOMAS NHS FOUNDATION TRUST,300,CORONER'S,OTHER CONTRACTORS,5902449892,1765536
07.01.2021,CUSTOMER EXPERIENCE HGF,GUYS & ST THOMAS NHS FOUNDATION TRUST,"1,817.00",CORONER'S,OTHER CONTRACTORS,5902449890,1765536
07.01.2021,CUSTOMER EXPERIENCE HGF,ROCKET ESTATE AGENTS LTD,"1,800.00",HOMELESS PROJECTS,GRANTS,5902450033,1000086046
07.01.2021,CUSTOMER EXPERIENCE HGF,JAVA MANAGEMENT LTD,"3,106.80",HOMELESS PROJECTS,GRANTS,5902450035,1000086051
07.01.2021,CUSTOMER EXPERIENCE HGF,TO DENH CAR,"2,200.00",HOMELESS PROJECTS,GRANTS,5902450034,1000086055
07.01.2021,CUSTOMER EXPERIENCE HGF,DENDRO LTD,"1,541.90",HOMELESS PROJECTS,GRANTS,5902449889,1000086120
07.01.2021,CUSTOMER EXPERIENCE HGF,FLAT2SHARE LTD,"2,363.92",HOMELESS PROJECTS,GRANTS,5902449888,1000086124
07.01.2021,CUSTOMER EXPERIENCE HGF,INSTANT CASH 4 HOUSES LTD,"1,620.00",HOMELESS PROJECTS,GRANTS,5902449887,1000086125
07.01.2021,CUSTOMER EXPERIENCE HGF,EDEN ESTATES LONDON LTD,"21,867.00",NIGHTLY TA (NSC),EXTERNAL AGENCIES AND BODIES,5902449875,1000061217
07.01.2021,DSG,PROSPERO RECRUITMENT LTD,"2,115.00",PUPIL PREMIUM CURRENT YEAR,EXTERNAL AGENCIES AND BODIES,5902449933,1000082492
07.01.2021,DSG,CROSS EDUCATION SUPPORT SERVS LTD,"2,080.00",SCHOOLS FORUM,CONSULTANTS SERVICES,5902449984,1000046629
07.01.2021,DSG,SOUTHWARK INCLUSIVE LEARNING SERVICE,"175,000.00",SILS,HIGH NEEDS - TOP UP FUNDING,5902449886,5001000105
07.01.2021,EDUCATION,BLACKFRIARS SETTLEMENT,"1,750.00",ALC COMMUNITY LEARNING,GRANTS,5902449931,1013178
07.01.2021,EDUCATION,BLACKFRIARS SETTLEMENT,"2,000.00",ALC COMMUNITY LEARNING,GRANTS,5902449926,1013178
07.01.2021,EDUCATION,BLACKFRIARS SETTLEMENT,"2,000.00",ALC COMMUNITY LEARNING,GRANTS,5902449929,1013178
07.01.2021,ENVIRONMENT AND LEISURE,F M CONWAY LTD,"4,320.15",CAPITAL PS (LEISURE),CONSTRUCTION,2103196980,4001384
07.01.2021,ENVIRONMENT AND LEISURE,INTO SERVICES LONDON LTD,"-1,000.00",CAPITAL PS (LEISURE),CONSTRUCTION MAIN CONTRACT -CERTIFICATED,5902450270,3000002071
07.01.2021,ENVIRONMENT AND LEISURE,INTO SERVICES LONDON LTD,"1,000.00",CAPITAL PS (LEISURE),CONSTRUCTION MAIN CONTRACT -CERTIFICATED,5902450251,3000002071
07.01.2021,ENVIRONMENT DIRECTORATE,CHARLES ENDIRECT LTD,428.46,ILLUMINATED BOLLARDS - PRINCIPAL ROADS,ELECTRICITY,5902449962,11284665
07.01.2021,ENVIRONMENT DIRECTORATE,CHARLES ENDIRECT LTD,495.72,ILLUMINATED BOLLARDS - PRINCIPAL ROADS,ELECTRICITY,5902449962,11284665
07.01.2021,ENVIRONMENT DIRECTORATE,LAKEDALE POWER TOOLS,"1,116.00",PUBLIC LIGHTING,MATERIALS,5902449951,1015368
07.01.2021,ENVIRONMENT DIRECTORATE,CHAR.GY LIMITED,"98,750.00",PUBLIC LIGHTING,MATERIALS,5902449941,1000081785
07.01.2021,ENVIRONMENT DIRECTORATE,CHARLES ENDIRECT LTD,"4,957.20",STREET LIGHTING REACTIVE,ELECTRICITY,5902449962,11284665
07.01.2021,F & C S EXCLUDING CORPORATE BUDGETS,REDACTED PERSONAL DATA,500,SESS,OTHER PAYMENTS FOR CLIENTS,REDACTED,REDACTED
07.01.2021,F & C S EXCLUDING CORPORATE BUDGETS,REDACTED PERSONAL DATA,500,SESS,OTHER PAYMENTS FOR CLIENTS,REDACTED,REDACTED
07.01.2021,F & C S EXCLUDING CORPORATE BUDGETS,REDACTED PERSONAL DATA,500,SESS,OTHER PAYMENTS FOR CLIENTS,REDACTED,REDACTED
07.01.2021,F & C S EXCLUDING CORPORATE BUDGETS,REDACTED PERSONAL DATA,500,SESS,OTHER PAYMENTS FOR CLIENTS,REDACTED,REDACTED
07.01.2021,F & C S EXCLUDING CORPORATE BUDGETS,REDACTED PERSONAL DATA,500,SESS,OTHER PAYMENTS FOR CLIENTS,REDACTED,REDACTED
07.01.2021,F & C S EXCLUDING CORPORATE BUDGETS,REDACTED PERSONAL DATA,500,SESS,OTHER PAYMENTS FOR CLIENTS,REDACTED,REDACTED
07.01.2021,F & C S EXCLUDING CORPORATE BUDGETS,REDACTED PERSONAL DATA,500,SESS,OTHER PAYMENTS FOR CLIENTS,REDACTED,REDACTED
07.01.2021,F & C S EXCLUDING CORPORATE BUDGETS,REDACTED PERSONAL DATA,500,SESS,OTHER PAYMENTS FOR CLIENTS,REDACTED,REDACTED
07.01.2021,F & C S EXCLUDING CORPORATE BUDGETS,REDACTED PERSONAL DATA,500,SESS,OTHER PAYMENTS FOR CLIENTS,REDACTED,REDACTED
07.01.2021,HOUSING HRA,ELLIOT GROUP LIMITED,600,CAPITAL PS (HRA),CONSTRUCTION SITE COSTS,5902449996,1000062655
07.01.2021,HOUSING HRA,ELLIOT GROUP LIMITED,"1,153.41",CAPITAL PS (HRA),CONSTRUCTION SITE COSTS,5902449977,1000062655
07.01.2021,HOUSING HRA,CARTER JONAS LLP,"10,200.00",CAPITAL PS (HRA),CAPITAL GRANTS,5902449925,1000073124
07.01.2021,HOUSING HRA,VITAL ENERGI UTILITIES LTD,"48,749.20",CAPITAL PS (HRA),CONSTRUCTION MAIN CONTRACT -CERTIFICATED,2103196981,3000001040
07.01.2021,HOUSING HRA,AJMADAPTIONS LTD,"6,593.00",CAPITAL PS (HRA),CONST'N MAIN CONTRACT - NON CERTIFICATED,2103196657,3000002056
07.01.2021,HOUSING HRA,AJMADAPTIONS LTD,"7,093.00",CAPITAL PS (HRA),CONST'N MAIN CONTRACT - NON CERTIFICATED,2103196656,3000002056
07.01.2021,HOUSING HRA,AJMADAPTIONS LTD,"7,603.00",CAPITAL PS (HRA),CONST'N MAIN CONTRACT - NON CERTIFICATED,2103196655,3000002056
07.01.2021,MODERNISATION HGF,INTEROUTE NETWORKS LTD,"14,252.97",SHARED SERVICES,DATA COMMUNICATIONS,5902449913,1000066651
07.01.2021,MODERNISATION HGF,EMS EVENTS LTD,"2,500.00",TSFM CONTINGENCY,INTEGRATED FACILITIES MANAGEMENT CONTRACT,5902449864,1000057494
07.01.2021,NEW BUILD,BRITISH GAS,"1,614.65",DEVELOPMENT DELIVERY,ELECTRICITY,5902449940,1000054825
07.01.2021,PUBLIC HEALTH,COMMON COLLECTIVE LTD,"9,043.50",PLACE & HEALTH IMPROVEMENT,EXTERNAL AGENCIES AND BODIES,5902450032,1000080810
07.01.2021,RESIDENT SERVICES,WALWORTH GARDEN LTD,"10,901.42",GARDEN MAINTENANCE PROJECT,GROUNDS MAINTENANCE,5902449920,1000042204
07.01.2021,RESIDENT SERVICES,THAMES WATER UTILITIES LTD,364.75,SHELTERED NORTH,WATER,5902449877,1630755
07.01.2021,RESIDENT SERVICES,THAMES WATER UTILITIES LTD,376.55,SHELTERED NORTH,WATER,5902449878,1630755
07.01.2021,RESIDENT SERVICES,THAMES WATER UTILITIES LTD,535.75,SHELTERED NORTH,WATER,5902449879,1630755
07.01.2021,RESIDENT SERVICES,C BREWER & SONS LTD,295,SUPPORTED HOSTELS,MATERIALS,5902449924,1056028
07.01.2021,SBS OPERATIONS,CITY ELECTRICAL FACTORS LTD,383.66,ELECTRICIANS - DAY TO DAY,MATERIALS,5902449937,1003485
07.01.2021,SBS OPERATIONS,CITY ELECTRICAL FACTORS LTD,558.2,ELECTRICIANS - DAY TO DAY,MATERIALS,5902449901,1003485
07.01.2021,SBS OPERATIONS,CITY ELECTRICAL FACTORS LTD,320.82,NUNHEAD DD,MATERIALS,5902449939,1003485
07.01.2021,SOUTHWARK BUILDING SERVICES,C BREWER & SONS LTD,435.6,STORES/LOGISTICS,CREDITORS -GR/IR CLEARING ACCOUNT,5902449923,1056028
07.01.2021,SOUTHWARK BUILDING SERVICES,ELECTRICAL WHOLESALE SYSTEMS LTD,"6,800.00",STORES/LOGISTICS,CREDITORS -GR/IR CLEARING ACCOUNT,5902449953,1000083319
07.01.2021,STRATEGIC FINANCING BUDGETS,COMENSURA LTD,"1,593.65",WEEKLY PAYMENTS,AGENCY STAFF,5902450018,1000051261
07.01.2021,STRATEGIC FINANCING BUDGETS,COMENSURA LTD,"357,313.55",WEEKLY PAYMENTS,AGENCY STAFF,5902450023,1000051261
08.01.2021,ADULT SOCIAL CARE,REDACTED PERSONAL DATA,488,APPOINTEESHIPS,OTHER PAYMENTS FOR CLIENTS,REDACTED,REDACTED
08.01.2021,ADULT SOCIAL CARE,METRO HOMECARE LTD,"35,200.69",DIR OF ASC,EXTERNAL AGENCIES AND BODIES,5902450282,1000070695
08.01.2021,ADULT SOCIAL CARE,L'ARCHE LONDON COMMUNITY,271.75,DIR OF ASC,EXTERNAL AGENCIES AND BODIES,5902450276,1000074124
08.01.2021,ADULT SOCIAL CARE,BLISSETT CARE LTD,"1,404.32",DISCHARGE TO ACCESS,HOMECARE - C&V,2103198013,1000042627
08.01.2021,ADULT SOCIAL CARE,SUPREME CARE SERVICES LTD,293.67,DISCHARGE TO ACCESS,HOMECARE - C&V,2103197419,1000059416
08.01.2021,ADULT SOCIAL CARE,SUPREME CARE SERVICES LTD,590.83,DISCHARGE TO ACCESS,HOMECARE - C&V,2103197312,1000059416
08.01.2021,ADULT SOCIAL CARE,SUPREME CARE SERVICES LTD,954.27,DISCHARGE TO ACCESS,HOMECARE - C&V,2103197355,1000059416
08.01.2021,ADULT SOCIAL CARE,SUPREME CARE SERVICES LTD,"1,379.17",DISCHARGE TO ACCESS,HOMECARE - C&V,2103197326,1000059416
08.01.2021,ADULT SOCIAL CARE,SUPREME CARE SERVICES LTD,"2,818.81",DISCHARGE TO ACCESS,HOMECARE - C&V,2103197084,1000059416
08.01.2021,ADULT SOCIAL CARE,SUPREME CARE SERVICES LTD,"3,642.78",DISCHARGE TO ACCESS,HOMECARE - C&V,2103197138,1000059416
08.01.2021,ADULT SOCIAL CARE,PROFAD CARE AGENCY,"4,226.88",DISCHARGE TO ACCESS,HOMECARE - SPOT,2103197525,1000079032
08.01.2021,ADULT SOCIAL CARE,MEDACS HOMECARE,668.8,LD LTS 18-64,HOMECARE - C&V,2103198047,11287415
08.01.2021,ADULT SOCIAL CARE,MEDACS HOMECARE,"2,076.00",LD LTS 18-64,HOMECARE - C&V,2103198048,11287415
08.01.2021,ADULT SOCIAL CARE,MEDACS HOMECARE,415.2,LD LTS 18-64,SUPPORTED LIVING,2103198046,11287415
08.01.2021,ADULT SOCIAL CARE,MEDACS HOMECARE,740.16,LD LTS 18-64,SUPPORTED LIVING,2103198042,11287415
08.01.2021,ADULT SOCIAL CARE,MEDACS HOMECARE,"1,868.40",LD LTS 18-64,SUPPORTED LIVING,2103198044,11287415
08.01.2021,ADULT SOCIAL CARE,LONDON CARE LTD,939.25,LD LTS 18-64,HOMECARE - C&V,2103197797,1000003398
08.01.2021,ADULT SOCIAL CARE,LONDON CARE LTD,"1,181.45",LD LTS 18-64,HOMECARE - C&V,2103197948,1000003398
08.01.2021,ADULT SOCIAL CARE,BLISSETT CARE LTD,482.51,LD LTS 18-64,HOMECARE - C&V,2103198039,1000042627
08.01.2021,ADULT SOCIAL CARE,SUPREME CARE SERVICES LTD,423.16,LD LTS 18-64,HOMECARE - C&V,2103197244,1000059416
08.01.2021,ADULT SOCIAL CARE,LONDON CARE LTD,"6,562.00",LD LTS 65+,HOMECARE - C&V,2103197699,1000003398
08.01.2021,ADULT SOCIAL CARE,SUPREME CARE SERVICES LTD,426.25,LD LTS 65+,HOMECARE - C&V,2103197219,1000059416
08.01.2021,ADULT SOCIAL CARE,SUPREME CARE SERVICES LTD,959.34,LD LTS 65+,HOMECARE - C&V,2103197062,1000059416
08.01.2021,ADULT SOCIAL CARE,LONDON CARE LTD,428.84,MEM LTS 18-64,HOMECARE - C&V,2103197798,1000003398
08.01.2021,ADULT SOCIAL CARE,LONDON CARE LTD,639.95,MEM LTS 18-64,HOMECARE - C&V,2103197820,1000003398
08.01.2021,ADULT SOCIAL CARE,LONDON CARE LTD,778.52,MEM LTS 18-64,HOMECARE - C&V,2103197575,1000003398
08.01.2021,ADULT SOCIAL CARE,SUPREME CARE SERVICES LTD,422.16,MEM LTS 18-64,HOMECARE - C&V,2103197132,1000059416
08.01.2021,ADULT SOCIAL CARE,LONDON CARE LTD,250.69,MEM LTS 65+,HOMECARE - C&V,2103197932,1000003398
08.01.2021,ADULT SOCIAL CARE,LONDON CARE LTD,331.17,MEM LTS 65+,HOMECARE - C&V,2103197663,1000003398
08.01.2021,ADULT SOCIAL CARE,LONDON CARE LTD,590.75,MEM LTS 65+,HOMECARE - C&V,2103197928,1000003398
08.01.2021,ADULT SOCIAL CARE,LONDON CARE LTD,608.6,MEM LTS 65+,HOMECARE - C&V,2103197889,1000003398
08.01.2021,ADULT SOCIAL CARE,LONDON CARE LTD,684.8,MEM LTS 65+,HOMECARE - C&V,2103197941,1000003398
08.01.2021,ADULT SOCIAL CARE,LONDON CARE LTD,964.75,MEM LTS 65+,HOMECARE - C&V,2103197931,1000003398
08.01.2021,ADULT SOCIAL CARE,LONDON CARE LTD,"1,351.50",MEM LTS 65+,HOMECARE - C&V,2103197819,1000003398
08.01.2021,ADULT SOCIAL CARE,LONDON CARE LTD,"1,427.69",MEM LTS 65+,HOMECARE - C&V,2103197951,1000003398
08.01.2021,ADULT SOCIAL CARE,LONDON CARE LTD,"2,242.35",MEM LTS 65+,HOMECARE - C&V,2103197573,1000003398
08.01.2021,ADULT SOCIAL CARE,LONDON CARE LTD,"2,732.75",MEM LTS 65+,HOMECARE - C&V,2103197646,1000003398
08.01.2021,ADULT SOCIAL CARE,BLISSETT CARE LTD,463.83,MEM LTS 65+,HOMECARE - C&V,2103198015,1000042627
08.01.2021,ADULT SOCIAL CARE,BLISSETT CARE LTD,682.07,MEM LTS 65+,HOMECARE - C&V,2103198018,1000042627
08.01.2021,ADULT SOCIAL CARE,BLISSETT CARE LTD,"2,258.83",MEM LTS 65+,HOMECARE - C&V,2103198014,1000042627
08.01.2021,ADULT SOCIAL CARE,SUPREME CARE SERVICES LTD,341.15,MEM LTS 65+,HOMECARE - C&V,2103197431,1000059416
08.01.2021,ADULT SOCIAL CARE,SUPREME CARE SERVICES LTD,422.15,MEM LTS 65+,HOMECARE - C&V,2103197133,1000059416
08.01.2021,ADULT SOCIAL CARE,SUPREME CARE SERVICES LTD,464.88,MEM LTS 65+,HOMECARE - C&V,2103197056,1000059416
08.01.2021,ADULT SOCIAL CARE,SUPREME CARE SERVICES LTD,554.23,MEM LTS 65+,HOMECARE - C&V,2103197068,1000059416
08.01.2021,ADULT SOCIAL CARE,SUPREME CARE SERVICES LTD,554.31,MEM LTS 65+,HOMECARE - C&V,2103197201,1000059416
08.01.2021,ADULT SOCIAL CARE,SUPREME CARE SERVICES LTD,628.2,MEM LTS 65+,HOMECARE - C&V,2103197363,1000059416
08.01.2021,ADULT SOCIAL CARE,SUPREME CARE SERVICES LTD,785.63,MEM LTS 65+,HOMECARE - C&V,2103197221,1000059416
08.01.2021,ADULT SOCIAL CARE,SUPREME CARE SERVICES LTD,"1,051.42",MEM LTS 65+,HOMECARE - C&V,2103197079,1000059416
08.01.2021,ADULT SOCIAL CARE,SUPREME CARE SERVICES LTD,"1,095.84",MEM LTS 65+,HOMECARE - C&V,2103197180,1000059416
08.01.2021,ADULT SOCIAL CARE,SUPREME CARE SERVICES LTD,"1,103.93",MEM LTS 65+,HOMECARE - C&V,2103197187,1000059416
08.01.2021,ADULT SOCIAL CARE,SUPREME CARE SERVICES LTD,"1,212.79",MEM LTS 65+,HOMECARE - C&V,2103197325,1000059416
08.01.2021,ADULT SOCIAL CARE,SUPREME CARE SERVICES LTD,"3,112.32",MEM LTS 65+,HOMECARE - C&V,2103197277,1000059416
08.01.2021,ADULT SOCIAL CARE,PROFAD CARE AGENCY,830.28,MEM LTS 65+,HOMECARE - SPOT,2103197499,1000079032
08.01.2021,ADULT SOCIAL CARE,PROFAD CARE AGENCY,"1,339.78",MEM LTS 65+,HOMECARE - SPOT,2103197509,1000079032
08.01.2021,ADULT SOCIAL CARE,LONDON CARE LTD,272,MH LTS 18-64,HOMECARE - C&V,2103197750,1000003398
08.01.2021,ADULT SOCIAL CARE,LONDON CARE LTD,376.04,MH LTS 18-64,HOMECARE - C&V,2103197833,1000003398
08.01.2021,ADULT SOCIAL CARE,LONDON CARE LTD,393.8,MH LTS 18-64,HOMECARE - C&V,2103197987,1000003398
08.01.2021,ADULT SOCIAL CARE,LONDON CARE LTD,451.98,MH LTS 18-64,HOMECARE - C&V,2103197651,1000003398
08.01.2021,ADULT SOCIAL CARE,LONDON CARE LTD,483.1,MH LTS 18-64,HOMECARE - C&V,2103197906,1000003398
08.01.2021,ADULT SOCIAL CARE,LONDON CARE LTD,501.2,MH LTS 18-64,HOMECARE - C&V,2103197893,1000003398
08.01.2021,ADULT SOCIAL CARE,LONDON CARE LTD,539.75,MH LTS 18-64,HOMECARE - C&V,2103197960,1000003398
08.01.2021,ADULT SOCIAL CARE,LONDON CARE LTD,823.96,MH LTS 18-64,HOMECARE - C&V,2103197954,1000003398
08.01.2021,ADULT SOCIAL CARE,LONDON CARE LTD,913.75,MH LTS 18-64,HOMECARE - C&V,2103197570,1000003398
08.01.2021,ADULT SOCIAL CARE,LONDON CARE LTD,922.76,MH LTS 18-64,HOMECARE - C&V,2103197842,1000003398
08.01.2021,ADULT SOCIAL CARE,LONDON CARE LTD,"1,565.36",MH LTS 18-64,HOMECARE - C&V,2103197715,1000003398
08.01.2021,ADULT SOCIAL CARE,SUPREME CARE SERVICES LTD,261.82,MH LTS 18-64,HOMECARE - C&V,2103197320,1000059416
08.01.2021,ADULT SOCIAL CARE,SUPREME CARE SERVICES LTD,292.29,MH LTS 18-64,HOMECARE - C&V,2103197298,1000059416
08.01.2021,ADULT SOCIAL CARE,SUPREME CARE SERVICES LTD,379.36,MH LTS 18-64,HOMECARE - C&V,2103197350,1000059416
08.01.2021,ADULT SOCIAL CARE,SUPREME CARE SERVICES LTD,605.28,MH LTS 18-64,HOMECARE - C&V,2103197276,1000059416
08.01.2021,ADULT SOCIAL CARE,SUPREME CARE SERVICES LTD,682,MH LTS 18-64,HOMECARE - C&V,2103197335,1000059416
08.01.2021,ADULT SOCIAL CARE,SUPREME CARE SERVICES LTD,715.51,MH LTS 18-64,HOMECARE - C&V,2103197057,1000059416
08.01.2021,ADULT SOCIAL CARE,LONDON CARE LTD,259.56,MH LTS 65+,HOMECARE - C&V,2103197851,1000003398
08.01.2021,ADULT SOCIAL CARE,LONDON CARE LTD,559.38,MH LTS 65+,HOMECARE - C&V,2103197864,1000003398
08.01.2021,ADULT SOCIAL CARE,LONDON CARE LTD,588.39,MH LTS 65+,HOMECARE - C&V,2103197830,1000003398
08.01.2021,ADULT SOCIAL CARE,LONDON CARE LTD,987.03,MH LTS 65+,HOMECARE - C&V,2103197675,1000003398
08.01.2021,ADULT SOCIAL CARE,LONDON CARE LTD,"1,033.89",MH LTS 65+,HOMECARE - C&V,2103197668,1000003398
08.01.2021,ADULT SOCIAL CARE,LONDON CARE LTD,"2,390.10",MH LTS 65+,HOMECARE - C&V,2103197591,1000003398
08.01.2021,ADULT SOCIAL CARE,BLISSETT CARE LTD,260.47,MH LTS 65+,HOMECARE - C&V,2103198024,1000042627
08.01.2021,ADULT SOCIAL CARE,BLISSETT CARE LTD,454.84,MH LTS 65+,HOMECARE - C&V,2103198008,1000042627
08.01.2021,ADULT SOCIAL CARE,SUPREME CARE SERVICES LTD,261.77,MH LTS 65+,HOMECARE - C&V,2103197427,1000059416
08.01.2021,ADULT SOCIAL CARE,SUPREME CARE SERVICES LTD,315.73,MH LTS 65+,HOMECARE - C&V,2103197111,1000059416
08.01.2021,ADULT SOCIAL CARE,SUPREME CARE SERVICES LTD,375.84,MH LTS 65+,HOMECARE - C&V,2103197159,1000059416
08.01.2021,ADULT SOCIAL CARE,SUPREME CARE SERVICES LTD,430.05,MH LTS 65+,HOMECARE - C&V,2103197179,1000059416
08.01.2021,ADULT SOCIAL CARE,SUPREME CARE SERVICES LTD,462.43,MH LTS 65+,HOMECARE - C&V,2103197329,1000059416
08.01.2021,ADULT SOCIAL CARE,SUPREME CARE SERVICES LTD,473.14,MH LTS 65+,HOMECARE - C&V,2103197231,1000059416
08.01.2021,ADULT SOCIAL CARE,SUPREME CARE SERVICES LTD,532.23,MH LTS 65+,HOMECARE - C&V,2103197394,1000059416
08.01.2021,ADULT SOCIAL CARE,SUPREME CARE SERVICES LTD,977.09,MH LTS 65+,HOMECARE - C&V,2103197185,1000059416
08.01.2021,ADULT SOCIAL CARE,SUPREME CARE SERVICES LTD,"1,082.88",MH LTS 65+,HOMECARE - C&V,2103197435,1000059416
08.01.2021,ADULT SOCIAL CARE,PROFAD CARE AGENCY,603.84,MH LTS 65+,HOMECARE - SPOT,2103197538,1000079032
08.01.2021,ADULT SOCIAL CARE,PROFAD CARE AGENCY,"1,056.72",MH LTS 65+,HOMECARE - SPOT,2103197533,1000079032
08.01.2021,ADULT SOCIAL CARE,PROFAD CARE AGENCY,"3,245.65",MH LTS 65+,HOMECARE - SPOT,2103197514,1000079032
08.01.2021,ADULT SOCIAL CARE,MEDACS HOMECARE,276.8,PHY LTS 18-64,HOMECARE - C&V,2103198043,11287415
08.01.2021,ADULT SOCIAL CARE,LONDON CARE LTD,250.6,PHY LTS 18-64,HOMECARE - C&V,2103197792,1000003398
08.01.2021,ADULT SOCIAL CARE,LONDON CARE LTD,259.55,PHY LTS 18-64,HOMECARE - C&V,2103197695,1000003398
08.01.2021,ADULT SOCIAL CARE,LONDON CARE LTD,310.25,PHY LTS 18-64,HOMECARE - C&V,2103197926,1000003398
08.01.2021,ADULT SOCIAL CARE,LONDON CARE LTD,310.25,PHY LTS 18-64,HOMECARE - C&V,2103197957,1000003398
08.01.2021,ADULT SOCIAL CARE,LONDON CARE LTD,322.92,PHY LTS 18-64,HOMECARE - C&V,2103197610,1000003398
08.01.2021,ADULT SOCIAL CARE,LONDON CARE LTD,326.76,PHY LTS 18-64,HOMECARE - C&V,2103197985,1000003398
08.01.2021,ADULT SOCIAL CARE,LONDON CARE LTD,344.25,PHY LTS 18-64,HOMECARE - C&V,2103197875,1000003398
08.01.2021,ADULT SOCIAL CARE,LONDON CARE LTD,345.52,PHY LTS 18-64,HOMECARE - C&V,2103197693,1000003398
08.01.2021,ADULT SOCIAL CARE,LONDON CARE LTD,358.04,PHY LTS 18-64,HOMECARE - C&V,2103197625,1000003398
08.01.2021,ADULT SOCIAL CARE,LONDON CARE LTD,366.95,PHY LTS 18-64,HOMECARE - C&V,2103197702,1000003398
08.01.2021,ADULT SOCIAL CARE,LONDON CARE LTD,371.56,PHY LTS 18-64,HOMECARE - C&V,2103197808,1000003398
08.01.2021,ADULT SOCIAL CARE,LONDON CARE LTD,376.04,PHY LTS 18-64,HOMECARE - C&V,2103197933,1000003398
08.01.2021,ADULT SOCIAL CARE,LONDON CARE LTD,389.45,PHY LTS 18-64,HOMECARE - C&V,2103197888,1000003398
08.01.2021,ADULT SOCIAL CARE,LONDON CARE LTD,407.33,PHY LTS 18-64,HOMECARE - C&V,2103197899,1000003398
08.01.2021,ADULT SOCIAL CARE,LONDON CARE LTD,416.47,PHY LTS 18-64,HOMECARE - C&V,2103197974,1000003398
08.01.2021,ADULT SOCIAL CARE,LONDON CARE LTD,420.66,PHY LTS 18-64,HOMECARE - C&V,2103197939,1000003398
08.01.2021,ADULT SOCIAL CARE,LONDON CARE LTD,434.08,PHY LTS 18-64,HOMECARE - C&V,2103197799,1000003398
08.01.2021,ADULT SOCIAL CARE,LONDON CARE LTD,441.31,PHY LTS 18-64,HOMECARE - C&V,2103197860,1000003398
08.01.2021,ADULT SOCIAL CARE,LONDON CARE LTD,442,PHY LTS 18-64,HOMECARE - C&V,2103197829,1000003398
08.01.2021,ADULT SOCIAL CARE,LONDON CARE LTD,483.06,PHY LTS 18-64,HOMECARE - C&V,2103197623,1000003398
08.01.2021,ADULT SOCIAL CARE,LONDON CARE LTD,492.26,PHY LTS 18-64,HOMECARE - C&V,2103197584,1000003398
08.01.2021,ADULT SOCIAL CARE,LONDON CARE LTD,493,PHY LTS 18-64,HOMECARE - C&V,2103197822,1000003398
08.01.2021,ADULT SOCIAL CARE,LONDON CARE LTD,510,PHY LTS 18-64,HOMECARE - C&V,2103197858,1000003398
08.01.2021,ADULT SOCIAL CARE,LONDON CARE LTD,514.77,PHY LTS 18-64,HOMECARE - C&V,2103197942,1000003398
08.01.2021,ADULT SOCIAL CARE,LONDON CARE LTD,519.21,PHY LTS 18-64,HOMECARE - C&V,2103197728,1000003398
08.01.2021,ADULT SOCIAL CARE,LONDON CARE LTD,524.48,PHY LTS 18-64,HOMECARE - C&V,2103197582,1000003398
08.01.2021,ADULT SOCIAL CARE,LONDON CARE LTD,537.13,PHY LTS 18-64,HOMECARE - C&V,2103197658,1000003398
08.01.2021,ADULT SOCIAL CARE,LONDON CARE LTD,550.51,PHY LTS 18-64,HOMECARE - C&V,2103197848,1000003398
08.01.2021,ADULT SOCIAL CARE,LONDON CARE LTD,553.61,PHY LTS 18-64,HOMECARE - C&V,2103197692,1000003398
08.01.2021,ADULT SOCIAL CARE,LONDON CARE LTD,568.42,PHY LTS 18-64,HOMECARE - C&V,2103197877,1000003398
08.01.2021,ADULT SOCIAL CARE,LONDON CARE LTD,577.28,PHY LTS 18-64,HOMECARE - C&V,2103197855,1000003398
08.01.2021,ADULT SOCIAL CARE,LONDON CARE LTD,603.5,PHY LTS 18-64,HOMECARE - C&V,2103197965,1000003398
08.01.2021,ADULT SOCIAL CARE,LONDON CARE LTD,607.75,PHY LTS 18-64,HOMECARE - C&V,2103197620,1000003398
08.01.2021,ADULT SOCIAL CARE,LONDON CARE LTD,626.64,PHY LTS 18-64,HOMECARE - C&V,2103197667,1000003398
08.01.2021,ADULT SOCIAL CARE,LONDON CARE LTD,646,PHY LTS 18-64,HOMECARE - C&V,2103197976,1000003398
08.01.2021,ADULT SOCIAL CARE,LONDON CARE LTD,650.71,PHY LTS 18-64,HOMECARE - C&V,2103197944,1000003398
08.01.2021,ADULT SOCIAL CARE,LONDON CARE LTD,675.77,PHY LTS 18-64,HOMECARE - C&V,2103197783,1000003398
08.01.2021,ADULT SOCIAL CARE,LONDON CARE LTD,689.28,PHY LTS 18-64,HOMECARE - C&V,2103197567,1000003398
08.01.2021,ADULT SOCIAL CARE,LONDON CARE LTD,698.24,PHY LTS 18-64,HOMECARE - C&V,2103197890,1000003398
08.01.2021,ADULT SOCIAL CARE,LONDON CARE LTD,702.71,PHY LTS 18-64,HOMECARE - C&V,2103197674,1000003398
08.01.2021,ADULT SOCIAL CARE,LONDON CARE LTD,709.75,PHY LTS 18-64,HOMECARE - C&V,2103197624,1000003398
08.01.2021,ADULT SOCIAL CARE,LONDON CARE LTD,709.75,PHY LTS 18-64,HOMECARE - C&V,2103197739,1000003398
08.01.2021,ADULT SOCIAL CARE,LONDON CARE LTD,721.46,PHY LTS 18-64,HOMECARE - C&V,2103197789,1000003398
08.01.2021,ADULT SOCIAL CARE,LONDON CARE LTD,766.04,PHY LTS 18-64,HOMECARE - C&V,2103197904,1000003398
08.01.2021,ADULT SOCIAL CARE,LONDON CARE LTD,786.25,PHY LTS 18-64,HOMECARE - C&V,2103197967,1000003398
08.01.2021,ADULT SOCIAL CARE,LONDON CARE LTD,860.54,PHY LTS 18-64,HOMECARE - C&V,2103197627,1000003398
08.01.2021,ADULT SOCIAL CARE,LONDON CARE LTD,895.28,PHY LTS 18-64,HOMECARE - C&V,2103197880,1000003398
08.01.2021,ADULT SOCIAL CARE,LONDON CARE LTD,899.1,PHY LTS 18-64,HOMECARE - C&V,2103197577,1000003398
08.01.2021,ADULT SOCIAL CARE,LONDON CARE LTD,911.63,PHY LTS 18-64,HOMECARE - C&V,2103197630,1000003398
08.01.2021,ADULT SOCIAL CARE,LONDON CARE LTD,936.52,PHY LTS 18-64,HOMECARE - C&V,2103197680,1000003398
08.01.2021,ADULT SOCIAL CARE,LONDON CARE LTD,989.11,PHY LTS 18-64,HOMECARE - C&V,2103197733,1000003398
08.01.2021,ADULT SOCIAL CARE,LONDON CARE LTD,"1,071.00",PHY LTS 18-64,HOMECARE - C&V,2103197712,1000003398
08.01.2021,ADULT SOCIAL CARE,LONDON CARE LTD,"1,074.06",PHY LTS 18-64,HOMECARE - C&V,2103197940,1000003398
08.01.2021,ADULT SOCIAL CARE,LONDON CARE LTD,"1,126.41",PHY LTS 18-64,HOMECARE - C&V,2103197617,1000003398
08.01.2021,ADULT SOCIAL CARE,LONDON CARE LTD,"1,172.66",PHY LTS 18-64,HOMECARE - C&V,2103197691,1000003398
08.01.2021,ADULT SOCIAL CARE,LONDON CARE LTD,"1,199.36",PHY LTS 18-64,HOMECARE - C&V,2103197690,1000003398
08.01.2021,ADULT SOCIAL CARE,LONDON CARE LTD,"1,393.60",PHY LTS 18-64,HOMECARE - C&V,2103197959,1000003398
08.01.2021,ADULT SOCIAL CARE,LONDON CARE LTD,"1,407.12",PHY LTS 18-64,HOMECARE - C&V,2103197687,1000003398
08.01.2021,ADULT SOCIAL CARE,LONDON CARE LTD,"1,481.37",PHY LTS 18-64,HOMECARE - C&V,2103197653,1000003398
08.01.2021,ADULT SOCIAL CARE,LONDON CARE LTD,"1,895.50",PHY LTS 18-64,HOMECARE - C&V,2103197650,1000003398
08.01.2021,ADULT SOCIAL CARE,LONDON CARE LTD,"1,989.00",PHY LTS 18-64,HOMECARE - C&V,2103197884,1000003398
08.01.2021,ADULT SOCIAL CARE,LONDON CARE LTD,"2,273.61",PHY LTS 18-64,HOMECARE - C&V,2103197984,1000003398
08.01.2021,ADULT SOCIAL CARE,LONDON CARE LTD,"2,419.23",PHY LTS 18-64,HOMECARE - C&V,2103197862,1000003398
08.01.2021,ADULT SOCIAL CARE,LONDON CARE LTD,"3,178.04",PHY LTS 18-64,HOMECARE - C&V,2103197585,1000003398
08.01.2021,ADULT SOCIAL CARE,LONDON CARE LTD,"3,502.00",PHY LTS 18-64,HOMECARE - C&V,2103197869,1000003398
08.01.2021,ADULT SOCIAL CARE,LONDON CARE LTD,"3,513.59",PHY LTS 18-64,HOMECARE - C&V,2103197755,1000003398
08.01.2021,ADULT SOCIAL CARE,LONDON CARE LTD,366.36,PHY LTS 18-64,HOMECARE - SPOT,2103197622,1000003398
08.01.2021,ADULT SOCIAL CARE,LONDON CARE LTD,476,PHY LTS 18-64,HOMECARE - SPOT,2103197737,1000003398
08.01.2021,ADULT SOCIAL CARE,BLISSETT CARE LTD,539.53,PHY LTS 18-64,HOMECARE - C&V,2103198030,1000042627
08.01.2021,ADULT SOCIAL CARE,BLISSETT CARE LTD,615.22,PHY LTS 18-64,HOMECARE - C&V,2103198026,1000042627
08.01.2021,ADULT SOCIAL CARE,BLISSETT CARE LTD,636.23,PHY LTS 18-64,HOMECARE - C&V,2103197999,1000042627
08.01.2021,ADULT SOCIAL CARE,BLISSETT CARE LTD,734.44,PHY LTS 18-64,HOMECARE - C&V,2103198016,1000042627
08.01.2021,ADULT SOCIAL CARE,BLISSETT CARE LTD,900.57,PHY LTS 18-64,HOMECARE - C&V,2103198019,1000042627
08.01.2021,ADULT SOCIAL CARE,BLISSETT CARE LTD,945.17,PHY LTS 18-64,HOMECARE - C&V,2103198031,1000042627
08.01.2021,ADULT SOCIAL CARE,CONTACT PROFESSIONALS,478.8,PHY LTS 18-64,OTHER PAYMENTS FOR CLIENTS,5902450229,1000057263
08.01.2021,ADULT SOCIAL CARE,SUPREME CARE SERVICES LTD,261.8,PHY LTS 18-64,HOMECARE - C&V,2103197058,1000059416
08.01.2021,ADULT SOCIAL CARE,SUPREME CARE SERVICES LTD,261.89,PHY LTS 18-64,HOMECARE - C&V,2103197318,1000059416
08.01.2021,ADULT SOCIAL CARE,SUPREME CARE SERVICES LTD,279.32,PHY LTS 18-64,HOMECARE - C&V,2103197082,1000059416
08.01.2021,ADULT SOCIAL CARE,SUPREME CARE SERVICES LTD,281.38,PHY LTS 18-64,HOMECARE - C&V,2103197181,1000059416
08.01.2021,ADULT SOCIAL CARE,SUPREME CARE SERVICES LTD,296.71,PHY LTS 18-64,HOMECARE - C&V,2103197118,1000059416
08.01.2021,ADULT SOCIAL CARE,SUPREME CARE SERVICES LTD,325.77,PHY LTS 18-64,HOMECARE - C&V,2103197391,1000059416
08.01.2021,ADULT SOCIAL CARE,SUPREME CARE SERVICES LTD,353.43,PHY LTS 18-64,HOMECARE - C&V,2103197141,1000059416
08.01.2021,ADULT SOCIAL CARE,SUPREME CARE SERVICES LTD,353.79,PHY LTS 18-64,HOMECARE - C&V,2103197157,1000059416
08.01.2021,ADULT SOCIAL CARE,SUPREME CARE SERVICES LTD,366.52,PHY LTS 18-64,HOMECARE - C&V,2103197072,1000059416
08.01.2021,ADULT SOCIAL CARE,SUPREME CARE SERVICES LTD,370.12,PHY LTS 18-64,HOMECARE - C&V,2103197412,1000059416
08.01.2021,ADULT SOCIAL CARE,SUPREME CARE SERVICES LTD,401.41,PHY LTS 18-64,HOMECARE - C&V,2103197190,1000059416
08.01.2021,ADULT SOCIAL CARE,SUPREME CARE SERVICES LTD,453.75,PHY LTS 18-64,HOMECARE - C&V,2103197266,1000059416
08.01.2021,ADULT SOCIAL CARE,SUPREME CARE SERVICES LTD,466.68,PHY LTS 18-64,HOMECARE - C&V,2103197127,1000059416
08.01.2021,ADULT SOCIAL CARE,SUPREME CARE SERVICES LTD,477.47,PHY LTS 18-64,HOMECARE - C&V,2103197283,1000059416
08.01.2021,ADULT SOCIAL CARE,SUPREME CARE SERVICES LTD,481.93,PHY LTS 18-64,HOMECARE - C&V,2103197160,1000059416
08.01.2021,ADULT SOCIAL CARE,SUPREME CARE SERVICES LTD,497.31,PHY LTS 18-64,HOMECARE - C&V,2103197390,1000059416
08.01.2021,ADULT SOCIAL CARE,SUPREME CARE SERVICES LTD,498.99,PHY LTS 18-64,HOMECARE - C&V,2103197053,1000059416
08.01.2021,ADULT SOCIAL CARE,SUPREME CARE SERVICES LTD,501.08,PHY LTS 18-64,HOMECARE - C&V,2103197449,1000059416
08.01.2021,ADULT SOCIAL CARE,SUPREME CARE SERVICES LTD,506.28,PHY LTS 18-64,HOMECARE - C&V,2103197322,1000059416
08.01.2021,ADULT SOCIAL CARE,SUPREME CARE SERVICES LTD,545.5,PHY LTS 18-64,HOMECARE - C&V,2103197206,1000059416
08.01.2021,ADULT SOCIAL CARE,SUPREME CARE SERVICES LTD,562.93,PHY LTS 18-64,HOMECARE - C&V,2103197137,1000059416
08.01.2021,ADULT SOCIAL CARE,SUPREME CARE SERVICES LTD,601.16,PHY LTS 18-64,HOMECARE - C&V,2103197131,1000059416
08.01.2021,ADULT SOCIAL CARE,SUPREME CARE SERVICES LTD,635.26,PHY LTS 18-64,HOMECARE - C&V,2103197117,1000059416
08.01.2021,ADULT SOCIAL CARE,SUPREME CARE SERVICES LTD,637.12,PHY LTS 18-64,HOMECARE - C&V,2103197466,1000059416
08.01.2021,ADULT SOCIAL CARE,SUPREME CARE SERVICES LTD,658.84,PHY LTS 18-64,HOMECARE - C&V,2103197086,1000059416
08.01.2021,ADULT SOCIAL CARE,SUPREME CARE SERVICES LTD,663.11,PHY LTS 18-64,HOMECARE - C&V,2103197170,1000059416
08.01.2021,ADULT SOCIAL CARE,SUPREME CARE SERVICES LTD,663.3,PHY LTS 18-64,HOMECARE - C&V,2103197361,1000059416
08.01.2021,ADULT SOCIAL CARE,SUPREME CARE SERVICES LTD,689.47,PHY LTS 18-64,HOMECARE - C&V,2103197454,1000059416
08.01.2021,ADULT SOCIAL CARE,SUPREME CARE SERVICES LTD,737.52,PHY LTS 18-64,HOMECARE - C&V,2103197208,1000059416
08.01.2021,ADULT SOCIAL CARE,SUPREME CARE SERVICES LTD,746.16,PHY LTS 18-64,HOMECARE - C&V,2103197076,1000059416
08.01.2021,ADULT SOCIAL CARE,SUPREME CARE SERVICES LTD,758.87,PHY LTS 18-64,HOMECARE - C&V,2103197400,1000059416
08.01.2021,ADULT SOCIAL CARE,SUPREME CARE SERVICES LTD,780.17,PHY LTS 18-64,HOMECARE - C&V,2103197228,1000059416
08.01.2021,ADULT SOCIAL CARE,SUPREME CARE SERVICES LTD,784.34,PHY LTS 18-64,HOMECARE - C&V,2103197288,1000059416
08.01.2021,ADULT SOCIAL CARE,SUPREME CARE SERVICES LTD,822.58,PHY LTS 18-64,HOMECARE - C&V,2103197265,1000059416
08.01.2021,ADULT SOCIAL CARE,SUPREME CARE SERVICES LTD,824.2,PHY LTS 18-64,HOMECARE - C&V,2103197452,1000059416
08.01.2021,ADULT SOCIAL CARE,SUPREME CARE SERVICES LTD,829.07,PHY LTS 18-64,HOMECARE - C&V,2103197373,1000059416
08.01.2021,ADULT SOCIAL CARE,SUPREME CARE SERVICES LTD,868.41,PHY LTS 18-64,HOMECARE - C&V,2103197223,1000059416
08.01.2021,ADULT SOCIAL CARE,SUPREME CARE SERVICES LTD,898.92,PHY LTS 18-64,HOMECARE - C&V,2103197196,1000059416
08.01.2021,ADULT SOCIAL CARE,SUPREME CARE SERVICES LTD,908.16,PHY LTS 18-64,HOMECARE - C&V,2103197387,1000059416
08.01.2021,ADULT SOCIAL CARE,SUPREME CARE SERVICES LTD,916.49,PHY LTS 18-64,HOMECARE - C&V,2103197432,1000059416
08.01.2021,ADULT SOCIAL CARE,SUPREME CARE SERVICES LTD,938.3,PHY LTS 18-64,HOMECARE - C&V,2103197212,1000059416
08.01.2021,ADULT SOCIAL CARE,SUPREME CARE SERVICES LTD,951.31,PHY LTS 18-64,HOMECARE - C&V,2103197371,1000059416
08.01.2021,ADULT SOCIAL CARE,SUPREME CARE SERVICES LTD,951.36,PHY LTS 18-64,HOMECARE - C&V,2103197077,1000059416
08.01.2021,ADULT SOCIAL CARE,SUPREME CARE SERVICES LTD,"1,006.18",PHY LTS 18-64,HOMECARE - C&V,2103197281,1000059416
08.01.2021,ADULT SOCIAL CARE,SUPREME CARE SERVICES LTD,"1,073.40",PHY LTS 18-64,HOMECARE - C&V,2103197378,1000059416
08.01.2021,ADULT SOCIAL CARE,SUPREME CARE SERVICES LTD,"1,112.83",PHY LTS 18-64,HOMECARE - C&V,2103197333,1000059416
08.01.2021,ADULT SOCIAL CARE,SUPREME CARE SERVICES LTD,"1,221.52",PHY LTS 18-64,HOMECARE - C&V,2103197308,1000059416
08.01.2021,ADULT SOCIAL CARE,SUPREME CARE SERVICES LTD,"1,269.88",PHY LTS 18-64,HOMECARE - C&V,2103197353,1000059416
08.01.2021,ADULT SOCIAL CARE,SUPREME CARE SERVICES LTD,"1,274.02",PHY LTS 18-64,HOMECARE - C&V,2103197269,1000059416
08.01.2021,ADULT SOCIAL CARE,SUPREME CARE SERVICES LTD,"1,282.98",PHY LTS 18-64,HOMECARE - C&V,2103197119,1000059416
08.01.2021,ADULT SOCIAL CARE,SUPREME CARE SERVICES LTD,"1,323.65",PHY LTS 18-64,HOMECARE - C&V,2103197272,1000059416
08.01.2021,ADULT SOCIAL CARE,SUPREME CARE SERVICES LTD,"1,334.29",PHY LTS 18-64,HOMECARE - C&V,2103197189,1000059416
08.01.2021,ADULT SOCIAL CARE,SUPREME CARE SERVICES LTD,"1,365.87",PHY LTS 18-64,HOMECARE - C&V,2103197331,1000059416
08.01.2021,ADULT SOCIAL CARE,SUPREME CARE SERVICES LTD,"1,418.13",PHY LTS 18-64,HOMECARE - C&V,2103197443,1000059416
08.01.2021,ADULT SOCIAL CARE,SUPREME CARE SERVICES LTD,"2,004.02",PHY LTS 18-64,HOMECARE - C&V,2103197395,1000059416
08.01.2021,ADULT SOCIAL CARE,SUPREME CARE SERVICES LTD,"2,089.84",PHY LTS 18-64,HOMECARE - C&V,2103197463,1000059416
08.01.2021,ADULT SOCIAL CARE,SUPREME CARE SERVICES LTD,"2,483.39",PHY LTS 18-64,HOMECARE - C&V,2103197129,1000059416
08.01.2021,ADULT SOCIAL CARE,SUPREME CARE SERVICES LTD,"3,226.90",PHY LTS 18-64,HOMECARE - C&V,2103197121,1000059416
08.01.2021,ADULT SOCIAL CARE,SUPREME CARE SERVICES LTD,"3,371.83",PHY LTS 18-64,HOMECARE - C&V,2103197241,1000059416
08.01.2021,ADULT SOCIAL CARE,SUPREME CARE SERVICES LTD,"4,045.12",PHY LTS 18-64,HOMECARE - C&V,2103197080,1000059416
08.01.2021,ADULT SOCIAL CARE,PROFAD CARE AGENCY,"1,452.99",PHY LTS 18-64,HOMECARE - C&V,2103197506,1000079032
08.01.2021,ADULT SOCIAL CARE,PROFAD CARE AGENCY,"3,038.08",PHY LTS 18-64,HOMECARE - C&V,2103197498,1000079032
08.01.2021,ADULT SOCIAL CARE,PROFAD CARE AGENCY,264.18,PHY LTS 18-64,HOMECARE - SPOT,2103197492,1000079032
08.01.2021,ADULT SOCIAL CARE,PROFAD CARE AGENCY,396.28,PHY LTS 18-64,HOMECARE - SPOT,2103197532,1000079032
08.01.2021,ADULT SOCIAL CARE,PROFAD CARE AGENCY,528.36,PHY LTS 18-64,HOMECARE - SPOT,2103197526,1000079032
08.01.2021,ADULT SOCIAL CARE,PROFAD CARE AGENCY,641.59,PHY LTS 18-64,HOMECARE - SPOT,2103197496,1000079032
08.01.2021,ADULT SOCIAL CARE,PROFAD CARE AGENCY,717.08,PHY LTS 18-64,HOMECARE - SPOT,2103197486,1000079032
08.01.2021,ADULT SOCIAL CARE,PROFAD CARE AGENCY,919.91,PHY LTS 18-64,HOMECARE - SPOT,2103197483,1000079032
08.01.2021,ADULT SOCIAL CARE,PROFAD CARE AGENCY,981.24,PHY LTS 18-64,HOMECARE - SPOT,2103197491,1000079032
08.01.2021,ADULT SOCIAL CARE,PROFAD CARE AGENCY,"1,339.78",PHY LTS 18-64,HOMECARE - SPOT,2103197540,1000079032
08.01.2021,ADULT SOCIAL CARE,PROFAD CARE AGENCY,"3,245.64",PHY LTS 18-64,HOMECARE - SPOT,2103197531,1000079032
08.01.2021,ADULT SOCIAL CARE,PROFAD CARE AGENCY,"3,882.53",PHY LTS 18-64,HOMECARE - SPOT,2103197539,1000079032
08.01.2021,ADULT SOCIAL CARE,LONDON CARE LTD,250.6,PHY LTS 65+,HOMECARE - C&V,2103197615,1000003398
08.01.2021,ADULT SOCIAL CARE,LONDON CARE LTD,250.61,PHY LTS 65+,HOMECARE - C&V,2103197689,1000003398
08.01.2021,ADULT SOCIAL CARE,LONDON CARE LTD,255.08,PHY LTS 65+,HOMECARE - C&V,2103197769,1000003398
08.01.2021,ADULT SOCIAL CARE,LONDON CARE LTD,255.08,PHY LTS 65+,HOMECARE - C&V,2103197791,1000003398
08.01.2021,ADULT SOCIAL CARE,LONDON CARE LTD,264.03,PHY LTS 65+,HOMECARE - C&V,2103197836,1000003398
08.01.2021,ADULT SOCIAL CARE,LONDON CARE LTD,277.46,PHY LTS 65+,HOMECARE - C&V,2103197930,1000003398
08.01.2021,ADULT SOCIAL CARE,LONDON CARE LTD,282.03,PHY LTS 65+,HOMECARE - C&V,2103197612,1000003398
08.01.2021,ADULT SOCIAL CARE,LONDON CARE LTD,286.4,PHY LTS 65+,HOMECARE - C&V,2103197898,1000003398
08.01.2021,ADULT SOCIAL CARE,LONDON CARE LTD,289,PHY LTS 65+,HOMECARE - C&V,2103197723,1000003398
08.01.2021,ADULT SOCIAL CARE,LONDON CARE LTD,304.33,PHY LTS 65+,HOMECARE - C&V,2103197552,1000003398
08.01.2021,ADULT SOCIAL CARE,LONDON CARE LTD,313.32,PHY LTS 65+,HOMECARE - C&V,2103197601,1000003398
08.01.2021,ADULT SOCIAL CARE,LONDON CARE LTD,316.43,PHY LTS 65+,HOMECARE - C&V,2103197740,1000003398
08.01.2021,ADULT SOCIAL CARE,LONDON CARE LTD,322.2,PHY LTS 65+,HOMECARE - C&V,2103197763,1000003398
08.01.2021,ADULT SOCIAL CARE,LONDON CARE LTD,324.82,PHY LTS 65+,HOMECARE - C&V,2103197827,1000003398
08.01.2021,ADULT SOCIAL CARE,LONDON CARE LTD,325.19,PHY LTS 65+,HOMECARE - C&V,2103197787,1000003398
08.01.2021,ADULT SOCIAL CARE,LONDON CARE LTD,331.22,PHY LTS 65+,HOMECARE - C&V,2103197843,1000003398
08.01.2021,ADULT SOCIAL CARE,LONDON CARE LTD,337.28,PHY LTS 65+,HOMECARE - C&V,2103197853,1000003398
08.01.2021,ADULT SOCIAL CARE,LONDON CARE LTD,338.92,PHY LTS 65+,HOMECARE - C&V,2103197839,1000003398
08.01.2021,ADULT SOCIAL CARE,LONDON CARE LTD,343.76,PHY LTS 65+,HOMECARE - C&V,2103197640,1000003398
08.01.2021,ADULT SOCIAL CARE,LONDON CARE LTD,349.06,PHY LTS 65+,HOMECARE - C&V,2103197766,1000003398
08.01.2021,ADULT SOCIAL CARE,LONDON CARE LTD,352.75,PHY LTS 65+,HOMECARE - C&V,2103197871,1000003398
08.01.2021,ADULT SOCIAL CARE,LONDON CARE LTD,353.53,PHY LTS 65+,HOMECARE - C&V,2103197682,1000003398
08.01.2021,ADULT SOCIAL CARE,LONDON CARE LTD,353.54,PHY LTS 65+,HOMECARE - C&V,2103197720,1000003398
08.01.2021,ADULT SOCIAL CARE,LONDON CARE LTD,357,PHY LTS 65+,HOMECARE - C&V,2103197600,1000003398
08.01.2021,ADULT SOCIAL CARE,LONDON CARE LTD,357,PHY LTS 65+,HOMECARE - C&V,2103197764,1000003398
08.01.2021,ADULT SOCIAL CARE,LONDON CARE LTD,358,PHY LTS 65+,HOMECARE - C&V,2103197727,1000003398
08.01.2021,ADULT SOCIAL CARE,LONDON CARE LTD,362.6,PHY LTS 65+,HOMECARE - C&V,2103197821,1000003398
08.01.2021,ADULT SOCIAL CARE,LONDON CARE LTD,367.05,PHY LTS 65+,HOMECARE - C&V,2103197782,1000003398
08.01.2021,ADULT SOCIAL CARE,LONDON CARE LTD,371.55,PHY LTS 65+,HOMECARE - C&V,2103197731,1000003398
08.01.2021,ADULT SOCIAL CARE,LONDON CARE LTD,371.56,PHY LTS 65+,HOMECARE - C&V,2103197607,1000003398
08.01.2021,ADULT SOCIAL CARE,LONDON CARE LTD,371.56,PHY LTS 65+,HOMECARE - C&V,2103197725,1000003398
08.01.2021,ADULT SOCIAL CARE,LONDON CARE LTD,375.93,PHY LTS 65+,HOMECARE - C&V,2103197596,1000003398
08.01.2021,ADULT SOCIAL CARE,LONDON CARE LTD,376.03,PHY LTS 65+,HOMECARE - C&V,2103197837,1000003398
08.01.2021,ADULT SOCIAL CARE,LONDON CARE LTD,376.04,PHY LTS 65+,HOMECARE - C&V,2103197849,1000003398
08.01.2021,ADULT SOCIAL CARE,LONDON CARE LTD,376.04,PHY LTS 65+,HOMECARE - C&V,2103197919,1000003398
08.01.2021,ADULT SOCIAL CARE,LONDON CARE LTD,393.81,PHY LTS 65+,HOMECARE - C&V,2103197886,1000003398
08.01.2021,ADULT SOCIAL CARE,LONDON CARE LTD,398.75,PHY LTS 65+,HOMECARE - C&V,2103197758,1000003398
08.01.2021,ADULT SOCIAL CARE,LONDON CARE LTD,416.5,PHY LTS 65+,HOMECARE - C&V,2103197907,1000003398
08.01.2021,ADULT SOCIAL CARE,LONDON CARE LTD,424.72,PHY LTS 65+,HOMECARE - C&V,2103197850,1000003398
08.01.2021,ADULT SOCIAL CARE,LONDON CARE LTD,438.68,PHY LTS 65+,HOMECARE - C&V,2103197732,1000003398
08.01.2021,ADULT SOCIAL CARE,LONDON CARE LTD,438.68,PHY LTS 65+,HOMECARE - C&V,2103197870,1000003398
08.01.2021,ADULT SOCIAL CARE,LONDON CARE LTD,438.7,PHY LTS 65+,HOMECARE - C&V,2103197734,1000003398
08.01.2021,ADULT SOCIAL CARE,LONDON CARE LTD,441.54,PHY LTS 65+,HOMECARE - C&V,2103197969,1000003398
08.01.2021,ADULT SOCIAL CARE,LONDON CARE LTD,450.5,PHY LTS 65+,HOMECARE - C&V,2103197736,1000003398
08.01.2021,ADULT SOCIAL CARE,LONDON CARE LTD,454.75,PHY LTS 65+,HOMECARE - C&V,2103197978,1000003398
08.01.2021,ADULT SOCIAL CARE,LONDON CARE LTD,460.97,PHY LTS 65+,HOMECARE - C&V,2103197603,1000003398
08.01.2021,ADULT SOCIAL CARE,LONDON CARE LTD,462.19,PHY LTS 65+,HOMECARE - C&V,2103197852,1000003398
08.01.2021,ADULT SOCIAL CARE,LONDON CARE LTD,480.25,PHY LTS 65+,HOMECARE - C&V,2103197694,1000003398
08.01.2021,ADULT SOCIAL CARE,LONDON CARE LTD,492.26,PHY LTS 65+,HOMECARE - C&V,2103197934,1000003398
08.01.2021,ADULT SOCIAL CARE,LONDON CARE LTD,496.14,PHY LTS 65+,HOMECARE - C&V,2103197804,1000003398
08.01.2021,ADULT SOCIAL CARE,LONDON CARE LTD,497.25,PHY LTS 65+,HOMECARE - C&V,2103197774,1000003398
08.01.2021,ADULT SOCIAL CARE,LONDON CARE LTD,497.25,PHY LTS 65+,HOMECARE - C&V,2103197966,1000003398
08.01.2021,ADULT SOCIAL CARE,LONDON CARE LTD,501.32,PHY LTS 65+,HOMECARE - C&V,2103197704,1000003398
08.01.2021,ADULT SOCIAL CARE,LONDON CARE LTD,509.3,PHY LTS 65+,HOMECARE - C&V,2103197628,1000003398
08.01.2021,ADULT SOCIAL CARE,LONDON CARE LTD,510.16,PHY LTS 65+,HOMECARE - C&V,2103197671,1000003398
08.01.2021,ADULT SOCIAL CARE,LONDON CARE LTD,543.18,PHY LTS 65+,HOMECARE - C&V,2103197563,1000003398
08.01.2021,ADULT SOCIAL CARE,LONDON CARE LTD,544,PHY LTS 65+,HOMECARE - C&V,2103197719,1000003398
08.01.2021,ADULT SOCIAL CARE,LONDON CARE LTD,563.55,PHY LTS 65+,HOMECARE - C&V,2103197664,1000003398
08.01.2021,ADULT SOCIAL CARE,LONDON CARE LTD,565.25,PHY LTS 65+,HOMECARE - C&V,2103197800,1000003398
08.01.2021,ADULT SOCIAL CARE,LONDON CARE LTD,568.45,PHY LTS 65+,HOMECARE - C&V,2103197748,1000003398
08.01.2021,ADULT SOCIAL CARE,LONDON CARE LTD,570.26,PHY LTS 65+,HOMECARE - C&V,2103197812,1000003398
08.01.2021,ADULT SOCIAL CARE,LONDON CARE LTD,582.25,PHY LTS 65+,HOMECARE - C&V,2103197814,1000003398
08.01.2021,ADULT SOCIAL CARE,LONDON CARE LTD,586.5,PHY LTS 65+,HOMECARE - C&V,2103197810,1000003398
08.01.2021,ADULT SOCIAL CARE,LONDON CARE LTD,595,PHY LTS 65+,HOMECARE - C&V,2103197569,1000003398
08.01.2021,ADULT SOCIAL CARE,LONDON CARE LTD,595.2,PHY LTS 65+,HOMECARE - C&V,2103197790,1000003398
08.01.2021,ADULT SOCIAL CARE,LONDON CARE LTD,599.25,PHY LTS 65+,HOMECARE - C&V,2103197654,1000003398
08.01.2021,ADULT SOCIAL CARE,LONDON CARE LTD,599.65,PHY LTS 65+,HOMECARE - C&V,2103197554,1000003398
08.01.2021,ADULT SOCIAL CARE,LONDON CARE LTD,603.56,PHY LTS 65+,HOMECARE - C&V,2103197619,1000003398
08.01.2021,ADULT SOCIAL CARE,LONDON CARE LTD,604.26,PHY LTS 65+,HOMECARE - C&V,2103197677,1000003398
08.01.2021,ADULT SOCIAL CARE,LONDON CARE LTD,607.74,PHY LTS 65+,HOMECARE - C&V,2103197571,1000003398
08.01.2021,ADULT SOCIAL CARE,LONDON CARE LTD,613.16,PHY LTS 65+,HOMECARE - C&V,2103197673,1000003398
08.01.2021,ADULT SOCIAL CARE,LONDON CARE LTD,616.47,PHY LTS 65+,HOMECARE - C&V,2103197669,1000003398
08.01.2021,ADULT SOCIAL CARE,LONDON CARE LTD,619.15,PHY LTS 65+,HOMECARE - C&V,2103197894,1000003398
08.01.2021,ADULT SOCIAL CARE,LONDON CARE LTD,622.16,PHY LTS 65+,HOMECARE - C&V,2103197873,1000003398
08.01.2021,ADULT SOCIAL CARE,LONDON CARE LTD,623.03,PHY LTS 65+,HOMECARE - C&V,2103197616,1000003398
08.01.2021,ADULT SOCIAL CARE,LONDON CARE LTD,626.64,PHY LTS 65+,HOMECARE - C&V,2103197937,1000003398
08.01.2021,ADULT SOCIAL CARE,LONDON CARE LTD,628.06,PHY LTS 65+,HOMECARE - C&V,2103197559,1000003398
08.01.2021,ADULT SOCIAL CARE,LONDON CARE LTD,632.7,PHY LTS 65+,HOMECARE - C&V,2103197578,1000003398
08.01.2021,ADULT SOCIAL CARE,LONDON CARE LTD,633.25,PHY LTS 65+,HOMECARE - C&V,2103197847,1000003398
08.01.2021,ADULT SOCIAL CARE,LONDON CARE LTD,640.05,PHY LTS 65+,HOMECARE - C&V,2103197729,1000003398
08.01.2021,ADULT SOCIAL CARE,LONDON CARE LTD,640.06,PHY LTS 65+,HOMECARE - C&V,2103197558,1000003398
08.01.2021,ADULT SOCIAL CARE,LONDON CARE LTD,656.26,PHY LTS 65+,HOMECARE - C&V,2103197971,1000003398
08.01.2021,ADULT SOCIAL CARE,LONDON CARE LTD,660.58,PHY LTS 65+,HOMECARE - C&V,2103197618,1000003398
08.01.2021,ADULT SOCIAL CARE,LONDON CARE LTD,661.46,PHY LTS 65+,HOMECARE - C&V,2103197656,1000003398
08.01.2021,ADULT SOCIAL CARE,LONDON CARE LTD,670.13,PHY LTS 65+,HOMECARE - C&V,2103197681,1000003398
08.01.2021,ADULT SOCIAL CARE,LONDON CARE LTD,674.52,PHY LTS 65+,HOMECARE - C&V,2103197811,1000003398
08.01.2021,ADULT SOCIAL CARE,LONDON CARE LTD,689.29,PHY LTS 65+,HOMECARE - C&V,2103197564,1000003398
08.01.2021,ADULT SOCIAL CARE,LONDON CARE LTD,695.28,PHY LTS 65+,HOMECARE - C&V,2103197697,1000003398
08.01.2021,ADULT SOCIAL CARE,LONDON CARE LTD,697,PHY LTS 65+,HOMECARE - C&V,2103197775,1000003398
08.01.2021,ADULT SOCIAL CARE,LONDON CARE LTD,707.18,PHY LTS 65+,HOMECARE - C&V,2103197780,1000003398
08.01.2021,ADULT SOCIAL CARE,LONDON CARE LTD,709.75,PHY LTS 65+,HOMECARE - C&V,2103197716,1000003398
08.01.2021,ADULT SOCIAL CARE,LONDON CARE LTD,720.27,PHY LTS 65+,HOMECARE - C&V,2103197644,1000003398
08.01.2021,ADULT SOCIAL CARE,LONDON CARE LTD,731,PHY LTS 65+,HOMECARE - C&V,2103197724,1000003398
08.01.2021,ADULT SOCIAL CARE,LONDON CARE LTD,733.92,PHY LTS 65+,HOMECARE - C&V,2103197555,1000003398
08.01.2021,ADULT SOCIAL CARE,LONDON CARE LTD,735.25,PHY LTS 65+,HOMECARE - C&V,2103197641,1000003398
08.01.2021,ADULT SOCIAL CARE,LONDON CARE LTD,742.98,PHY LTS 65+,HOMECARE - C&V,2103197557,1000003398
08.01.2021,ADULT SOCIAL CARE,LONDON CARE LTD,745.38,PHY LTS 65+,HOMECARE - C&V,2103197962,1000003398
08.01.2021,ADULT SOCIAL CARE,LONDON CARE LTD,747.45,PHY LTS 65+,HOMECARE - C&V,2103197762,1000003398
08.01.2021,ADULT SOCIAL CARE,LONDON CARE LTD,747.59,PHY LTS 65+,HOMECARE - C&V,2103197921,1000003398
08.01.2021,ADULT SOCIAL CARE,LONDON CARE LTD,756.43,PHY LTS 65+,HOMECARE - C&V,2103197561,1000003398
08.01.2021,ADULT SOCIAL CARE,LONDON CARE LTD,765,PHY LTS 65+,HOMECARE - C&V,2103197816,1000003398
08.01.2021,ADULT SOCIAL CARE,LONDON CARE LTD,774.33,PHY LTS 65+,HOMECARE - C&V,2103197604,1000003398
08.01.2021,ADULT SOCIAL CARE,LONDON CARE LTD,777.75,PHY LTS 65+,HOMECARE - C&V,2103197872,1000003398
08.01.2021,ADULT SOCIAL CARE,LONDON CARE LTD,778.9,PHY LTS 65+,HOMECARE - C&V,2103197912,1000003398
08.01.2021,ADULT SOCIAL CARE,LONDON CARE LTD,782.64,PHY LTS 65+,HOMECARE - C&V,2103197714,1000003398
08.01.2021,ADULT SOCIAL CARE,LONDON CARE LTD,783.27,PHY LTS 65+,HOMECARE - C&V,2103197946,1000003398
08.01.2021,ADULT SOCIAL CARE,LONDON CARE LTD,786.25,PHY LTS 65+,HOMECARE - C&V,2103197854,1000003398
08.01.2021,ADULT SOCIAL CARE,LONDON CARE LTD,788.15,PHY LTS 65+,HOMECARE - C&V,2103197580,1000003398
08.01.2021,ADULT SOCIAL CARE,LONDON CARE LTD,801.06,PHY LTS 65+,HOMECARE - C&V,2103197895,1000003398
08.01.2021,ADULT SOCIAL CARE,LONDON CARE LTD,801.15,PHY LTS 65+,HOMECARE - C&V,2103197897,1000003398
08.01.2021,ADULT SOCIAL CARE,LONDON CARE LTD,824.52,PHY LTS 65+,HOMECARE - C&V,2103197572,1000003398
08.01.2021,ADULT SOCIAL CARE,LONDON CARE LTD,832.37,PHY LTS 65+,HOMECARE - C&V,2103197726,1000003398
08.01.2021,ADULT SOCIAL CARE,LONDON CARE LTD,833,PHY LTS 65+,HOMECARE - C&V,2103197742,1000003398
08.01.2021,ADULT SOCIAL CARE,LONDON CARE LTD,841.41,PHY LTS 65+,HOMECARE - C&V,2103197963,1000003398
08.01.2021,ADULT SOCIAL CARE,LONDON CARE LTD,850,PHY LTS 65+,HOMECARE - C&V,2103197721,1000003398
08.01.2021,ADULT SOCIAL CARE,LONDON CARE LTD,854.96,PHY LTS 65+,HOMECARE - C&V,2103197752,1000003398
08.01.2021,ADULT SOCIAL CARE,LONDON CARE LTD,871.25,PHY LTS 65+,HOMECARE - C&V,2103197857,1000003398
08.01.2021,ADULT SOCIAL CARE,LONDON CARE LTD,886.21,PHY LTS 65+,HOMECARE - C&V,2103197776,1000003398
08.01.2021,ADULT SOCIAL CARE,LONDON CARE LTD,895.01,PHY LTS 65+,HOMECARE - C&V,2103197900,1000003398
08.01.2021,ADULT SOCIAL CARE,LONDON CARE LTD,908.46,PHY LTS 65+,HOMECARE - C&V,2103197589,1000003398
08.01.2021,ADULT SOCIAL CARE,LONDON CARE LTD,920.02,PHY LTS 65+,HOMECARE - C&V,2103197902,1000003398
08.01.2021,ADULT SOCIAL CARE,LONDON CARE LTD,922.25,PHY LTS 65+,HOMECARE - C&V,2103197823,1000003398
08.01.2021,ADULT SOCIAL CARE,LONDON CARE LTD,932.99,PHY LTS 65+,HOMECARE - C&V,2103197914,1000003398
08.01.2021,ADULT SOCIAL CARE,LONDON CARE LTD,934.66,PHY LTS 65+,HOMECARE - C&V,2103197710,1000003398
08.01.2021,ADULT SOCIAL CARE,LONDON CARE LTD,939.25,PHY LTS 65+,HOMECARE - C&V,2103197745,1000003398
08.01.2021,ADULT SOCIAL CARE,LONDON CARE LTD,944.34,PHY LTS 65+,HOMECARE - C&V,2103197832,1000003398
08.01.2021,ADULT SOCIAL CARE,LONDON CARE LTD,945.86,PHY LTS 65+,HOMECARE - C&V,2103197835,1000003398
08.01.2021,ADULT SOCIAL CARE,LONDON CARE LTD,948.92,PHY LTS 65+,HOMECARE - C&V,2103197595,1000003398
08.01.2021,ADULT SOCIAL CARE,LONDON CARE LTD,950.32,PHY LTS 65+,HOMECARE - C&V,2103197735,1000003398
08.01.2021,ADULT SOCIAL CARE,LONDON CARE LTD,957.7,PHY LTS 65+,HOMECARE - C&V,2103197983,1000003398
08.01.2021,ADULT SOCIAL CARE,LONDON CARE LTD,957.77,PHY LTS 65+,HOMECARE - C&V,2103197909,1000003398
08.01.2021,ADULT SOCIAL CARE,LONDON CARE LTD,971.23,PHY LTS 65+,HOMECARE - C&V,2103197767,1000003398
08.01.2021,ADULT SOCIAL CARE,LONDON CARE LTD,974.31,PHY LTS 65+,HOMECARE - C&V,2103197809,1000003398
08.01.2021,ADULT SOCIAL CARE,LONDON CARE LTD,975.7,PHY LTS 65+,HOMECARE - C&V,2103197781,1000003398
08.01.2021,ADULT SOCIAL CARE,LONDON CARE LTD,981.75,PHY LTS 65+,HOMECARE - C&V,2103197826,1000003398
08.01.2021,ADULT SOCIAL CARE,LONDON CARE LTD,993.6,PHY LTS 65+,HOMECARE - C&V,2103197602,1000003398
08.01.2021,ADULT SOCIAL CARE,LONDON CARE LTD,998.75,PHY LTS 65+,HOMECARE - C&V,2103197874,1000003398
08.01.2021,ADULT SOCIAL CARE,LONDON CARE LTD,"1,007.61",PHY LTS 65+,HOMECARE - C&V,2103197760,1000003398
08.01.2021,ADULT SOCIAL CARE,LONDON CARE LTD,"1,011.36",PHY LTS 65+,HOMECARE - C&V,2103197738,1000003398
08.01.2021,ADULT SOCIAL CARE,LONDON CARE LTD,"1,016.57",PHY LTS 65+,HOMECARE - C&V,2103197936,1000003398
08.01.2021,ADULT SOCIAL CARE,LONDON CARE LTD,"1,038.24",PHY LTS 65+,HOMECARE - C&V,2103197986,1000003398
08.01.2021,ADULT SOCIAL CARE,LONDON CARE LTD,"1,056.27",PHY LTS 65+,HOMECARE - C&V,2103197831,1000003398
08.01.2021,ADULT SOCIAL CARE,LONDON CARE LTD,"1,058.25",PHY LTS 65+,HOMECARE - C&V,2103197648,1000003398
08.01.2021,ADULT SOCIAL CARE,LONDON CARE LTD,"1,060.71",PHY LTS 65+,HOMECARE - C&V,2103197949,1000003398
08.01.2021,ADULT SOCIAL CARE,LONDON CARE LTD,"1,062.50",PHY LTS 65+,HOMECARE - C&V,2103197707,1000003398
08.01.2021,ADULT SOCIAL CARE,LONDON CARE LTD,"1,075.25",PHY LTS 65+,HOMECARE - C&V,2103197631,1000003398
08.01.2021,ADULT SOCIAL CARE,LONDON CARE LTD,"1,083.75",PHY LTS 65+,HOMECARE - C&V,2103197964,1000003398
08.01.2021,ADULT SOCIAL CARE,LONDON CARE LTD,"1,087.53",PHY LTS 65+,HOMECARE - C&V,2103197657,1000003398
08.01.2021,ADULT SOCIAL CARE,LONDON CARE LTD,"1,088.00",PHY LTS 65+,HOMECARE - C&V,2103197711,1000003398
08.01.2021,ADULT SOCIAL CARE,LONDON CARE LTD,"1,092.25",PHY LTS 65+,HOMECARE - C&V,2103197587,1000003398
08.01.2021,ADULT SOCIAL CARE,LONDON CARE LTD,"1,118.88",PHY LTS 65+,HOMECARE - C&V,2103197661,1000003398
08.01.2021,ADULT SOCIAL CARE,LONDON CARE LTD,"1,124.27",PHY LTS 65+,HOMECARE - C&V,2103197801,1000003398
08.01.2021,ADULT SOCIAL CARE,LONDON CARE LTD,"1,145.73",PHY LTS 65+,HOMECARE - C&V,2103197686,1000003398
08.01.2021,ADULT SOCIAL CARE,LONDON CARE LTD,"1,147.50",PHY LTS 65+,HOMECARE - C&V,2103197916,1000003398
08.01.2021,ADULT SOCIAL CARE,LONDON CARE LTD,"1,151.75",PHY LTS 65+,HOMECARE - C&V,2103197633,1000003398
08.01.2021,ADULT SOCIAL CARE,LONDON CARE LTD,"1,151.75",PHY LTS 65+,HOMECARE - C&V,2103197982,1000003398
08.01.2021,ADULT SOCIAL CARE,LONDON CARE LTD,"1,159.18",PHY LTS 65+,HOMECARE - C&V,2103197924,1000003398
08.01.2021,ADULT SOCIAL CARE,LONDON CARE LTD,"1,161.63",PHY LTS 65+,HOMECARE - C&V,2103197705,1000003398
08.01.2021,ADULT SOCIAL CARE,LONDON CARE LTD,"1,168.75",PHY LTS 65+,HOMECARE - C&V,2103197802,1000003398
08.01.2021,ADULT SOCIAL CARE,LONDON CARE LTD,"1,224.00",PHY LTS 65+,HOMECARE - C&V,2103197566,1000003398
08.01.2021,ADULT SOCIAL CARE,LONDON CARE LTD,"1,235.24",PHY LTS 65+,HOMECARE - C&V,2103197868,1000003398
08.01.2021,ADULT SOCIAL CARE,LONDON CARE LTD,"1,236.75",PHY LTS 65+,HOMECARE - C&V,2103197594,1000003398
08.01.2021,ADULT SOCIAL CARE,LONDON CARE LTD,"1,261.96",PHY LTS 65+,HOMECARE - C&V,2103197666,1000003398
08.01.2021,ADULT SOCIAL CARE,LONDON CARE LTD,"1,262.25",PHY LTS 65+,HOMECARE - C&V,2103197636,1000003398
08.01.2021,ADULT SOCIAL CARE,LONDON CARE LTD,"1,270.75",PHY LTS 65+,HOMECARE - C&V,2103197754,1000003398
08.01.2021,ADULT SOCIAL CARE,LONDON CARE LTD,"1,297.83",PHY LTS 65+,HOMECARE - C&V,2103197865,1000003398
08.01.2021,ADULT SOCIAL CARE,LONDON CARE LTD,"1,334.50",PHY LTS 65+,HOMECARE - C&V,2103197701,1000003398
08.01.2021,ADULT SOCIAL CARE,LONDON CARE LTD,"1,373.96",PHY LTS 65+,HOMECARE - C&V,2103197574,1000003398
08.01.2021,ADULT SOCIAL CARE,LONDON CARE LTD,"1,378.48",PHY LTS 65+,HOMECARE - C&V,2103197910,1000003398
08.01.2021,ADULT SOCIAL CARE,LONDON CARE LTD,"1,392.80",PHY LTS 65+,HOMECARE - C&V,2103197613,1000003398
08.01.2021,ADULT SOCIAL CARE,LONDON CARE LTD,"1,436.50",PHY LTS 65+,HOMECARE - C&V,2103197866,1000003398
08.01.2021,ADULT SOCIAL CARE,LONDON CARE LTD,"1,591.16",PHY LTS 65+,HOMECARE - C&V,2103197838,1000003398
08.01.2021,ADULT SOCIAL CARE,LONDON CARE LTD,"1,636.25",PHY LTS 65+,HOMECARE - C&V,2103197815,1000003398
08.01.2021,ADULT SOCIAL CARE,LONDON CARE LTD,"1,647.21",PHY LTS 65+,HOMECARE - C&V,2103197556,1000003398
08.01.2021,ADULT SOCIAL CARE,LONDON CARE LTD,"1,651.30",PHY LTS 65+,HOMECARE - C&V,2103197863,1000003398
08.01.2021,ADULT SOCIAL CARE,LONDON CARE LTD,"1,653.25",PHY LTS 65+,HOMECARE - C&V,2103197583,1000003398
08.01.2021,ADULT SOCIAL CARE,LONDON CARE LTD,"1,653.25",PHY LTS 65+,HOMECARE - C&V,2103197818,1000003398
08.01.2021,ADULT SOCIAL CARE,LONDON CARE LTD,"1,755.25",PHY LTS 65+,HOMECARE - C&V,2103197973,1000003398
08.01.2021,ADULT SOCIAL CARE,LONDON CARE LTD,"1,836.23",PHY LTS 65+,HOMECARE - C&V,2103197759,1000003398
08.01.2021,ADULT SOCIAL CARE,LONDON CARE LTD,"1,852.79",PHY LTS 65+,HOMECARE - C&V,2103197662,1000003398
08.01.2021,ADULT SOCIAL CARE,LONDON CARE LTD,"1,881.98",PHY LTS 65+,HOMECARE - C&V,2103197645,1000003398
08.01.2021,ADULT SOCIAL CARE,LONDON CARE LTD,"1,908.25",PHY LTS 65+,HOMECARE - C&V,2103197576,1000003398
08.01.2021,ADULT SOCIAL CARE,LONDON CARE LTD,"1,942.37",PHY LTS 65+,HOMECARE - C&V,2103197672,1000003398
08.01.2021,ADULT SOCIAL CARE,LONDON CARE LTD,"1,946.50",PHY LTS 65+,HOMECARE - C&V,2103197768,1000003398
08.01.2021,ADULT SOCIAL CARE,LONDON CARE LTD,"2,027.84",PHY LTS 65+,HOMECARE - C&V,2103197817,1000003398
08.01.2021,ADULT SOCIAL CARE,LONDON CARE LTD,"2,103.31",PHY LTS 65+,HOMECARE - C&V,2103197606,1000003398
08.01.2021,ADULT SOCIAL CARE,LONDON CARE LTD,"2,125.00",PHY LTS 65+,HOMECARE - C&V,2103197867,1000003398
08.01.2021,ADULT SOCIAL CARE,LONDON CARE LTD,"2,154.75",PHY LTS 65+,HOMECARE - C&V,2103197708,1000003398
08.01.2021,ADULT SOCIAL CARE,LONDON CARE LTD,"2,161.72",PHY LTS 65+,HOMECARE - C&V,2103197879,1000003398
08.01.2021,ADULT SOCIAL CARE,LONDON CARE LTD,"2,176.00",PHY LTS 65+,HOMECARE - C&V,2103197599,1000003398
08.01.2021,ADULT SOCIAL CARE,LONDON CARE LTD,"2,248.25",PHY LTS 65+,HOMECARE - C&V,2103197647,1000003398
08.01.2021,ADULT SOCIAL CARE,LONDON CARE LTD,"2,251.20",PHY LTS 65+,HOMECARE - C&V,2103197670,1000003398
08.01.2021,ADULT SOCIAL CARE,LONDON CARE LTD,"2,265.25",PHY LTS 65+,HOMECARE - C&V,2103197598,1000003398
08.01.2021,ADULT SOCIAL CARE,LONDON CARE LTD,"2,282.77",PHY LTS 65+,HOMECARE - C&V,2103197761,1000003398
08.01.2021,ADULT SOCIAL CARE,LONDON CARE LTD,"2,291.57",PHY LTS 65+,HOMECARE - C&V,2103197825,1000003398
08.01.2021,ADULT SOCIAL CARE,LONDON CARE LTD,"2,322.80",PHY LTS 65+,HOMECARE - C&V,2103197660,1000003398
08.01.2021,ADULT SOCIAL CARE,LONDON CARE LTD,"2,398.93",PHY LTS 65+,HOMECARE - C&V,2103197887,1000003398
08.01.2021,ADULT SOCIAL CARE,LONDON CARE LTD,"2,430.29",PHY LTS 65+,HOMECARE - C&V,2103197652,1000003398
08.01.2021,ADULT SOCIAL CARE,LONDON CARE LTD,"2,435.25",PHY LTS 65+,HOMECARE - C&V,2103197590,1000003398
08.01.2021,ADULT SOCIAL CARE,LONDON CARE LTD,"2,448.16",PHY LTS 65+,HOMECARE - C&V,2103197920,1000003398
08.01.2021,ADULT SOCIAL CARE,LONDON CARE LTD,"2,456.79",PHY LTS 65+,HOMECARE - C&V,2103197777,1000003398
08.01.2021,ADULT SOCIAL CARE,LONDON CARE LTD,"2,465.02",PHY LTS 65+,HOMECARE - C&V,2103197746,1000003398
08.01.2021,ADULT SOCIAL CARE,LONDON CARE LTD,"2,469.11",PHY LTS 65+,HOMECARE - C&V,2103197632,1000003398
08.01.2021,ADULT SOCIAL CARE,LONDON CARE LTD,"2,498.20",PHY LTS 65+,HOMECARE - C&V,2103197649,1000003398
08.01.2021,ADULT SOCIAL CARE,LONDON CARE LTD,"2,579.75",PHY LTS 65+,HOMECARE - C&V,2103197950,1000003398
08.01.2021,ADULT SOCIAL CARE,LONDON CARE LTD,"2,595.57",PHY LTS 65+,HOMECARE - C&V,2103197975,1000003398
08.01.2021,ADULT SOCIAL CARE,LONDON CARE LTD,"2,647.75",PHY LTS 65+,HOMECARE - C&V,2103197859,1000003398
08.01.2021,ADULT SOCIAL CARE,LONDON CARE LTD,"3,003.14",PHY LTS 65+,HOMECARE - C&V,2103197955,1000003398
08.01.2021,ADULT SOCIAL CARE,LONDON CARE LTD,"3,056.96",PHY LTS 65+,HOMECARE - C&V,2103197696,1000003398
08.01.2021,ADULT SOCIAL CARE,LONDON CARE LTD,"3,101.71",PHY LTS 65+,HOMECARE - C&V,2103197923,1000003398
08.01.2021,ADULT SOCIAL CARE,LONDON CARE LTD,"3,289.74",PHY LTS 65+,HOMECARE - C&V,2103197813,1000003398
08.01.2021,ADULT SOCIAL CARE,LONDON CARE LTD,"5,325.68",PHY LTS 65+,HOMECARE - C&V,2103197788,1000003398
08.01.2021,ADULT SOCIAL CARE,LONDON CARE LTD,512.17,PHY LTS 65+,HOMECARE - SPOT,2103197621,1000003398
08.01.2021,ADULT SOCIAL CARE,BLISSETT CARE LTD,264.74,PHY LTS 65+,HOMECARE - C&V,2103198037,1000042627
08.01.2021,ADULT SOCIAL CARE,BLISSETT CARE LTD,267.56,PHY LTS 65+,HOMECARE - C&V,2103198007,1000042627
08.01.2021,ADULT SOCIAL CARE,BLISSETT CARE LTD,358.68,PHY LTS 65+,HOMECARE - C&V,2103197998,1000042627
08.01.2021,ADULT SOCIAL CARE,BLISSETT CARE LTD,361.03,PHY LTS 65+,HOMECARE - C&V,2103198036,1000042627
08.01.2021,ADULT SOCIAL CARE,BLISSETT CARE LTD,378.82,PHY LTS 65+,HOMECARE - C&V,2103198000,1000042627
08.01.2021,ADULT SOCIAL CARE,BLISSETT CARE LTD,478.24,PHY LTS 65+,HOMECARE - C&V,2103198022,1000042627
08.01.2021,ADULT SOCIAL CARE,BLISSETT CARE LTD,539.5,PHY LTS 65+,HOMECARE - C&V,2103197996,1000042627
08.01.2021,ADULT SOCIAL CARE,BLISSETT CARE LTD,555.1,PHY LTS 65+,HOMECARE - C&V,2103198020,1000042627
08.01.2021,ADULT SOCIAL CARE,BLISSETT CARE LTD,559.56,PHY LTS 65+,HOMECARE - C&V,2103198004,1000042627
08.01.2021,ADULT SOCIAL CARE,BLISSETT CARE LTD,614.87,PHY LTS 65+,HOMECARE - C&V,2103198012,1000042627
08.01.2021,ADULT SOCIAL CARE,BLISSETT CARE LTD,666.63,PHY LTS 65+,HOMECARE - C&V,2103198038,1000042627
08.01.2021,ADULT SOCIAL CARE,BLISSETT CARE LTD,704.36,PHY LTS 65+,HOMECARE - C&V,2103198002,1000042627
08.01.2021,ADULT SOCIAL CARE,BLISSETT CARE LTD,748.97,PHY LTS 65+,HOMECARE - C&V,2103198023,1000042627
08.01.2021,ADULT SOCIAL CARE,BLISSETT CARE LTD,784.62,PHY LTS 65+,HOMECARE - C&V,2103198028,1000042627
08.01.2021,ADULT SOCIAL CARE,BLISSETT CARE LTD,790.76,PHY LTS 65+,HOMECARE - C&V,2103198027,1000042627
08.01.2021,ADULT SOCIAL CARE,BLISSETT CARE LTD,807.73,PHY LTS 65+,HOMECARE - C&V,2103198003,1000042627
08.01.2021,ADULT SOCIAL CARE,BLISSETT CARE LTD,851.44,PHY LTS 65+,HOMECARE - C&V,2103198033,1000042627
08.01.2021,ADULT SOCIAL CARE,BLISSETT CARE LTD,882.82,PHY LTS 65+,HOMECARE - C&V,2103197992,1000042627
08.01.2021,ADULT SOCIAL CARE,BLISSETT CARE LTD,905.1,PHY LTS 65+,HOMECARE - C&V,2103198005,1000042627
08.01.2021,ADULT SOCIAL CARE,BLISSETT CARE LTD,913.72,PHY LTS 65+,HOMECARE - C&V,2103198009,1000042627
08.01.2021,ADULT SOCIAL CARE,BLISSETT CARE LTD,913.75,PHY LTS 65+,HOMECARE - C&V,2103198006,1000042627
08.01.2021,ADULT SOCIAL CARE,BLISSETT CARE LTD,954.11,PHY LTS 65+,HOMECARE - C&V,2103198034,1000042627
08.01.2021,ADULT SOCIAL CARE,BLISSETT CARE LTD,989.85,PHY LTS 65+,HOMECARE - C&V,2103198032,1000042627
08.01.2021,ADULT SOCIAL CARE,BLISSETT CARE LTD,"1,024.80",PHY LTS 65+,HOMECARE - C&V,2103197997,1000042627
08.01.2021,ADULT SOCIAL CARE,BLISSETT CARE LTD,"1,039.06",PHY LTS 65+,HOMECARE - C&V,2103198001,1000042627
08.01.2021,ADULT SOCIAL CARE,BLISSETT CARE LTD,"1,344.20",PHY LTS 65+,HOMECARE - C&V,2103198017,1000042627
08.01.2021,ADULT SOCIAL CARE,BLISSETT CARE LTD,"2,267.37",PHY LTS 65+,HOMECARE - C&V,2103198010,1000042627
08.01.2021,ADULT SOCIAL CARE,BLISSETT CARE LTD,"2,442.44",PHY LTS 65+,HOMECARE - C&V,2103198040,1000042627
08.01.2021,ADULT SOCIAL CARE,BLISSETT CARE LTD,"2,510.27",PHY LTS 65+,HOMECARE - C&V,2103198029,1000042627
08.01.2021,ADULT SOCIAL CARE,BLISSETT CARE LTD,"2,572.66",PHY LTS 65+,HOMECARE - C&V,2103197993,1000042627
08.01.2021,ADULT SOCIAL CARE,BLISSETT CARE LTD,"2,732.44",PHY LTS 65+,HOMECARE - C&V,2103197994,1000042627
08.01.2021,ADULT SOCIAL CARE,SUPREME CARE SERVICES LTD,251.71,PHY LTS 65+,HOMECARE - C&V,2103197420,1000059416
08.01.2021,ADULT SOCIAL CARE,SUPREME CARE SERVICES LTD,253.08,PHY LTS 65+,HOMECARE - C&V,2103197360,1000059416
08.01.2021,ADULT SOCIAL CARE,SUPREME CARE SERVICES LTD,257.52,PHY LTS 65+,HOMECARE - C&V,2103197403,1000059416
08.01.2021,ADULT SOCIAL CARE,SUPREME CARE SERVICES LTD,259.35,PHY LTS 65+,HOMECARE - C&V,2103197410,1000059416
08.01.2021,ADULT SOCIAL CARE,SUPREME CARE SERVICES LTD,260.06,PHY LTS 65+,HOMECARE - C&V,2103197173,1000059416
08.01.2021,ADULT SOCIAL CARE,SUPREME CARE SERVICES LTD,260.12,PHY LTS 65+,HOMECARE - C&V,2103197292,1000059416
08.01.2021,ADULT SOCIAL CARE,SUPREME CARE SERVICES LTD,266.17,PHY LTS 65+,HOMECARE - C&V,2103197290,1000059416
08.01.2021,ADULT SOCIAL CARE,SUPREME CARE SERVICES LTD,270.55,PHY LTS 65+,HOMECARE - C&V,2103197095,1000059416
08.01.2021,ADULT SOCIAL CARE,SUPREME CARE SERVICES LTD,273.67,PHY LTS 65+,HOMECARE - C&V,2103197300,1000059416
08.01.2021,ADULT SOCIAL CARE,SUPREME CARE SERVICES LTD,290.01,PHY LTS 65+,HOMECARE - C&V,2103197297,1000059416
08.01.2021,ADULT SOCIAL CARE,SUPREME CARE SERVICES LTD,291.46,PHY LTS 65+,HOMECARE - C&V,2103197296,1000059416
08.01.2021,ADULT SOCIAL CARE,SUPREME CARE SERVICES LTD,307.03,PHY LTS 65+,HOMECARE - C&V,2103197293,1000059416
08.01.2021,ADULT SOCIAL CARE,SUPREME CARE SERVICES LTD,322.58,PHY LTS 65+,HOMECARE - C&V,2103197143,1000059416
08.01.2021,ADULT SOCIAL CARE,SUPREME CARE SERVICES LTD,322.94,PHY LTS 65+,HOMECARE - C&V,2103197044,1000059416
08.01.2021,ADULT SOCIAL CARE,SUPREME CARE SERVICES LTD,335.98,PHY LTS 65+,HOMECARE - C&V,2103197163,1000059416
08.01.2021,ADULT SOCIAL CARE,SUPREME CARE SERVICES LTD,340.34,PHY LTS 65+,HOMECARE - C&V,2103197321,1000059416
08.01.2021,ADULT SOCIAL CARE,SUPREME CARE SERVICES LTD,359.16,PHY LTS 65+,HOMECARE - C&V,2103197097,1000059416
08.01.2021,ADULT SOCIAL CARE,SUPREME CARE SERVICES LTD,362.09,PHY LTS 65+,HOMECARE - C&V,2103197083,1000059416
08.01.2021,ADULT SOCIAL CARE,SUPREME CARE SERVICES LTD,366.52,PHY LTS 65+,HOMECARE - C&V,2103197236,1000059416
08.01.2021,ADULT SOCIAL CARE,SUPREME CARE SERVICES LTD,366.52,PHY LTS 65+,HOMECARE - C&V,2103197324,1000059416
08.01.2021,ADULT SOCIAL CARE,SUPREME CARE SERVICES LTD,369.98,PHY LTS 65+,HOMECARE - C&V,2103197254,1000059416
08.01.2021,ADULT SOCIAL CARE,SUPREME CARE SERVICES LTD,371.58,PHY LTS 65+,HOMECARE - C&V,2103197275,1000059416
08.01.2021,ADULT SOCIAL CARE,SUPREME CARE SERVICES LTD,377.08,PHY LTS 65+,HOMECARE - C&V,2103197043,1000059416
08.01.2021,ADULT SOCIAL CARE,SUPREME CARE SERVICES LTD,384.11,PHY LTS 65+,HOMECARE - C&V,2103197354,1000059416
08.01.2021,ADULT SOCIAL CARE,SUPREME CARE SERVICES LTD,387.96,PHY LTS 65+,HOMECARE - C&V,2103197235,1000059416
08.01.2021,ADULT SOCIAL CARE,SUPREME CARE SERVICES LTD,392.67,PHY LTS 65+,HOMECARE - C&V,2103197344,1000059416
08.01.2021,ADULT SOCIAL CARE,SUPREME CARE SERVICES LTD,397.88,PHY LTS 65+,HOMECARE - C&V,2103197413,1000059416
08.01.2021,ADULT SOCIAL CARE,SUPREME CARE SERVICES LTD,401.4,PHY LTS 65+,HOMECARE - C&V,2103197238,1000059416
08.01.2021,ADULT SOCIAL CARE,SUPREME CARE SERVICES LTD,401.47,PHY LTS 65+,HOMECARE - C&V,2103197067,1000059416
08.01.2021,ADULT SOCIAL CARE,SUPREME CARE SERVICES LTD,405.75,PHY LTS 65+,HOMECARE - C&V,2103197307,1000059416
08.01.2021,ADULT SOCIAL CARE,SUPREME CARE SERVICES LTD,414.54,PHY LTS 65+,HOMECARE - C&V,2103197469,1000059416
08.01.2021,ADULT SOCIAL CARE,SUPREME CARE SERVICES LTD,414.58,PHY LTS 65+,HOMECARE - C&V,2103197147,1000059416
08.01.2021,ADULT SOCIAL CARE,SUPREME CARE SERVICES LTD,418.86,PHY LTS 65+,HOMECARE - C&V,2103197467,1000059416
08.01.2021,ADULT SOCIAL CARE,SUPREME CARE SERVICES LTD,423.28,PHY LTS 65+,HOMECARE - C&V,2103197153,1000059416
08.01.2021,ADULT SOCIAL CARE,SUPREME CARE SERVICES LTD,425.85,PHY LTS 65+,HOMECARE - C&V,2103197166,1000059416
08.01.2021,ADULT SOCIAL CARE,SUPREME CARE SERVICES LTD,426.12,PHY LTS 65+,HOMECARE - C&V,2103197364,1000059416
08.01.2021,ADULT SOCIAL CARE,SUPREME CARE SERVICES LTD,432.8,PHY LTS 65+,HOMECARE - C&V,2103197146,1000059416
08.01.2021,ADULT SOCIAL CARE,SUPREME CARE SERVICES LTD,436.25,PHY LTS 65+,HOMECARE - C&V,2103197098,1000059416
08.01.2021,ADULT SOCIAL CARE,SUPREME CARE SERVICES LTD,436.33,PHY LTS 65+,HOMECARE - C&V,2103197271,1000059416
08.01.2021,ADULT SOCIAL CARE,SUPREME CARE SERVICES LTD,436.37,PHY LTS 65+,HOMECARE - C&V,2103197198,1000059416
08.01.2021,ADULT SOCIAL CARE,SUPREME CARE SERVICES LTD,436.46,PHY LTS 65+,HOMECARE - C&V,2103197150,1000059416
08.01.2021,ADULT SOCIAL CARE,SUPREME CARE SERVICES LTD,447.65,PHY LTS 65+,HOMECARE - C&V,2103197438,1000059416
08.01.2021,ADULT SOCIAL CARE,SUPREME CARE SERVICES LTD,450.15,PHY LTS 65+,HOMECARE - C&V,2103197258,1000059416
08.01.2021,ADULT SOCIAL CARE,SUPREME CARE SERVICES LTD,450.16,PHY LTS 65+,HOMECARE - C&V,2103197070,1000059416
08.01.2021,ADULT SOCIAL CARE,SUPREME CARE SERVICES LTD,453.85,PHY LTS 65+,HOMECARE - C&V,2103197327,1000059416
08.01.2021,ADULT SOCIAL CARE,SUPREME CARE SERVICES LTD,453.96,PHY LTS 65+,HOMECARE - C&V,2103197087,1000059416
08.01.2021,ADULT SOCIAL CARE,SUPREME CARE SERVICES LTD,458.24,PHY LTS 65+,HOMECARE - C&V,2103197263,1000059416
08.01.2021,ADULT SOCIAL CARE,SUPREME CARE SERVICES LTD,462.45,PHY LTS 65+,HOMECARE - C&V,2103197305,1000059416
08.01.2021,ADULT SOCIAL CARE,SUPREME CARE SERVICES LTD,466.8,PHY LTS 65+,HOMECARE - C&V,2103197425,1000059416
08.01.2021,ADULT SOCIAL CARE,SUPREME CARE SERVICES LTD,475.61,PHY LTS 65+,HOMECARE - C&V,2103197437,1000059416
08.01.2021,ADULT SOCIAL CARE,SUPREME CARE SERVICES LTD,477.64,PHY LTS 65+,HOMECARE - C&V,2103197078,1000059416
08.01.2021,ADULT SOCIAL CARE,SUPREME CARE SERVICES LTD,478.47,PHY LTS 65+,HOMECARE - C&V,2103197033,1000059416
08.01.2021,ADULT SOCIAL CARE,SUPREME CARE SERVICES LTD,492.65,PHY LTS 65+,HOMECARE - C&V,2103197383,1000059416
08.01.2021,ADULT SOCIAL CARE,SUPREME CARE SERVICES LTD,511.8,PHY LTS 65+,HOMECARE - C&V,2103197411,1000059416
08.01.2021,ADULT SOCIAL CARE,SUPREME CARE SERVICES LTD,514.49,PHY LTS 65+,HOMECARE - C&V,2103197399,1000059416
08.01.2021,ADULT SOCIAL CARE,SUPREME CARE SERVICES LTD,515.03,PHY LTS 65+,HOMECARE - C&V,2103197388,1000059416
08.01.2021,ADULT SOCIAL CARE,SUPREME CARE SERVICES LTD,528.58,PHY LTS 65+,HOMECARE - C&V,2103197401,1000059416
08.01.2021,ADULT SOCIAL CARE,SUPREME CARE SERVICES LTD,528.72,PHY LTS 65+,HOMECARE - C&V,2103197273,1000059416
08.01.2021,ADULT SOCIAL CARE,SUPREME CARE SERVICES LTD,532.83,PHY LTS 65+,HOMECARE - C&V,2103197303,1000059416
08.01.2021,ADULT SOCIAL CARE,SUPREME CARE SERVICES LTD,541,PHY LTS 65+,HOMECARE - C&V,2103197192,1000059416
08.01.2021,ADULT SOCIAL CARE,SUPREME CARE SERVICES LTD,545.53,PHY LTS 65+,HOMECARE - C&V,2103197362,1000059416
08.01.2021,ADULT SOCIAL CARE,SUPREME CARE SERVICES LTD,551.2,PHY LTS 65+,HOMECARE - C&V,2103197154,1000059416
08.01.2021,ADULT SOCIAL CARE,SUPREME CARE SERVICES LTD,554.3,PHY LTS 65+,HOMECARE - C&V,2103197319,1000059416
08.01.2021,ADULT SOCIAL CARE,SUPREME CARE SERVICES LTD,561.51,PHY LTS 65+,HOMECARE - C&V,2103197369,1000059416
08.01.2021,ADULT SOCIAL CARE,SUPREME CARE SERVICES LTD,562.83,PHY LTS 65+,HOMECARE - C&V,2103197171,1000059416
08.01.2021,ADULT SOCIAL CARE,SUPREME CARE SERVICES LTD,567.39,PHY LTS 65+,HOMECARE - C&V,2103197085,1000059416
08.01.2021,ADULT SOCIAL CARE,SUPREME CARE SERVICES LTD,571.69,PHY LTS 65+,HOMECARE - C&V,2103197317,1000059416
08.01.2021,ADULT SOCIAL CARE,SUPREME CARE SERVICES LTD,584.51,PHY LTS 65+,HOMECARE - C&V,2103197442,1000059416
08.01.2021,ADULT SOCIAL CARE,SUPREME CARE SERVICES LTD,589.14,PHY LTS 65+,HOMECARE - C&V,2103197274,1000059416
08.01.2021,ADULT SOCIAL CARE,SUPREME CARE SERVICES LTD,591.65,PHY LTS 65+,HOMECARE - C&V,2103197422,1000059416
08.01.2021,ADULT SOCIAL CARE,SUPREME CARE SERVICES LTD,593.55,PHY LTS 65+,HOMECARE - C&V,2103197358,1000059416
08.01.2021,ADULT SOCIAL CARE,SUPREME CARE SERVICES LTD,602.21,PHY LTS 65+,HOMECARE - C&V,2103197136,1000059416
08.01.2021,ADULT SOCIAL CARE,SUPREME CARE SERVICES LTD,606.59,PHY LTS 65+,HOMECARE - C&V,2103197349,1000059416
08.01.2021,ADULT SOCIAL CARE,SUPREME CARE SERVICES LTD,607.01,PHY LTS 65+,HOMECARE - C&V,2103197197,1000059416
08.01.2021,ADULT SOCIAL CARE,SUPREME CARE SERVICES LTD,609.62,PHY LTS 65+,HOMECARE - C&V,2103197052,1000059416
08.01.2021,ADULT SOCIAL CARE,SUPREME CARE SERVICES LTD,610.95,PHY LTS 65+,HOMECARE - C&V,2103197183,1000059416
08.01.2021,ADULT SOCIAL CARE,SUPREME CARE SERVICES LTD,610.96,PHY LTS 65+,HOMECARE - C&V,2103197065,1000059416
08.01.2021,ADULT SOCIAL CARE,SUPREME CARE SERVICES LTD,611.08,PHY LTS 65+,HOMECARE - C&V,2103197357,1000059416
08.01.2021,ADULT SOCIAL CARE,SUPREME CARE SERVICES LTD,614,PHY LTS 65+,HOMECARE - C&V,2103197421,1000059416
08.01.2021,ADULT SOCIAL CARE,SUPREME CARE SERVICES LTD,615.28,PHY LTS 65+,HOMECARE - C&V,2103197375,1000059416
08.01.2021,ADULT SOCIAL CARE,SUPREME CARE SERVICES LTD,615.32,PHY LTS 65+,HOMECARE - C&V,2103197393,1000059416
08.01.2021,ADULT SOCIAL CARE,SUPREME CARE SERVICES LTD,619.65,PHY LTS 65+,HOMECARE - C&V,2103197341,1000059416
08.01.2021,ADULT SOCIAL CARE,SUPREME CARE SERVICES LTD,622.16,PHY LTS 65+,HOMECARE - C&V,2103197332,1000059416
08.01.2021,ADULT SOCIAL CARE,SUPREME CARE SERVICES LTD,623.84,PHY LTS 65+,HOMECARE - C&V,2103197270,1000059416
08.01.2021,ADULT SOCIAL CARE,SUPREME CARE SERVICES LTD,628.39,PHY LTS 65+,HOMECARE - C&V,2103197172,1000059416
08.01.2021,ADULT SOCIAL CARE,SUPREME CARE SERVICES LTD,631.05,PHY LTS 65+,HOMECARE - C&V,2103197193,1000059416
08.01.2021,ADULT SOCIAL CARE,SUPREME CARE SERVICES LTD,635.3,PHY LTS 65+,HOMECARE - C&V,2103197301,1000059416
08.01.2021,ADULT SOCIAL CARE,SUPREME CARE SERVICES LTD,639.56,PHY LTS 65+,HOMECARE - C&V,2103197060,1000059416
08.01.2021,ADULT SOCIAL CARE,SUPREME CARE SERVICES LTD,641.48,PHY LTS 65+,HOMECARE - C&V,2103197038,1000059416
08.01.2021,ADULT SOCIAL CARE,SUPREME CARE SERVICES LTD,645.82,PHY LTS 65+,HOMECARE - C&V,2103197034,1000059416
08.01.2021,ADULT SOCIAL CARE,SUPREME CARE SERVICES LTD,650.2,PHY LTS 65+,HOMECARE - C&V,2103197441,1000059416
08.01.2021,ADULT SOCIAL CARE,SUPREME CARE SERVICES LTD,653.61,PHY LTS 65+,HOMECARE - C&V,2103197311,1000059416
08.01.2021,ADULT SOCIAL CARE,SUPREME CARE SERVICES LTD,654.65,PHY LTS 65+,HOMECARE - C&V,2103197448,1000059416
08.01.2021,ADULT SOCIAL CARE,SUPREME CARE SERVICES LTD,658.92,PHY LTS 65+,HOMECARE - C&V,2103197342,1000059416
08.01.2021,ADULT SOCIAL CARE,SUPREME CARE SERVICES LTD,663.23,PHY LTS 65+,HOMECARE - C&V,2103197352,1000059416
08.01.2021,ADULT SOCIAL CARE,SUPREME CARE SERVICES LTD,663.29,PHY LTS 65+,HOMECARE - C&V,2103197405,1000059416
08.01.2021,ADULT SOCIAL CARE,SUPREME CARE SERVICES LTD,677.94,PHY LTS 65+,HOMECARE - C&V,2103197233,1000059416
08.01.2021,ADULT SOCIAL CARE,SUPREME CARE SERVICES LTD,680.71,PHY LTS 65+,HOMECARE - C&V,2103197404,1000059416
08.01.2021,ADULT SOCIAL CARE,SUPREME CARE SERVICES LTD,680.74,PHY LTS 65+,HOMECARE - C&V,2103197145,1000059416
08.01.2021,ADULT SOCIAL CARE,SUPREME CARE SERVICES LTD,680.76,PHY LTS 65+,HOMECARE - C&V,2103197323,1000059416
08.01.2021,ADULT SOCIAL CARE,SUPREME CARE SERVICES LTD,693.87,PHY LTS 65+,HOMECARE - C&V,2103197091,1000059416
08.01.2021,ADULT SOCIAL CARE,SUPREME CARE SERVICES LTD,697.26,PHY LTS 65+,HOMECARE - C&V,2103197156,1000059416
08.01.2021,ADULT SOCIAL CARE,SUPREME CARE SERVICES LTD,701.56,PHY LTS 65+,HOMECARE - C&V,2103197120,1000059416
08.01.2021,ADULT SOCIAL CARE,SUPREME CARE SERVICES LTD,702.47,PHY LTS 65+,HOMECARE - C&V,2103197260,1000059416
08.01.2021,ADULT SOCIAL CARE,SUPREME CARE SERVICES LTD,702.56,PHY LTS 65+,HOMECARE - C&V,2103197255,1000059416
08.01.2021,ADULT SOCIAL CARE,SUPREME CARE SERVICES LTD,706.81,PHY LTS 65+,HOMECARE - C&V,2103197220,1000059416
08.01.2021,ADULT SOCIAL CARE,SUPREME CARE SERVICES LTD,707.75,PHY LTS 65+,HOMECARE - C&V,2103197460,1000059416
08.01.2021,ADULT SOCIAL CARE,SUPREME CARE SERVICES LTD,707.79,PHY LTS 65+,HOMECARE - C&V,2103197224,1000059416
08.01.2021,ADULT SOCIAL CARE,SUPREME CARE SERVICES LTD,712.03,PHY LTS 65+,HOMECARE - C&V,2103197182,1000059416
08.01.2021,ADULT SOCIAL CARE,SUPREME CARE SERVICES LTD,715.65,PHY LTS 65+,HOMECARE - C&V,2103197423,1000059416
08.01.2021,ADULT SOCIAL CARE,SUPREME CARE SERVICES LTD,716.24,PHY LTS 65+,HOMECARE - C&V,2103197218,1000059416
08.01.2021,ADULT SOCIAL CARE,SUPREME CARE SERVICES LTD,716.51,PHY LTS 65+,HOMECARE - C&V,2103197287,1000059416
08.01.2021,ADULT SOCIAL CARE,SUPREME CARE SERVICES LTD,720.04,PHY LTS 65+,HOMECARE - C&V,2103197216,1000059416
08.01.2021,ADULT SOCIAL CARE,SUPREME CARE SERVICES LTD,720.16,PHY LTS 65+,HOMECARE - C&V,2103197430,1000059416
08.01.2021,ADULT SOCIAL CARE,SUPREME CARE SERVICES LTD,720.46,PHY LTS 65+,HOMECARE - C&V,2103197397,1000059416
08.01.2021,ADULT SOCIAL CARE,SUPREME CARE SERVICES LTD,720.66,PHY LTS 65+,HOMECARE - C&V,2103197176,1000059416
08.01.2021,ADULT SOCIAL CARE,SUPREME CARE SERVICES LTD,724.83,PHY LTS 65+,HOMECARE - C&V,2103197450,1000059416
08.01.2021,ADULT SOCIAL CARE,SUPREME CARE SERVICES LTD,724.99,PHY LTS 65+,HOMECARE - C&V,2103197239,1000059416
08.01.2021,ADULT SOCIAL CARE,SUPREME CARE SERVICES LTD,728.73,PHY LTS 65+,HOMECARE - C&V,2103197104,1000059416
08.01.2021,ADULT SOCIAL CARE,SUPREME CARE SERVICES LTD,733.87,PHY LTS 65+,HOMECARE - C&V,2103197250,1000059416
08.01.2021,ADULT SOCIAL CARE,SUPREME CARE SERVICES LTD,741.83,PHY LTS 65+,HOMECARE - C&V,2103197253,1000059416
08.01.2021,ADULT SOCIAL CARE,SUPREME CARE SERVICES LTD,750.4,PHY LTS 65+,HOMECARE - C&V,2103197268,1000059416
08.01.2021,ADULT SOCIAL CARE,SUPREME CARE SERVICES LTD,767.22,PHY LTS 65+,HOMECARE - C&V,2103197330,1000059416
08.01.2021,ADULT SOCIAL CARE,SUPREME CARE SERVICES LTD,768.34,PHY LTS 65+,HOMECARE - C&V,2103197054,1000059416
08.01.2021,ADULT SOCIAL CARE,SUPREME CARE SERVICES LTD,785.07,PHY LTS 65+,HOMECARE - C&V,2103197234,1000059416
08.01.2021,ADULT SOCIAL CARE,SUPREME CARE SERVICES LTD,794.11,PHY LTS 65+,HOMECARE - C&V,2103197162,1000059416
08.01.2021,ADULT SOCIAL CARE,SUPREME CARE SERVICES LTD,801.74,PHY LTS 65+,HOMECARE - C&V,2103197334,1000059416
08.01.2021,ADULT SOCIAL CARE,SUPREME CARE SERVICES LTD,808.52,PHY LTS 65+,HOMECARE - C&V,2103197470,1000059416
08.01.2021,ADULT SOCIAL CARE,SUPREME CARE SERVICES LTD,820.41,PHY LTS 65+,HOMECARE - C&V,2103197433,1000059416
08.01.2021,ADULT SOCIAL CARE,SUPREME CARE SERVICES LTD,822.96,PHY LTS 65+,HOMECARE - C&V,2103197174,1000059416
08.01.2021,ADULT SOCIAL CARE,SUPREME CARE SERVICES LTD,824.82,PHY LTS 65+,HOMECARE - C&V,2103197251,1000059416
08.01.2021,ADULT SOCIAL CARE,SUPREME CARE SERVICES LTD,833.56,PHY LTS 65+,HOMECARE - C&V,2103197032,1000059416
08.01.2021,ADULT SOCIAL CARE,SUPREME CARE SERVICES LTD,833.58,PHY LTS 65+,HOMECARE - C&V,2103197314,1000059416
08.01.2021,ADULT SOCIAL CARE,SUPREME CARE SERVICES LTD,837.98,PHY LTS 65+,HOMECARE - C&V,2103197310,1000059416
08.01.2021,ADULT SOCIAL CARE,SUPREME CARE SERVICES LTD,842.23,PHY LTS 65+,HOMECARE - C&V,2103197455,1000059416
08.01.2021,ADULT SOCIAL CARE,SUPREME CARE SERVICES LTD,847.69,PHY LTS 65+,HOMECARE - C&V,2103197165,1000059416
08.01.2021,ADULT SOCIAL CARE,SUPREME CARE SERVICES LTD,851.03,PHY LTS 65+,HOMECARE - C&V,2103197135,1000059416
08.01.2021,ADULT SOCIAL CARE,SUPREME CARE SERVICES LTD,872.75,PHY LTS 65+,HOMECARE - C&V,2103197316,1000059416
08.01.2021,ADULT SOCIAL CARE,SUPREME CARE SERVICES LTD,881.54,PHY LTS 65+,HOMECARE - C&V,2103197037,1000059416
08.01.2021,ADULT SOCIAL CARE,SUPREME CARE SERVICES LTD,891.15,PHY LTS 65+,HOMECARE - C&V,2103197416,1000059416
08.01.2021,ADULT SOCIAL CARE,SUPREME CARE SERVICES LTD,895.43,PHY LTS 65+,HOMECARE - C&V,2103197462,1000059416
08.01.2021,ADULT SOCIAL CARE,SUPREME CARE SERVICES LTD,903.31,PHY LTS 65+,HOMECARE - C&V,2103197074,1000059416
08.01.2021,ADULT SOCIAL CARE,SUPREME CARE SERVICES LTD,925.39,PHY LTS 65+,HOMECARE - C&V,2103197415,1000059416
08.01.2021,ADULT SOCIAL CARE,SUPREME CARE SERVICES LTD,929.56,PHY LTS 65+,HOMECARE - C&V,2103197184,1000059416
08.01.2021,ADULT SOCIAL CARE,SUPREME CARE SERVICES LTD,938.27,PHY LTS 65+,HOMECARE - C&V,2103197447,1000059416
08.01.2021,ADULT SOCIAL CARE,SUPREME CARE SERVICES LTD,938.44,PHY LTS 65+,HOMECARE - C&V,2103197202,1000059416
08.01.2021,ADULT SOCIAL CARE,SUPREME CARE SERVICES LTD,940.9,PHY LTS 65+,HOMECARE - C&V,2103197407,1000059416
08.01.2021,ADULT SOCIAL CARE,SUPREME CARE SERVICES LTD,950.74,PHY LTS 65+,HOMECARE - C&V,2103197248,1000059416
08.01.2021,ADULT SOCIAL CARE,SUPREME CARE SERVICES LTD,954.28,PHY LTS 65+,HOMECARE - C&V,2103197356,1000059416
08.01.2021,ADULT SOCIAL CARE,SUPREME CARE SERVICES LTD,959.32,PHY LTS 65+,HOMECARE - C&V,2103197066,1000059416
08.01.2021,ADULT SOCIAL CARE,SUPREME CARE SERVICES LTD,960.07,PHY LTS 65+,HOMECARE - C&V,2103197343,1000059416
08.01.2021,ADULT SOCIAL CARE,SUPREME CARE SERVICES LTD,968.74,PHY LTS 65+,HOMECARE - C&V,2103197040,1000059416
08.01.2021,ADULT SOCIAL CARE,SUPREME CARE SERVICES LTD,970.48,PHY LTS 65+,HOMECARE - C&V,2103197315,1000059416
08.01.2021,ADULT SOCIAL CARE,SUPREME CARE SERVICES LTD,972.8,PHY LTS 65+,HOMECARE - C&V,2103197384,1000059416
08.01.2021,ADULT SOCIAL CARE,SUPREME CARE SERVICES LTD,972.83,PHY LTS 65+,HOMECARE - C&V,2103197380,1000059416
08.01.2021,ADULT SOCIAL CARE,SUPREME CARE SERVICES LTD,"1,023.32",PHY LTS 65+,HOMECARE - C&V,2103197075,1000059416
08.01.2021,ADULT SOCIAL CARE,SUPREME CARE SERVICES LTD,"1,030.04",PHY LTS 65+,HOMECARE - C&V,2103197370,1000059416
08.01.2021,ADULT SOCIAL CARE,SUPREME CARE SERVICES LTD,"1,036.09",PHY LTS 65+,HOMECARE - C&V,2103197191,1000059416
08.01.2021,ADULT SOCIAL CARE,SUPREME CARE SERVICES LTD,"1,038.42",PHY LTS 65+,HOMECARE - C&V,2103197359,1000059416
08.01.2021,ADULT SOCIAL CARE,SUPREME CARE SERVICES LTD,"1,038.63",PHY LTS 65+,HOMECARE - C&V,2103197304,1000059416
08.01.2021,ADULT SOCIAL CARE,SUPREME CARE SERVICES LTD,"1,048.85",PHY LTS 65+,HOMECARE - C&V,2103197299,1000059416
08.01.2021,ADULT SOCIAL CARE,SUPREME CARE SERVICES LTD,"1,055.89",PHY LTS 65+,HOMECARE - C&V,2103197225,1000059416
08.01.2021,ADULT SOCIAL CARE,SUPREME CARE SERVICES LTD,"1,056.44",PHY LTS 65+,HOMECARE - C&V,2103197164,1000059416
08.01.2021,ADULT SOCIAL CARE,SUPREME CARE SERVICES LTD,"1,068.93",PHY LTS 65+,HOMECARE - C&V,2103197105,1000059416
08.01.2021,ADULT SOCIAL CARE,SUPREME CARE SERVICES LTD,"1,077.80",PHY LTS 65+,HOMECARE - C&V,2103197045,1000059416
08.01.2021,ADULT SOCIAL CARE,SUPREME CARE SERVICES LTD,"1,077.94",PHY LTS 65+,HOMECARE - C&V,2103197456,1000059416
08.01.2021,ADULT SOCIAL CARE,SUPREME CARE SERVICES LTD,"1,078.79",PHY LTS 65+,HOMECARE - C&V,2103197294,1000059416
08.01.2021,ADULT SOCIAL CARE,SUPREME CARE SERVICES LTD,"1,086.66",PHY LTS 65+,HOMECARE - C&V,2103197046,1000059416
08.01.2021,ADULT SOCIAL CARE,SUPREME CARE SERVICES LTD,"1,094.99",PHY LTS 65+,HOMECARE - C&V,2103197139,1000059416
08.01.2021,ADULT SOCIAL CARE,SUPREME CARE SERVICES LTD,"1,102.20",PHY LTS 65+,HOMECARE - C&V,2103197096,1000059416
08.01.2021,ADULT SOCIAL CARE,SUPREME CARE SERVICES LTD,"1,108.53",PHY LTS 65+,HOMECARE - C&V,2103197457,1000059416
08.01.2021,ADULT SOCIAL CARE,SUPREME CARE SERVICES LTD,"1,117.26",PHY LTS 65+,HOMECARE - C&V,2103197458,1000059416
08.01.2021,ADULT SOCIAL CARE,SUPREME CARE SERVICES LTD,"1,119.17",PHY LTS 65+,HOMECARE - C&V,2103197444,1000059416
08.01.2021,ADULT SOCIAL CARE,SUPREME CARE SERVICES LTD,"1,121.49",PHY LTS 65+,HOMECARE - C&V,2103197345,1000059416
08.01.2021,ADULT SOCIAL CARE,SUPREME CARE SERVICES LTD,"1,130.01",PHY LTS 65+,HOMECARE - C&V,2103197222,1000059416
08.01.2021,ADULT SOCIAL CARE,SUPREME CARE SERVICES LTD,"1,131.54",PHY LTS 65+,HOMECARE - C&V,2103197152,1000059416
08.01.2021,ADULT SOCIAL CARE,SUPREME CARE SERVICES LTD,"1,151.27",PHY LTS 65+,HOMECARE - C&V,2103197348,1000059416
08.01.2021,ADULT SOCIAL CARE,SUPREME CARE SERVICES LTD,"1,155.42",PHY LTS 65+,HOMECARE - C&V,2103197328,1000059416
08.01.2021,ADULT SOCIAL CARE,SUPREME CARE SERVICES LTD,"1,159.71",PHY LTS 65+,HOMECARE - C&V,2103197406,1000059416
08.01.2021,ADULT SOCIAL CARE,SUPREME CARE SERVICES LTD,"1,177.52",PHY LTS 65+,HOMECARE - C&V,2103197103,1000059416
08.01.2021,ADULT SOCIAL CARE,SUPREME CARE SERVICES LTD,"1,186.84",PHY LTS 65+,HOMECARE - C&V,2103197134,1000059416
08.01.2021,ADULT SOCIAL CARE,SUPREME CARE SERVICES LTD,"1,187.11",PHY LTS 65+,HOMECARE - C&V,2103197313,1000059416
08.01.2021,ADULT SOCIAL CARE,SUPREME CARE SERVICES LTD,"1,189.72",PHY LTS 65+,HOMECARE - C&V,2103197246,1000059416
08.01.2021,ADULT SOCIAL CARE,SUPREME CARE SERVICES LTD,"1,191.42",PHY LTS 65+,HOMECARE - C&V,2103197446,1000059416
08.01.2021,ADULT SOCIAL CARE,SUPREME CARE SERVICES LTD,"1,208.87",PHY LTS 65+,HOMECARE - C&V,2103197339,1000059416
08.01.2021,ADULT SOCIAL CARE,SUPREME CARE SERVICES LTD,"1,223.83",PHY LTS 65+,HOMECARE - C&V,2103197158,1000059416
08.01.2021,ADULT SOCIAL CARE,SUPREME CARE SERVICES LTD,"1,234.98",PHY LTS 65+,HOMECARE - C&V,2103197389,1000059416
08.01.2021,ADULT SOCIAL CARE,SUPREME CARE SERVICES LTD,"1,248.11",PHY LTS 65+,HOMECARE - C&V,2103197071,1000059416
08.01.2021,ADULT SOCIAL CARE,SUPREME CARE SERVICES LTD,"1,321.93",PHY LTS 65+,HOMECARE - C&V,2103197417,1000059416
08.01.2021,ADULT SOCIAL CARE,SUPREME CARE SERVICES LTD,"1,347.36",PHY LTS 65+,HOMECARE - C&V,2103197167,1000059416
08.01.2021,ADULT SOCIAL CARE,SUPREME CARE SERVICES LTD,"1,376.60",PHY LTS 65+,HOMECARE - C&V,2103197259,1000059416
08.01.2021,ADULT SOCIAL CARE,SUPREME CARE SERVICES LTD,"1,395.20",PHY LTS 65+,HOMECARE - C&V,2103197338,1000059416
08.01.2021,ADULT SOCIAL CARE,SUPREME CARE SERVICES LTD,"1,499.21",PHY LTS 65+,HOMECARE - C&V,2103197049,1000059416
08.01.2021,ADULT SOCIAL CARE,SUPREME CARE SERVICES LTD,"1,522.18",PHY LTS 65+,HOMECARE - C&V,2103197402,1000059416
08.01.2021,ADULT SOCIAL CARE,SUPREME CARE SERVICES LTD,"1,553.34",PHY LTS 65+,HOMECARE - C&V,2103197161,1000059416
08.01.2021,ADULT SOCIAL CARE,SUPREME CARE SERVICES LTD,"1,584.08",PHY LTS 65+,HOMECARE - C&V,2103197188,1000059416
08.01.2021,ADULT SOCIAL CARE,SUPREME CARE SERVICES LTD,"1,588.15",PHY LTS 65+,HOMECARE - C&V,2103197073,1000059416
08.01.2021,ADULT SOCIAL CARE,SUPREME CARE SERVICES LTD,"1,629.05",PHY LTS 65+,HOMECARE - C&V,2103197289,1000059416
08.01.2021,ADULT SOCIAL CARE,SUPREME CARE SERVICES LTD,"1,684.07",PHY LTS 65+,HOMECARE - C&V,2103197186,1000059416
08.01.2021,ADULT SOCIAL CARE,SUPREME CARE SERVICES LTD,"1,688.71",PHY LTS 65+,HOMECARE - C&V,2103197284,1000059416
08.01.2021,ADULT SOCIAL CARE,SUPREME CARE SERVICES LTD,"1,692.92",PHY LTS 65+,HOMECARE - C&V,2103197237,1000059416
08.01.2021,ADULT SOCIAL CARE,SUPREME CARE SERVICES LTD,"1,781.94",PHY LTS 65+,HOMECARE - C&V,2103197337,1000059416
08.01.2021,ADULT SOCIAL CARE,SUPREME CARE SERVICES LTD,"1,846.33",PHY LTS 65+,HOMECARE - C&V,2103197114,1000059416
08.01.2021,ADULT SOCIAL CARE,SUPREME CARE SERVICES LTD,"1,876.02",PHY LTS 65+,HOMECARE - C&V,2103197055,1000059416
08.01.2021,ADULT SOCIAL CARE,SUPREME CARE SERVICES LTD,"1,881.25",PHY LTS 65+,HOMECARE - C&V,2103197302,1000059416
08.01.2021,ADULT SOCIAL CARE,SUPREME CARE SERVICES LTD,"2,020.68",PHY LTS 65+,HOMECARE - C&V,2103197089,1000059416
08.01.2021,ADULT SOCIAL CARE,SUPREME CARE SERVICES LTD,"2,050.28",PHY LTS 65+,HOMECARE - C&V,2103197215,1000059416
08.01.2021,ADULT SOCIAL CARE,SUPREME CARE SERVICES LTD,"2,059.09",PHY LTS 65+,HOMECARE - C&V,2103197041,1000059416
08.01.2021,ADULT SOCIAL CARE,SUPREME CARE SERVICES LTD,"2,108.70",PHY LTS 65+,HOMECARE - C&V,2103197063,1000059416
08.01.2021,ADULT SOCIAL CARE,SUPREME CARE SERVICES LTD,"2,137.91",PHY LTS 65+,HOMECARE - C&V,2103197064,1000059416
08.01.2021,ADULT SOCIAL CARE,SUPREME CARE SERVICES LTD,"2,164.68",PHY LTS 65+,HOMECARE - C&V,2103197240,1000059416
08.01.2021,ADULT SOCIAL CARE,SUPREME CARE SERVICES LTD,"2,175.51",PHY LTS 65+,HOMECARE - C&V,2103197381,1000059416
08.01.2021,ADULT SOCIAL CARE,SUPREME CARE SERVICES LTD,"2,203.89",PHY LTS 65+,HOMECARE - C&V,2103197144,1000059416
08.01.2021,ADULT SOCIAL CARE,SUPREME CARE SERVICES LTD,"2,255.74",PHY LTS 65+,HOMECARE - C&V,2103197418,1000059416
08.01.2021,ADULT SOCIAL CARE,SUPREME CARE SERVICES LTD,"2,308.86",PHY LTS 65+,HOMECARE - C&V,2103197408,1000059416
08.01.2021,ADULT SOCIAL CARE,SUPREME CARE SERVICES LTD,"2,339.08",PHY LTS 65+,HOMECARE - C&V,2103197374,1000059416
08.01.2021,ADULT SOCIAL CARE,SUPREME CARE SERVICES LTD,"2,347.86",PHY LTS 65+,HOMECARE - C&V,2103197436,1000059416
08.01.2021,ADULT SOCIAL CARE,SUPREME CARE SERVICES LTD,"2,356.09",PHY LTS 65+,HOMECARE - C&V,2103197278,1000059416
08.01.2021,ADULT SOCIAL CARE,SUPREME CARE SERVICES LTD,"2,380.29",PHY LTS 65+,HOMECARE - C&V,2103197110,1000059416
08.01.2021,ADULT SOCIAL CARE,SUPREME CARE SERVICES LTD,"2,391.81",PHY LTS 65+,HOMECARE - C&V,2103197445,1000059416
08.01.2021,ADULT SOCIAL CARE,SUPREME CARE SERVICES LTD,"2,395.90",PHY LTS 65+,HOMECARE - C&V,2103197282,1000059416
08.01.2021,ADULT SOCIAL CARE,SUPREME CARE SERVICES LTD,"2,429.04",PHY LTS 65+,HOMECARE - C&V,2103197099,1000059416
08.01.2021,ADULT SOCIAL CARE,SUPREME CARE SERVICES LTD,"2,476.90",PHY LTS 65+,HOMECARE - C&V,2103197379,1000059416
08.01.2021,ADULT SOCIAL CARE,SUPREME CARE SERVICES LTD,"2,500.36",PHY LTS 65+,HOMECARE - C&V,2103197368,1000059416
08.01.2021,ADULT SOCIAL CARE,SUPREME CARE SERVICES LTD,"2,522.34",PHY LTS 65+,HOMECARE - C&V,2103197347,1000059416
08.01.2021,ADULT SOCIAL CARE,SUPREME CARE SERVICES LTD,"2,548.46",PHY LTS 65+,HOMECARE - C&V,2103197168,1000059416
08.01.2021,ADULT SOCIAL CARE,SUPREME CARE SERVICES LTD,"2,566.63",PHY LTS 65+,HOMECARE - C&V,2103197340,1000059416
08.01.2021,ADULT SOCIAL CARE,SUPREME CARE SERVICES LTD,"2,617.91",PHY LTS 65+,HOMECARE - C&V,2103197461,1000059416
08.01.2021,ADULT SOCIAL CARE,SUPREME CARE SERVICES LTD,"2,631.31",PHY LTS 65+,HOMECARE - C&V,2103197169,1000059416
08.01.2021,ADULT SOCIAL CARE,SUPREME CARE SERVICES LTD,"2,715.86",PHY LTS 65+,HOMECARE - C&V,2103197109,1000059416
08.01.2021,ADULT SOCIAL CARE,SUPREME CARE SERVICES LTD,"2,728.63",PHY LTS 65+,HOMECARE - C&V,2103197178,1000059416
08.01.2021,ADULT SOCIAL CARE,SUPREME CARE SERVICES LTD,"2,787.96",PHY LTS 65+,HOMECARE - C&V,2103197035,1000059416
08.01.2021,ADULT SOCIAL CARE,SUPREME CARE SERVICES LTD,"3,023.75",PHY LTS 65+,HOMECARE - C&V,2103197382,1000059416
08.01.2021,ADULT SOCIAL CARE,SUPREME CARE SERVICES LTD,"3,031.13",PHY LTS 65+,HOMECARE - C&V,2103197102,1000059416
08.01.2021,ADULT SOCIAL CARE,SUPREME CARE SERVICES LTD,"3,043.84",PHY LTS 65+,HOMECARE - C&V,2103197245,1000059416
08.01.2021,ADULT SOCIAL CARE,SUPREME CARE SERVICES LTD,"3,071.56",PHY LTS 65+,HOMECARE - C&V,2103197039,1000059416
08.01.2021,ADULT SOCIAL CARE,SUPREME CARE SERVICES LTD,"3,144.80",PHY LTS 65+,HOMECARE - C&V,2103197115,1000059416
08.01.2021,ADULT SOCIAL CARE,PROFAD CARE AGENCY,490.62,PHY LTS 65+,HOMECARE - C&V,2103197481,1000079032
08.01.2021,ADULT SOCIAL CARE,PROFAD CARE AGENCY,528.36,PHY LTS 65+,HOMECARE - C&V,2103197537,1000079032
08.01.2021,ADULT SOCIAL CARE,PROFAD CARE AGENCY,"1,037.86",PHY LTS 65+,HOMECARE - C&V,2103197535,1000079032
08.01.2021,ADULT SOCIAL CARE,PROFAD CARE AGENCY,"1,736.07",PHY LTS 65+,HOMECARE - C&V,2103197494,1000079032
08.01.2021,ADULT SOCIAL CARE,PROFAD CARE AGENCY,"1,924.74",PHY LTS 65+,HOMECARE - C&V,2103197500,1000079032
08.01.2021,ADULT SOCIAL CARE,PROFAD CARE AGENCY,"2,905.98",PHY LTS 65+,HOMECARE - C&V,2103197541,1000079032
08.01.2021,ADULT SOCIAL CARE,PROFAD CARE AGENCY,264.18,PHY LTS 65+,HOMECARE - SPOT,2103197520,1000079032
08.01.2021,ADULT SOCIAL CARE,PROFAD CARE AGENCY,287.78,PHY LTS 65+,HOMECARE - SPOT,2103197489,1000079032
08.01.2021,ADULT SOCIAL CARE,PROFAD CARE AGENCY,301.92,PHY LTS 65+,HOMECARE - SPOT,2103197495,1000079032
08.01.2021,ADULT SOCIAL CARE,PROFAD CARE AGENCY,349.1,PHY LTS 65+,HOMECARE - SPOT,2103197493,1000079032
08.01.2021,ADULT SOCIAL CARE,PROFAD CARE AGENCY,367.97,PHY LTS 65+,HOMECARE - SPOT,2103197528,1000079032
08.01.2021,ADULT SOCIAL CARE,PROFAD CARE AGENCY,396.28,PHY LTS 65+,HOMECARE - SPOT,2103197487,1000079032
08.01.2021,ADULT SOCIAL CARE,PROFAD CARE AGENCY,471.76,PHY LTS 65+,HOMECARE - SPOT,2103197502,1000079032
08.01.2021,ADULT SOCIAL CARE,PROFAD CARE AGENCY,490.62,PHY LTS 65+,HOMECARE - SPOT,2103197471,1000079032
08.01.2021,ADULT SOCIAL CARE,PROFAD CARE AGENCY,566.11,PHY LTS 65+,HOMECARE - SPOT,2103197513,1000079032
08.01.2021,ADULT SOCIAL CARE,PROFAD CARE AGENCY,660.46,PHY LTS 65+,HOMECARE - SPOT,2103197479,1000079032
08.01.2021,ADULT SOCIAL CARE,PROFAD CARE AGENCY,735.94,PHY LTS 65+,HOMECARE - SPOT,2103197484,1000079032
08.01.2021,ADULT SOCIAL CARE,PROFAD CARE AGENCY,735.94,PHY LTS 65+,HOMECARE - SPOT,2103197508,1000079032
08.01.2021,ADULT SOCIAL CARE,PROFAD CARE AGENCY,739.09,PHY LTS 65+,HOMECARE - SPOT,2103197512,1000079032
08.01.2021,ADULT SOCIAL CARE,PROFAD CARE AGENCY,801.99,PHY LTS 65+,HOMECARE - SPOT,2103197503,1000079032
08.01.2021,ADULT SOCIAL CARE,PROFAD CARE AGENCY,868.02,PHY LTS 65+,HOMECARE - SPOT,2103197534,1000079032
08.01.2021,ADULT SOCIAL CARE,PROFAD CARE AGENCY,924.64,PHY LTS 65+,HOMECARE - SPOT,2103197488,1000079032
08.01.2021,ADULT SOCIAL CARE,PROFAD CARE AGENCY,924.64,PHY LTS 65+,HOMECARE - SPOT,2103197504,1000079032
08.01.2021,ADULT SOCIAL CARE,PROFAD CARE AGENCY,934.07,PHY LTS 65+,HOMECARE - SPOT,2103197474,1000079032
08.01.2021,ADULT SOCIAL CARE,PROFAD CARE AGENCY,962.37,PHY LTS 65+,HOMECARE - SPOT,2103197497,1000079032
08.01.2021,ADULT SOCIAL CARE,PROFAD CARE AGENCY,981.26,PHY LTS 65+,HOMECARE - SPOT,2103197536,1000079032
08.01.2021,ADULT SOCIAL CARE,PROFAD CARE AGENCY,"1,000.12",PHY LTS 65+,HOMECARE - SPOT,2103197523,1000079032
08.01.2021,ADULT SOCIAL CARE,PROFAD CARE AGENCY,"1,056.72",PHY LTS 65+,HOMECARE - SPOT,2103197516,1000079032
08.01.2021,ADULT SOCIAL CARE,PROFAD CARE AGENCY,"1,188.85",PHY LTS 65+,HOMECARE - SPOT,2103197542,1000079032
08.01.2021,ADULT SOCIAL CARE,PROFAD CARE AGENCY,"1,207.68",PHY LTS 65+,HOMECARE - SPOT,2103197482,1000079032
08.01.2021,ADULT SOCIAL CARE,PROFAD CARE AGENCY,"1,212.42",PHY LTS 65+,HOMECARE - SPOT,2103197472,1000079032
08.01.2021,ADULT SOCIAL CARE,PROFAD CARE AGENCY,"1,245.43",PHY LTS 65+,HOMECARE - SPOT,2103197546,1000079032
08.01.2021,ADULT SOCIAL CARE,PROFAD CARE AGENCY,"1,471.86",PHY LTS 65+,HOMECARE - SPOT,2103197543,1000079032
08.01.2021,ADULT SOCIAL CARE,PROFAD CARE AGENCY,"1,622.82",PHY LTS 65+,HOMECARE - SPOT,2103197515,1000079032
08.01.2021,ADULT SOCIAL CARE,PROFAD CARE AGENCY,"1,707.74",PHY LTS 65+,HOMECARE - SPOT,2103197480,1000079032
08.01.2021,ADULT SOCIAL CARE,PROFAD CARE AGENCY,"1,849.26",PHY LTS 65+,HOMECARE - SPOT,2103197485,1000079032
08.01.2021,ADULT SOCIAL CARE,PROFAD CARE AGENCY,"2,113.44",PHY LTS 65+,HOMECARE - SPOT,2103197490,1000079032
08.01.2021,ADULT SOCIAL CARE,PROFAD CARE AGENCY,"2,641.80",PHY LTS 65+,HOMECARE - SPOT,2103197518,1000079032
08.01.2021,ADULT SOCIAL CARE,PROFAD CARE AGENCY,"2,717.28",PHY LTS 65+,HOMECARE - SPOT,2103197545,1000079032
08.01.2021,ADULT SOCIAL CARE,PROFAD CARE AGENCY,"2,755.02",PHY LTS 65+,HOMECARE - SPOT,2103197544,1000079032
08.01.2021,ADULT SOCIAL CARE,PROFAD CARE AGENCY,"3,321.12",PHY LTS 65+,HOMECARE - SPOT,2103197519,1000079032
08.01.2021,ADULT SOCIAL CARE,SUPREME CARE SERVICES LTD,580.64,PHY STS 18-64,HOMECARE - IC,2103197142,1000059416
08.01.2021,ADULT SOCIAL CARE,LONDON CARE LTD,255.73,PHY STS 65+,HOMECARE - IC,2103197970,1000003398
08.01.2021,ADULT SOCIAL CARE,LONDON CARE LTD,520.09,PHY STS 65+,HOMECARE - IC,2103197911,1000003398
08.01.2021,ADULT SOCIAL CARE,LONDON CARE LTD,543.39,PHY STS 65+,HOMECARE - IC,2103197747,1000003398
08.01.2021,ADULT SOCIAL CARE,LONDON CARE LTD,557.85,PHY STS 65+,HOMECARE - IC,2103197562,1000003398
08.01.2021,ADULT SOCIAL CARE,LONDON CARE LTD,652.98,PHY STS 65+,HOMECARE - IC,2103197968,1000003398
08.01.2021,ADULT SOCIAL CARE,LONDON CARE LTD,703.34,PHY STS 65+,HOMECARE - IC,2103197803,1000003398
08.01.2021,ADULT SOCIAL CARE,BLISSETT CARE LTD,891.75,PHY STS 65+,HOMECARE - IC,2103198011,1000042627
08.01.2021,ADULT SOCIAL CARE,SUPREME CARE SERVICES LTD,285.54,PHY STS 65+,HOMECARE - IC,2103197124,1000059416
08.01.2021,ADULT SOCIAL CARE,SUPREME CARE SERVICES LTD,286.12,PHY STS 65+,HOMECARE - IC,2103197112,1000059416
08.01.2021,ADULT SOCIAL CARE,SUPREME CARE SERVICES LTD,426.74,PHY STS 65+,HOMECARE - IC,2103197257,1000059416
08.01.2021,ADULT SOCIAL CARE,SUPREME CARE SERVICES LTD,580.54,PHY STS 65+,HOMECARE - IC,2103197128,1000059416
08.01.2021,ADULT SOCIAL CARE,SUPREME CARE SERVICES LTD,614.75,PHY STS 65+,HOMECARE - IC,2103197409,1000059416
08.01.2021,ADULT SOCIAL CARE,SUPREME CARE SERVICES LTD,650.21,PHY STS 65+,HOMECARE - IC,2103197440,1000059416
08.01.2021,ADULT SOCIAL CARE,SUPREME CARE SERVICES LTD,767.33,PHY STS 65+,HOMECARE - IC,2103197069,1000059416
08.01.2021,ADULT SOCIAL CARE,SUPREME CARE SERVICES LTD,"1,221.52",PHY STS 65+,HOMECARE - IC,2103197309,1000059416
08.01.2021,ADULT SOCIAL CARE,PROFAD CARE AGENCY,"1,358.64",PHY STS 65+,HOMECARE - IC,2103197476,1000079032
08.01.2021,ADULT SOCIAL CARE,PROFAD CARE AGENCY,"2,660.67",PHY STS 65+,HOMECARE - IC,2103197505,1000079032
08.01.2021,ADULT SOCIAL CARE,LONDON CARE LTD,250.61,SEN LTS 65+,HOMECARE - C&V,2103197614,1000003398
08.01.2021,ADULT SOCIAL CARE,LONDON CARE LTD,"1,289.06",SEN LTS 65+,HOMECARE - C&V,2103197581,1000003398
08.01.2021,ADULT SOCIAL CARE,SUPREME CARE SERVICES LTD,453.8,SEN LTS 65+,HOMECARE - C&V,2103197372,1000059416
08.01.2021,ADULT SOCIAL CARE,SUPREME CARE SERVICES LTD,929.22,SEN LTS 65+,HOMECARE - C&V,2103197286,1000059416
08.01.2021,ADULT SOCIAL CARE,SUPREME CARE SERVICES LTD,"2,272.66",SEN LTS 65+,HOMECARE - C&V,2103197116,1000059416
08.01.2021,ADULT SOCIAL CARE,LONDON CARE LTD,465.4,SOCIAL ISOLATION,HOMECARE - C&V,2103197626,1000003398
08.01.2021,ADULT SOCIAL CARE,LONDON CARE LTD,613.22,SOCIAL ISOLATION,HOMECARE - C&V,2103197885,1000003398
08.01.2021,ADULT SOCIAL CARE,LONDON CARE LTD,903.37,SOCIAL ISOLATION,HOMECARE - C&V,2103197915,1000003398
08.01.2021,ADULT SOCIAL CARE,LONDON CARE LTD,"1,032.75",SOCIAL ISOLATION,HOMECARE - C&V,2103197805,1000003398
08.01.2021,ADULT SOCIAL CARE,LONDON CARE LTD,"1,249.50",SOCIAL ISOLATION,HOMECARE - C&V,2103197637,1000003398
08.01.2021,ADULT SOCIAL CARE,LONDON CARE LTD,"1,459.02",SOCIAL ISOLATION,HOMECARE - C&V,2103197700,1000003398
08.01.2021,ADULT SOCIAL CARE,SUPREME CARE SERVICES LTD,434.31,SOCIAL ISOLATION,HOMECARE - C&V,2103197050,1000059416
08.01.2021,ADULT SOCIAL CARE,SUPREME CARE SERVICES LTD,580.4,SOCIAL ISOLATION,HOMECARE - C&V,2103197061,1000059416
08.01.2021,ADULT SOCIAL CARE,SUPREME CARE SERVICES LTD,694.92,SOCIAL ISOLATION,HOMECARE - C&V,2103197285,1000059416
08.01.2021,ADULT SOCIAL CARE,SUPREME CARE SERVICES LTD,"1,163.90",SOCIAL ISOLATION,HOMECARE - C&V,2103197279,1000059416
08.01.2021,ADULT SOCIAL CARE,SUPREME CARE SERVICES LTD,"2,378.39",SOCIAL ISOLATION,HOMECARE - C&V,2103197226,1000059416
08.01.2021,ADULT SOCIAL CARE,SUPREME CARE SERVICES LTD,"3,333.54",SOCIAL ISOLATION,HOMECARE - C&V,2103197227,1000059416
08.01.2021,ADULT SOCIAL CARE,PROFAD CARE AGENCY,943.5,SOCIAL ISOLATION,HOMECARE - SPOT,2103197521,1000079032
08.01.2021,ADULT SOCIAL CARE,LONDON CARE LTD,290.91,SUB LTS 18-64,HOMECARE - C&V,2103197943,1000003398
08.01.2021,ADULT SOCIAL CARE,SUPREME CARE SERVICES LTD,794.17,SUB LTS 18-64,HOMECARE - C&V,2103197122,1000059416
08.01.2021,ASSET MANAGEMENT,STANNAH LIFT SERVICES LTD,"2,741.00",ADAPTATIONS,BUILDING R&M,5902450214,1063595
08.01.2021,ASSET MANAGEMENT,STANNAH LIFT SERVICES LTD,"2,811.00",ADAPTATIONS,BUILDING R&M,5902450182,1063595
08.01.2021,ASSET MANAGEMENT,CLOSOMAT LTD,"4,380.00",ADAPTATIONS,BUILDING R&M,5902450267,1793628
08.01.2021,ASSET MANAGEMENT,PINNACLE BUILDING SERVICES,285,ADAPTATIONS,BUILDING R&M,5902450099,1000082308
08.01.2021,ASSET MANAGEMENT,CALFORD SEADEN LLP,"1,175.00",DESIGN & DELIVERY,PROFESSIONAL FEES,5902450101,1061592
08.01.2021,ASSET MANAGEMENT,GC CONSTRUCT LTD,280,DIRECTOR OF ASSET MANAGEMENT,OTHER R&M,5902450089,1000082102
08.01.2021,ASSET MANAGEMENT,GC CONSTRUCT LTD,520,DIRECTOR OF ASSET MANAGEMENT,OTHER R&M,5902450089,1000082102
08.01.2021,ASSET MANAGEMENT,GC CONSTRUCT LTD,"4,950.00",DIRECTOR OF ASSET MANAGEMENT,OTHER R&M,5902450089,1000082102
08.01.2021,ASSET MANAGEMENT,GC CONSTRUCT LTD,"28,750.00",DIRECTOR OF ASSET MANAGEMENT,OTHER R&M,5902450089,1000082102
08.01.2021,ASSET MANAGEMENT,STABILIS ASSOCIATES LTD,"7,760.58",REPAIRS OPERATIONS,PROFESSIONAL FEES,5902450091,1000082512
08.01.2021,CENTRAL FUNCTIONS,ENGIE REGENERATION (APOLLO) LTD,"179,991.29",LEDBURY ESTATE,PLANNED MAINTENANCE,2103196995,4000449
08.01.2021,CHIEF EXECUTIVE,WYNNE-WILLIAMS ASSOCIATES LTD,"3,600.00",CAPITAL PS (REGEN),CONSTRUCTION FEES  - EXTERNAL,5902450257,1000081419
08.01.2021,CHILDREN AND ADULT,STANDAGE & CO LTD,"27,519.00",CAPITAL PS (EDUCATION),FIT-OUT,2103196987,4002817
08.01.2021,CHILDREN AND ADULT,STONEGROVE LIMITED,"62,475.99",CAPITAL PS (SOC SERV),CONSTRUCTION MAIN CONTRACT,2103196988,3000001525
08.01.2021,CHILDREN AND FAMILIES,INTERPRETING DIRECT CO (UK) LTD,"8,415.00",CENTRAL SUPPORT,INTERPRETING SERVICES,5902450094,1000070133
08.01.2021,CHILDREN AND FAMILIES,INTERPRETING DIRECT CO (UK) LTD,"9,990.00",CENTRAL SUPPORT,INTERPRETING SERVICES,5902450088,1000070133
08.01.2021,CHILDREN AND FAMILIES,INTERPRETING DIRECT CO (UK) LTD,"2,646.00",CENTRAL SUPPORT,TRANSLATION SERVICES,5902450090,1000070133
08.01.2021,CHILDREN AND FAMILIES,WILLISPALMER,"1,953.00",FAMILY ASSESS RESID,RESIDENTIAL CARE,5902450238,1000056409
08.01.2021,CHILDREN AND FAMILIES,WILLISPALMER,"3,145.00",FAMILY ASSESS RESID,RESIDENTIAL CARE,5902450231,1000056409
08.01.2021,CHILDREN AND FAMILIES,WILLISPALMER,"3,145.00",FAMILY ASSESS RESID,RESIDENTIAL CARE,5902450240,1000056409
08.01.2021,CHILDREN AND FAMILIES,REDACTED PERSONAL DATA,300,FE SUPPORT,CLIENT TRANSPORT,REDACTED,REDACTED
08.01.2021,CHILDREN AND FAMILIES,REDACTED PERSONAL DATA,765.14,FRIENDS &FAMILY FOST,PAYMENTS TO CARERS,REDACTED,REDACTED
08.01.2021,CHILDREN AND FAMILIES,REDACTED PERSONAL DATA,391.2,LEAVING CARE GRANT,OTHER PAYMENTS FOR CLIENTS,REDACTED,REDACTED
08.01.2021,CHILDREN AND FAMILIES,BRIDGE THE GAP STUDIOS LTD,"1,800.00",MGMT & PARENTING,TRAINING,5902450222,1000085821
08.01.2021,CHILDREN AND FAMILIES,HEARTWOOD OUTREACH SERVICES LTD,"1,887.59",SEMI-IND CARELEAVERS,EXTERNAL AGENCIES AND BODIES,2103198056,1000075021
08.01.2021,CHILDREN AND FAMILIES,HEARTWOOD OUTREACH SERVICES LTD,350,SEMI-IND CARELEAVERS,OTHER PAYMENTS FOR CLIENTS,2103198057,1000075021
08.01.2021,CHILDREN AND FAMILIES,FINEFAIR LTD,"1,306.32",SEMI-IND CARELEAVERS,EXTERNAL AGENCIES AND BODIES,2103198060,1000075570
08.01.2021,CHILDREN AND FAMILIES,POTTON KARE SERVICES LTD,594,SEMI-IND LAC 16-17,OTHER PAYMENTS FOR CLIENTS,2103198049,1000080630
08.01.2021,CHILDREN AND FAMILIES,BRIGHT YOUNG FUTURES LTD,"3,764.28",SEMI-IND LAC 16-17,EXTERNAL AGENCIES AND BODIES,2103198050,1000083958
08.01.2021,CHILDREN AND FAMILIES,BRIGHT YOUNG FUTURES LTD,479.99,SEMI-IND LAC 16-17,OTHER PAYMENTS FOR CLIENTS,2103198051,1000083958
08.01.2021,CHILDREN AND FAMILIES,BASILDON TAXIS LTD,572.25,SEMI-IND LAC 16-17,OTHER PAYMENTS FOR CLIENTS,2103198054,1000085466
08.01.2021,CHILDREN AND FAMILIES,REDACTED PERSONAL DATA,341.82,SPECIAL GUARDIANSHIP,PAYMENTS TO CARERS,REDACTED,REDACTED
08.01.2021,CHILDREN AND FAMILIES,REDACTED PERSONAL DATA,355.86,SPECIAL GUARDIANSHIP,PAYMENTS TO CARERS,REDACTED,REDACTED
08.01.2021,CHILDREN AND FAMILIES,ZENITH CARS LTD,"1,482.00",TEAM B,HIRED VEHICLES,5902450221,1000070570
08.01.2021,CHILDREN AND FAMILIES,HOMES ASSOCIATION LTD,"4,920.00",UASC CARELEAVERS,EXTERNAL AGENCIES AND BODIES,2103198058,1000084710
08.01.2021,CHILDREN AND FAMILIES,CARE R US LTD,885.72,UASC LAC 16-17,EXTERNAL AGENCIES AND BODIES,2103198052,1000053515
08.01.2021,COMMUNITIES,SOUTHWARK CITIZENS ADVICE,"60,000.00",LEGAL GRANTS,EXTERNAL AGENCIES AND BODIES,5902450264,1874379
08.01.2021,COMMUNITIES,SOUTHWARK CITIZENS ADVICE,"150,000.00",LEGAL GRANTS,EXTERNAL AGENCIES AND BODIES,5902450264,1874379
08.01.2021,COMMUNITIES,SOUTHWARK LAW CENTRE,"84,000.00",LEGAL GRANTS,EXTERNAL AGENCIES AND BODIES,5902450269,1981325
08.01.2021,COMMUNITIES,GALAXY LETTINGS LTD,"6,257.00",NO RECOURSE TO PUBLIC FUNDS,ACCOMMODATION CHARGES,5902450095,1000055897
08.01.2021,COMMUNITIES,SUPREME CARE SERVICES LTD,437.2,NO RECOURSE TO PUBLIC FUNDS,HOMECARE - C&V,2103197295,1000059416
08.01.2021,COMMUNITIES,EDEN ESTATES LONDON LTD,"1,437.00",NO RECOURSE TO PUBLIC FUNDS,ACCOMMODATION CHARGES,5902450110,1000061217
08.01.2021,COMMUNITIES,SOUTH OF THE RIVER INVESTMENTS LTD,"5,457.00",NO RECOURSE TO PUBLIC FUNDS,ACCOMMODATION CHARGES,5902450068,1000073638
08.01.2021,COMMUNITIES,NATIONWIDE ACCOMMODATION,"4,170.00",NO RECOURSE TO PUBLIC FUNDS,ACCOMMODATION CHARGES,5902450117,1000076112
08.01.2021,COMMUNITIES,PROFAD CARE AGENCY,509.49,NO RECOURSE TO PUBLIC FUNDS,HOMECARE - C&V,2103197501,1000079032
08.01.2021,COMMUNITIES,PROFAD CARE AGENCY,695.52,NO RECOURSE TO PUBLIC FUNDS,HOMECARE - C&V,2103197522,1000079032
08.01.2021,CUSTOMER EXPERIENCE HGF,REST UP,"3,600.00",COVID-19 SUPPORT,EXTERNAL AGENCIES AND BODIES,5902450253,1000084299
08.01.2021,CUSTOMER EXPERIENCE HGF,REST UP,"17,100.00",COVID-19 SUPPORT,EXTERNAL AGENCIES AND BODIES,5902450248,1000084299
08.01.2021,CUSTOMER EXPERIENCE HGF,HELP2SUPPORT LIMITED,"2,485.44",HOMELESS PROJECTS,GRANTS,5902450108,1000084604
08.01.2021,CUSTOMER EXPERIENCE HGF,I LOVE HOMES LIMITED,"2,596.64",HOMELESS PROJECTS,GRANTS,5902450218,1000086024
08.01.2021,CUSTOMER EXPERIENCE HGF,ALLSOP LETTING & MANAGEMENT,"3,507.69",HOMELESS PROJECTS,GRANTS,5902450281,1000086050
08.01.2021,CUSTOMER EXPERIENCE HGF,REDACTED PERSONAL DATA,"3,070.41",HOMELESS PROJECTS,GRANTS,REDACTED,REDACTED
08.01.2021,CUSTOMER EXPERIENCE HGF,NOWMEDICAL LTD,"4,029.00",HOUSING OPTIONS,PROFESSIONAL FEES,5902450228,1000068185
08.01.2021,CUSTOMER EXPERIENCE HGF,NOWMEDICAL LTD,"4,896.00",HOUSING OPTIONS,PROFESSIONAL FEES,5902450234,1000068185
08.01.2021,CUSTOMER EXPERIENCE HGF,NOWMEDICAL LTD,"5,642.00",HOUSING OPTIONS,PROFESSIONAL FEES,5902450252,1000068185
08.01.2021,DSG,TINU ODEKU T/A LITTLE ANGELS CHILDCARE SERVICES,"6,507.00",NURSERY ED GRANT 3 AND 4 YR OLDS,GRANTS,2103198070,1000058464
08.01.2021,ENVIRONMENT AND LEISURE,GAIST SOLUTIONS LTD,"6,257.60",CAPITAL PS (LEISURE),CONSTR'N SUB CONTRACT - NON CERTIFICATED,5902450215,1000083443
08.01.2021,ENVIRONMENT AND LEISURE,GAIST SOLUTIONS LTD,"6,257.60",CAPITAL PS (LEISURE),CONSTR'N SUB CONTRACT - NON CERTIFICATED,5902450216,1000083443
08.01.2021,ENVIRONMENT AND LEISURE,LBOX COMMUNICATIONS,"8,937.50",COVID-19 TEST & TRACE SUPPORT GRANT,MARKETING & PUBLICITY SERVICES,5902450272,1000044844
08.01.2021,ENVIRONMENT AND LEISURE,LBOX COMMUNICATIONS,"12,512.50",COVID-19 TEST & TRACE SUPPORT GRANT,MARKETING & PUBLICITY SERVICES,5902450277,1000044844
08.01.2021,ENVIRONMENT DIRECTORATE,THE T P PARTNERSHIP,445,ESTATE CLEANING-GENERAL,OTHER CONTRACTORS,5902450258,1000045906
08.01.2021,ENVIRONMENT DIRECTORATE,BAKER ENGINEERING,652.99,STREET CLEANING-GENERAL,EQUIPMENT PURCHASE & REPAIR,5902450246,1000038205
08.01.2021,EXTERNAL AFFAIRS,ACCESS INTELLIGENCE MEDIA & COMMUNICATIONS LTD,"5,999.99",EXTERNAL AFFAIRS SALARIES,MISCELLANEOUS EXPENSES,5902450078,1000015034
08.01.2021,EXTERNAL AFFAIRS,LBOX COMMUNICATIONS,"8,952.69",SOUTHWARK LIFE,DELIVERY CHARGES,5902450275,1000044844
08.01.2021,F & C S EXCLUDING CORPORATE BUDGETS,INFORM CPI LTD,"3,525.00",NNDR,PROFESSIONAL FEES,5902450255,1000073418
08.01.2021,F & C S EXCLUDING CORPORATE BUDGETS,BUDGET CARPETS,279.17,SESS,OTHER PAYMENTS FOR CLIENTS,5902450186,11319076
08.01.2021,F & C S EXCLUDING CORPORATE BUDGETS,BUDGET CARPETS,308.33,SESS,OTHER PAYMENTS FOR CLIENTS,5902450188,11319076
08.01.2021,F & C S EXCLUDING CORPORATE BUDGETS,BUDGET CARPETS,520.83,SESS,OTHER PAYMENTS FOR CLIENTS,5902450189,11319076
08.01.2021,F & C S EXCLUDING CORPORATE BUDGETS,REDACTED PERSONAL DATA,500,SESS,OTHER PAYMENTS FOR CLIENTS,REDACTED,REDACTED
08.01.2021,F & C S EXCLUDING CORPORATE BUDGETS,REDACTED PERSONAL DATA,500,SESS,OTHER PAYMENTS FOR CLIENTS,REDACTED,REDACTED
08.01.2021,F & C S EXCLUDING CORPORATE BUDGETS,REDACTED PERSONAL DATA,500,SESS,OTHER PAYMENTS FOR CLIENTS,REDACTED,REDACTED
08.01.2021,F & C S EXCLUDING CORPORATE BUDGETS,REDACTED PERSONAL DATA,500,SESS,OTHER PAYMENTS FOR CLIENTS,REDACTED,REDACTED
08.01.2021,F & C S EXCLUDING CORPORATE BUDGETS,REDACTED PERSONAL DATA,500,SESS,OTHER PAYMENTS FOR CLIENTS,REDACTED,REDACTED
08.01.2021,F & C S EXCLUDING CORPORATE BUDGETS,REDACTED PERSONAL DATA,500,SESS,OTHER PAYMENTS FOR CLIENTS,REDACTED,REDACTED
08.01.2021,F & C S EXCLUDING CORPORATE BUDGETS,REDACTED PERSONAL DATA,500,SESS,OTHER PAYMENTS FOR CLIENTS,REDACTED,REDACTED
08.01.2021,F & C S EXCLUDING CORPORATE BUDGETS,REDACTED PERSONAL DATA,500,SESS,OTHER PAYMENTS FOR CLIENTS,REDACTED,REDACTED
08.01.2021,F & C S EXCLUDING CORPORATE BUDGETS,REDACTED PERSONAL DATA,500,SESS,OTHER PAYMENTS FOR CLIENTS,REDACTED,REDACTED
08.01.2021,F & C S EXCLUDING CORPORATE BUDGETS,REDACTED PERSONAL DATA,500,SESS,OTHER PAYMENTS FOR CLIENTS,REDACTED,REDACTED
08.01.2021,F & C S EXCLUDING CORPORATE BUDGETS,REDACTED PERSONAL DATA,500,SESS,OTHER PAYMENTS FOR CLIENTS,REDACTED,REDACTED
08.01.2021,F & C S EXCLUDING CORPORATE BUDGETS,REDACTED PERSONAL DATA,500,SESS,OTHER PAYMENTS FOR CLIENTS,REDACTED,REDACTED
08.01.2021,F & C S EXCLUDING CORPORATE BUDGETS,REDACTED PERSONAL DATA,500,SESS,OTHER PAYMENTS FOR CLIENTS,REDACTED,REDACTED
08.01.2021,F & C S EXCLUDING CORPORATE BUDGETS,REDACTED PERSONAL DATA,500,SESS,OTHER PAYMENTS FOR CLIENTS,REDACTED,REDACTED
08.01.2021,F & C S EXCLUDING CORPORATE BUDGETS,REDACTED PERSONAL DATA,500,SESS,OTHER PAYMENTS FOR CLIENTS,REDACTED,REDACTED
08.01.2021,F & C S EXCLUDING CORPORATE BUDGETS,REDACTED PERSONAL DATA,500,SESS,OTHER PAYMENTS FOR CLIENTS,REDACTED,REDACTED
08.01.2021,F & C S EXCLUDING CORPORATE BUDGETS,REDACTED PERSONAL DATA,500,SESS,OTHER PAYMENTS FOR CLIENTS,REDACTED,REDACTED
08.01.2021,HOUSING GENERAL FUND,FLEXIFORM BUSINESS FURNITURE LIMITED,664.5,CAPITAL PS (HOUSING GF),FURNITURE & FITTINGS ACQUISITION,5902450195,1000043435
08.01.2021,HOUSING HRA,CALFORD SEADEN LLP,979.02,CAPITAL PS (HRA),CONSTRUCTION FEES  - EXTERNAL,5902450083,1061592
08.01.2021,HOUSING HRA,CALFORD SEADEN LLP,"4,597.13",CAPITAL PS (HRA),CONSTRUCTION FEES  - EXTERNAL,5902450092,1061592
08.01.2021,HOUSING HRA,ENGIE REGENERATION (APOLLO) LTD,"328,870.14",CAPITAL PS (HRA),CONSTRUCTION MAIN CONTRACT -CERTIFICATED,2103198064,4000449
08.01.2021,HOUSING HRA,A & E ELKINS LTD,"8,805.65",CAPITAL PS (HRA),CONSTRUCTION MAIN CONTRACT -CERTIFICATED,2103196994,4012501
08.01.2021,HOUSING HRA,A & E ELKINS LTD,"10,397.49",CAPITAL PS (HRA),CONSTRUCTION MAIN CONTRACT -CERTIFICATED,2103196996,4012501
08.01.2021,HOUSING HRA,A & E ELKINS LTD,"63,284.03",CAPITAL PS (HRA),CONSTRUCTION MAIN CONTRACT -CERTIFICATED,2103198063,4012501
08.01.2021,HOUSING HRA,SALTASH ENTERPRISES LTD,"37,728.57",CAPITAL PS (HRA),CONSTRUCTION MAIN CONTRACT -CERTIFICATED,2103198073,4013605
08.01.2021,HOUSING HRA,SALTASH ENTERPRISES LTD,"52,826.51",CAPITAL PS (HRA),CONSTRUCTION MAIN CONTRACT -CERTIFICATED,2103198071,4013605
08.01.2021,HOUSING HRA,SALTASH ENTERPRISES LTD,"86,887.66",CAPITAL PS (HRA),CONSTRUCTION MAIN CONTRACT -CERTIFICATED,2103198072,4013605
08.01.2021,HOUSING HRA,SALTASH ENTERPRISES LTD,"188,999.57",CAPITAL PS (HRA),CONSTRUCTION MAIN CONTRACT -CERTIFICATED,2103198067,4013605
08.01.2021,HOUSING HRA,COTTRELL AND VERMEULEN ARCH LTD,"11,603.18",CAPITAL PS (HRA),CONSTRUCTION FEES  - EXTERNAL,5902450256,1000012119
08.01.2021,HOUSING HRA,VEOLIA ES SOUTHWARK LTD,"5,654.12",CAPITAL PS (HRA),CONSTRUCTION,5902450178,1000056979
08.01.2021,HOUSING HRA,CRS DRAWING AND DESIGN LTD,"20,340.00",CAPITAL PS (HRA),CONSTRUCTION,5902450213,1000085835
08.01.2021,HOUSING HRA,ENGIE REGENERATION LTD,"43,820.12",CAPITAL PS (HRA),CONSTRUCTION MAIN CONTRACT -CERTIFICATED,2103196997,3000002035
08.01.2021,HOUSING HRA,ENGIE REGENERATION LTD,"136,678.77",CAPITAL PS (HRA),CONSTRUCTION MAIN CONTRACT -CERTIFICATED,2103196998,3000002035
08.01.2021,HOUSING HRA,CALFORD SEADEN LLP,"1,950.00",CAPITAL PS (REGEN),CONSTRUCTION FEES  - EXTERNAL,5902450235,1061592
08.01.2021,HOUSING HRA,HOARE LEA CONSULTING ENGINEERS,"5,560.93",CAPITAL PS (REGEN),CONSTRUCTION FEES  - EXTERNAL,5902450233,1000056233
08.01.2021,HOUSING HRA,PROJECT CENTRE LTD,"3,000.00",CAPITAL PS (REGEN),CONSTRUCTION FEES  - EXTERNAL,5902450273,1000072621
08.01.2021,HOUSING HRA,PROJECT CENTRE LTD,"5,805.00",CAPITAL PS (REGEN),CONSTRUCTION FEES  - EXTERNAL,5902450273,1000072621
08.01.2021,HOUSING HRA,WALDRAMS LTD,"2,500.00",CAPITAL PS (REGEN),CONSTRUCTION FEES  - EXTERNAL,5902450199,1000083705
08.01.2021,LEISURE DIRECTORATE,LONDON BUBBLE THEATRE COMPANY,"7,000.00",ARTS GRANTS,GRANTS,5902450268,11022517
08.01.2021,LEISURE DIRECTORATE,TOTAL GAS & POWER LIMITED,418.45,BURGESS AREA TEAM,GAS,5902450103,1000054198
08.01.2021,LEISURE DIRECTORATE,NPOWER LTD,364.35,GROVE VALE LIBRARY,ELECTRICITY,5902450237,1000078994
08.01.2021,LEISURE DIRECTORATE,QUADRON SERVICES LIMITED,"2,222.62",HOMERSTALL ROAD SPORTS GROUND,EQUIPMENT PURCHASE & REPAIR,5902450278,1000066528
08.01.2021,MODERNISATION HGF,SHARPE PRITCHARD LLP,308,CFM OPERATIONAL BUDGET,SOLICITORS FRAMEWORK LEGAL SERVICES,5902450261,1790085
08.01.2021,MODERNISATION HGF,SHARPE PRITCHARD LLP,476,CFM OPERATIONAL BUDGET,SOLICITORS FRAMEWORK LEGAL SERVICES,5902450260,1790085
08.01.2021,MODERNISATION HGF,JOHN GROUNDS CONSULTANCY LTD,500,MEMBER DEVELOPMENT,TRAINING,5902450262,1000086116
08.01.2021,MODERNISATION HGF,KENT COUNTY COUNCIL - LASER,"8,652.27",QUEENS RD 1 (BLOCK F),ELECTRICITY,5902450198,1000012926
08.01.2021,PUBLIC HEALTH,W A NICHOLSON LIMITED,"10,000.00",PLACE & HEALTH IMPROVEMENT,EXTERNAL AGENCIES AND BODIES,5902450076,1000085960
08.01.2021,RESIDENT SERVICES,BRITISH GAS TRADING LTD,306.12,OPERATIONS/OFFICES ACCOMMODATION,ELECTRICITY,5902450265,1000055977
08.01.2021,RESIDENT SERVICES,HARROW GREEN LTD,967.57,OPERATIONS/OFFICES ACCOMMODATION,REMOVAL EXPENSES,5902450115,1000076673
08.01.2021,RESIDENT SERVICES,HARROW GREEN LTD,"1,270.70",OPERATIONS/OFFICES ACCOMMODATION,REMOVAL EXPENSES,5902450118,1000076673
08.01.2021,RESIDENT SERVICES,HARROW GREEN LTD,"1,469.82",OPERATIONS/OFFICES ACCOMMODATION,REMOVAL EXPENSES,5902450111,1000076673
08.01.2021,RESIDENT SERVICES,HARROW GREEN LTD,"1,666.00",OPERATIONS/OFFICES ACCOMMODATION,REMOVAL EXPENSES,5902450037,1000076673
08.01.2021,RESIDENT SERVICES,HARROW GREEN LTD,"2,232.97",OPERATIONS/OFFICES ACCOMMODATION,REMOVAL EXPENSES,5902450036,1000076673
08.01.2021,RESIDENT SERVICES,HARROW GREEN LTD,"3,515.50",OPERATIONS/OFFICES ACCOMMODATION,REMOVAL EXPENSES,5902450038,1000076673
08.01.2021,RESIDENT SERVICES,HARROW GREEN LTD,"4,293.15",OPERATIONS/OFFICES ACCOMMODATION,REMOVAL EXPENSES,5902450112,1000076673
08.01.2021,RESIDENT SERVICES,MCMAHON & PARTNERS LTD,350,PRIVATE SERVICE CHARGES,RENTS,2103197013,1000083182
08.01.2021,RESIDENT SERVICES,MCMAHON & PARTNERS LTD,350,PRIVATE SERVICE CHARGES,RENTS,2103197017,1000083182
08.01.2021,RESIDENT SERVICES,MCMAHON & PARTNERS LTD,350,PRIVATE SERVICE CHARGES,RENTS,2103197021,1000083182
08.01.2021,RESIDENT SERVICES,MCMAHON & PARTNERS LTD,350,PRIVATE SERVICE CHARGES,RENTS,2103197023,1000083182
08.01.2021,RESIDENT SERVICES,MCMAHON & PARTNERS LTD,350,PRIVATE SERVICE CHARGES,RENTS,2103197027,1000083182
08.01.2021,RESIDENT SERVICES,MCMAHON & PARTNERS LTD,350,PRIVATE SERVICE CHARGES,RENTS,2103197029,1000083182
08.01.2021,RESIDENT SERVICES,MCMAHON & PARTNERS LTD,450,PRIVATE SERVICE CHARGES,RENTS,2103197012,1000083182
08.01.2021,RESIDENT SERVICES,MCMAHON & PARTNERS LTD,450,PRIVATE SERVICE CHARGES,RENTS,2103197019,1000083182
08.01.2021,RESIDENT SERVICES,MCMAHON & PARTNERS LTD,450,PRIVATE SERVICE CHARGES,SERVICE CHARGES,2103197015,1000083182
08.01.2021,RESIDENT SERVICES,MCMAHON & PARTNERS LTD,"1,026.73",PRIVATE SERVICE CHARGES,SERVICE CHARGES,2103197010,1000083182
08.01.2021,RESIDENT SERVICES,MCMAHON & PARTNERS LTD,"1,026.73",PRIVATE SERVICE CHARGES,SERVICE CHARGES,2103197024,1000083182
08.01.2021,RESIDENT SERVICES,MCMAHON & PARTNERS LTD,"1,213.99",PRIVATE SERVICE CHARGES,SERVICE CHARGES,2103197028,1000083182
08.01.2021,RESIDENT SERVICES,MCMAHON & PARTNERS LTD,"1,635.81",PRIVATE SERVICE CHARGES,SERVICE CHARGES,2103197016,1000083182
08.01.2021,RESIDENT SERVICES,MCMAHON & PARTNERS LTD,"1,635.81",PRIVATE SERVICE CHARGES,SERVICE CHARGES,2103197020,1000083182
08.01.2021,RESIDENT SERVICES,MCMAHON & PARTNERS LTD,"1,635.81",PRIVATE SERVICE CHARGES,SERVICE CHARGES,2103197022,1000083182
08.01.2021,RESIDENT SERVICES,MCMAHON & PARTNERS LTD,"1,661.42",PRIVATE SERVICE CHARGES,SERVICE CHARGES,2103197009,1000083182
08.01.2021,RESIDENT SERVICES,MCMAHON & PARTNERS LTD,"1,661.42",PRIVATE SERVICE CHARGES,SERVICE CHARGES,2103197026,1000083182
08.01.2021,RESIDENT SERVICES,MCMAHON & PARTNERS LTD,"2,098.29",PRIVATE SERVICE CHARGES,SERVICE CHARGES,2103197011,1000083182
08.01.2021,RESIDENT SERVICES,MCMAHON & PARTNERS LTD,"2,098.29",PRIVATE SERVICE CHARGES,SERVICE CHARGES,2103197014,1000083182
08.01.2021,RESIDENT SERVICES,MCMAHON & PARTNERS LTD,"2,098.29",PRIVATE SERVICE CHARGES,SERVICE CHARGES,2103197018,1000083182
08.01.2021,RESIDENT SERVICES,THAMES WATER UTILITIES LTD,577.02,SHELTERED NORTH,WATER,5902450206,1630755
08.01.2021,SBS OPERATIONS,TRAVIS PERKINS TRADING COMPANY LTD,319.2,CAMBERWELL DD,MATERIALS,5902450155,1514319
08.01.2021,SBS OPERATIONS,TRAVIS PERKINS TRADING COMPANY LTD,"1,015.60",PECKHAM VOIDS,MATERIALS,5902450107,1514319
08.01.2021,SBS OPERATIONS,TRAVIS PERKINS TRADING COMPANY LTD,825,SBS AIDS AND ADAPTATIONS,MATERIALS,5902450156,1514319
08.01.2021,SBS OPERATIONS,TRAVIS PERKINS TRADING COMPANY LTD,853.2,SBS AIDS AND ADAPTATIONS,MATERIALS,5902450156,1514319
08.01.2021,SBS SUPPORT,TOTALMOBILE LTD,"8,000.00",ICT & COMMUNICATIONS,SOFTWARE,5902450205,1000085502
09.01.2021,ADULT SOCIAL CARE,CHOICE SUPPORT,"8,832.00",DIR OF ASC,EXTERNAL AGENCIES AND BODIES,5902450263,1104183
09.01.2021,CUSTOMER EXPERIENCE HGF,VALTECH LTD,430.65,BLUE BADGES,MATERIALS,5902445906,1000082245
09.01.2021,RESIDENT SERVICES,THAMES WATER UTILITIES LTD,351.49,SHELTERED NORTH,WATER,5902450217,1630755
10.01.2021,CHIEF EXECUTIVE,MORRIS + COMPANY LTD,"5,540.00",CAPITAL PS (REGEN),CONSTRUCTION FEES,5902450184,1000084228
10.01.2021,CHIEF EXECUTIVE,MORRIS + COMPANY LTD,"7,296.00",CAPITAL PS (REGEN),CONSTRUCTION FEES,5902450183,1000084228
10.01.2021,ENVIRONMENT AND LEISURE,CROWN OIL LTD,699.5,SANDGATE STREET,VEHICLE FUEL,5902450244,1000081749
10.01.2021,HOUSING GENERAL FUND,WOODLANDS PETCARE LTD,"1,292.08",CAPITAL PS (HOUSING GF),CONSTRUCTION SITE COSTS,5902450002,1000063009
10.01.2021,HOUSING HRA,VITAL ENERGI UTILITIES LTD,"56,515.90",CAPITAL PS (HRA),CONSTRUCTION MAIN CONTRACT -CERTIFICATED,2103198074,3000001040
10.01.2021,MODERNISATION HGF,OFFICE DEPOT UK LTD,"2,058.48",160 TOOLEY ST.,STATIONERY,5902450225,1109426
10.01.2021,MODERNISATION HGF,OFFICE DEPOT UK LTD,"1,402.64",QUEENS RD 1 (BLOCK F),STATIONERY,5902450192,1109426
11.01.2021,ADULT SOCIAL CARE,OSBORNES SOLICITORS,"26,351.01",APPOINTEESHIPS,OTHER PAYMENTS FOR CLIENTS,5902450384,1000052598
11.01.2021,ADULT SOCIAL CARE,REDACTED PERSONAL DATA,279.85,APPOINTEESHIPS,OTHER PAYMENTS FOR CLIENTS,REDACTED,REDACTED
11.01.2021,ADULT SOCIAL CARE,REDACTED PERSONAL DATA,"9,378.96",APPOINTEESHIPS,OTHER PAYMENTS FOR CLIENTS,REDACTED,REDACTED
11.01.2021,ADULT SOCIAL CARE,INDEPENDENT PEOPLE HOMECARE LTD,"3,985.71",CARERS SERVICES,PLACEMENTS - RESPITE,2103198248,1000083488
11.01.2021,ADULT SOCIAL CARE,COLT TECHNOLOGY SERVICES,314.48,CLIENT FINANCE TEAM,TELEPHONES (LAND LINES),5902450194,1000009377
11.01.2021,ADULT SOCIAL CARE,SWK AFRICAN FAMILY SUPPORT SVCS,"1,408.03",DIR OF ASC,EXTERNAL AGENCIES AND BODIES,5902450326,1000057648
11.01.2021,ADULT SOCIAL CARE,LONDON CYRENIANS HOUSING LTD,512,DIR OF ASC,EXTERNAL AGENCIES AND BODIES,5902450358,1000078600
11.01.2021,ADULT SOCIAL CARE,LONDON CYRENIANS HOUSING LTD,512,DIR OF ASC,EXTERNAL AGENCIES AND BODIES,5902450361,1000078600
11.01.2021,ADULT SOCIAL CARE,THE DRIVE CARE HOMES LTD,"1,320.00",DISABILITIES LAC,OTHER PAYMENTS FOR CLIENTS,2103198193,1000003889
11.01.2021,ADULT SOCIAL CARE,FOSTERING SUPPORT GROUP LTD,"5,314.02",DISABILITIES LAC,EXTERNAL AGENCIES AND BODIES,2103198173,1000065830
11.01.2021,ADULT SOCIAL CARE,AMELIA'S HOUSE LIMITED,"13,950.00",DISABILITIES LAC,EXTERNAL AGENCIES AND BODIES,2103198192,1000083007
11.01.2021,ADULT SOCIAL CARE,AMELIA'S HOUSE LIMITED,"18,600.00",DISABILITIES LAC,RESIDENTIAL CARE,2103198190,1000083007
11.01.2021,ADULT SOCIAL CARE,ELEANOR NURSING AND SOCIAL CARE LTD,873.63,DISCHARGE TO ACCESS,HOMECARE - SPOT,2103198132,1000081695
11.01.2021,ADULT SOCIAL CARE,THE CAMDEN SOCIETY (SOCIAL CARE),376.8,LD LTS 18-64,DAYCARE,2103198198,1000036369
11.01.2021,ADULT SOCIAL CARE,THE CAMDEN SOCIETY (SOCIAL CARE),384,LD LTS 18-64,DAYCARE,2103198226,1000036369
11.01.2021,ADULT SOCIAL CARE,THE CAMDEN SOCIETY (SOCIAL CARE),465.6,LD LTS 18-64,DAYCARE,2103198207,1000036369
11.01.2021,ADULT SOCIAL CARE,THE CAMDEN SOCIETY (SOCIAL CARE),480,LD LTS 18-64,DAYCARE,2103198219,1000036369
11.01.2021,ADULT SOCIAL CARE,THE CAMDEN SOCIETY (SOCIAL CARE),480,LD LTS 18-64,DAYCARE,2103198231,1000036369
11.01.2021,ADULT SOCIAL CARE,THE CAMDEN SOCIETY (SOCIAL CARE),480,LD LTS 18-64,DAYCARE,2103198244,1000036369
11.01.2021,ADULT SOCIAL CARE,THE CAMDEN SOCIETY (SOCIAL CARE),500,LD LTS 18-64,DAYCARE,2103198210,1000036369
11.01.2021,ADULT SOCIAL CARE,THE CAMDEN SOCIETY (SOCIAL CARE),500,LD LTS 18-64,DAYCARE,2103198211,1000036369
11.01.2021,ADULT SOCIAL CARE,THE CAMDEN SOCIETY (SOCIAL CARE),594,LD LTS 18-64,DAYCARE,2103198236,1000036369
11.01.2021,ADULT SOCIAL CARE,THE CAMDEN SOCIETY (SOCIAL CARE),599.36,LD LTS 18-64,DAYCARE,2103198214,1000036369
11.01.2021,ADULT SOCIAL CARE,THE CAMDEN SOCIETY (SOCIAL CARE),609.6,LD LTS 18-64,DAYCARE,2103198229,1000036369
11.01.2021,ADULT SOCIAL CARE,THE CAMDEN SOCIETY (SOCIAL CARE),612,LD LTS 18-64,DAYCARE,2103198233,1000036369
11.01.2021,ADULT SOCIAL CARE,THE CAMDEN SOCIETY (SOCIAL CARE),674.16,LD LTS 18-64,DAYCARE,2103198203,1000036369
11.01.2021,ADULT SOCIAL CARE,THE CAMDEN SOCIETY (SOCIAL CARE),676.8,LD LTS 18-64,DAYCARE,2103198232,1000036369
11.01.2021,ADULT SOCIAL CARE,THE CAMDEN SOCIETY (SOCIAL CARE),704,LD LTS 18-64,DAYCARE,2103198194,1000036369
11.01.2021,ADULT SOCIAL CARE,THE CAMDEN SOCIETY (SOCIAL CARE),704,LD LTS 18-64,DAYCARE,2103198220,1000036369
11.01.2021,ADULT SOCIAL CARE,THE CAMDEN SOCIETY (SOCIAL CARE),704,LD LTS 18-64,DAYCARE,2103198225,1000036369
11.01.2021,ADULT SOCIAL CARE,THE CAMDEN SOCIETY (SOCIAL CARE),704,LD LTS 18-64,DAYCARE,2103198235,1000036369
11.01.2021,ADULT SOCIAL CARE,THE CAMDEN SOCIETY (SOCIAL CARE),704,LD LTS 18-64,DAYCARE,2103198240,1000036369
11.01.2021,ADULT SOCIAL CARE,THE CAMDEN SOCIETY (SOCIAL CARE),705.6,LD LTS 18-64,DAYCARE,2103198205,1000036369
11.01.2021,ADULT SOCIAL CARE,THE CAMDEN SOCIETY (SOCIAL CARE),705.6,LD LTS 18-64,DAYCARE,2103198218,1000036369
11.01.2021,ADULT SOCIAL CARE,THE CAMDEN SOCIETY (SOCIAL CARE),903.6,LD LTS 18-64,DAYCARE,2103198228,1000036369
11.01.2021,ADULT SOCIAL CARE,THE CAMDEN SOCIETY (SOCIAL CARE),960,LD LTS 18-64,DAYCARE,2103198200,1000036369
11.01.2021,ADULT SOCIAL CARE,THE CAMDEN SOCIETY (SOCIAL CARE),960,LD LTS 18-64,DAYCARE,2103198247,1000036369
11.01.2021,ADULT SOCIAL CARE,THE CAMDEN SOCIETY (SOCIAL CARE),968,LD LTS 18-64,DAYCARE,2103198238,1000036369
11.01.2021,ADULT SOCIAL CARE,THE CAMDEN SOCIETY (SOCIAL CARE),988,LD LTS 18-64,DAYCARE,2103198230,1000036369
11.01.2021,ADULT SOCIAL CARE,THE CAMDEN SOCIETY (SOCIAL CARE),"1,056.00",LD LTS 18-64,DAYCARE,2103198195,1000036369
11.01.2021,ADULT SOCIAL CARE,THE CAMDEN SOCIETY (SOCIAL CARE),"1,056.00",LD LTS 18-64,DAYCARE,2103198197,1000036369
11.01.2021,ADULT SOCIAL CARE,THE CAMDEN SOCIETY (SOCIAL CARE),"1,056.00",LD LTS 18-64,DAYCARE,2103198223,1000036369
11.01.2021,ADULT SOCIAL CARE,THE CAMDEN SOCIETY (SOCIAL CARE),"1,056.00",LD LTS 18-64,DAYCARE,2103198241,1000036369
11.01.2021,ADULT SOCIAL CARE,THE CAMDEN SOCIETY (SOCIAL CARE),"1,200.00",LD LTS 18-64,DAYCARE,2103198213,1000036369
11.01.2021,ADULT SOCIAL CARE,THE CAMDEN SOCIETY (SOCIAL CARE),"1,200.00",LD LTS 18-64,DAYCARE,2103198227,1000036369
11.01.2021,ADULT SOCIAL CARE,THE CAMDEN SOCIETY (SOCIAL CARE),"1,408.00",LD LTS 18-64,DAYCARE,2103198221,1000036369
11.01.2021,ADULT SOCIAL CARE,THE CAMDEN SOCIETY (SOCIAL CARE),"1,408.00",LD LTS 18-64,DAYCARE,2103198239,1000036369
11.01.2021,ADULT SOCIAL CARE,THE CAMDEN SOCIETY (SOCIAL CARE),"1,451.52",LD LTS 18-64,DAYCARE,2103198202,1000036369
11.01.2021,ADULT SOCIAL CARE,THE CAMDEN SOCIETY (SOCIAL CARE),"1,500.00",LD LTS 18-64,DAYCARE,2103198215,1000036369
11.01.2021,ADULT SOCIAL CARE,THE CAMDEN SOCIETY (SOCIAL CARE),"1,536.00",LD LTS 18-64,DAYCARE,2103198204,1000036369
11.01.2021,ADULT SOCIAL CARE,THE CAMDEN SOCIETY (SOCIAL CARE),"1,760.00",LD LTS 18-64,DAYCARE,2103198199,1000036369
11.01.2021,ADULT SOCIAL CARE,THE CAMDEN SOCIETY (SOCIAL CARE),"1,760.00",LD LTS 18-64,DAYCARE,2103198246,1000036369
11.01.2021,ADULT SOCIAL CARE,THE CAMDEN SOCIETY (SOCIAL CARE),"1,824.40",LD LTS 18-64,DAYCARE,2103198243,1000036369
11.01.2021,ADULT SOCIAL CARE,THE CAMDEN SOCIETY (SOCIAL CARE),"1,848.00",LD LTS 18-64,DAYCARE,2103198196,1000036369
11.01.2021,ADULT SOCIAL CARE,THE CAMDEN SOCIETY (SOCIAL CARE),"1,848.00",LD LTS 18-64,DAYCARE,2103198222,1000036369
11.01.2021,ADULT SOCIAL CARE,THE CAMDEN SOCIETY (SOCIAL CARE),"2,000.00",LD LTS 18-64,DAYCARE,2103198209,1000036369
11.01.2021,ADULT SOCIAL CARE,THE CAMDEN SOCIETY (SOCIAL CARE),"2,020.00",LD LTS 18-64,DAYCARE,2103198242,1000036369
11.01.2021,ADULT SOCIAL CARE,THE CAMDEN SOCIETY (SOCIAL CARE),"2,154.48",LD LTS 18-64,DAYCARE,2103198245,1000036369
11.01.2021,ADULT SOCIAL CARE,THE CAMDEN SOCIETY (SOCIAL CARE),"2,160.00",LD LTS 18-64,DAYCARE,2103198216,1000036369
11.01.2021,ADULT SOCIAL CARE,THE CAMDEN SOCIETY (SOCIAL CARE),"2,374.00",LD LTS 18-64,DAYCARE,2103198208,1000036369
11.01.2021,ADULT SOCIAL CARE,THE CAMDEN SOCIETY (SOCIAL CARE),"2,448.00",LD LTS 18-64,DAYCARE,2103198212,1000036369
11.01.2021,ADULT SOCIAL CARE,THE CAMDEN SOCIETY (SOCIAL CARE),"3,160.00",LD LTS 18-64,DAYCARE,2103198201,1000036369
11.01.2021,ADULT SOCIAL CARE,THE CAMDEN SOCIETY (SOCIAL CARE),"3,534.00",LD LTS 18-64,DAYCARE,2103198206,1000036369
11.01.2021,ADULT SOCIAL CARE,SHARE COMMUNITY LTD,780,LD LTS 18-64,DAYCARE,2103198184,1000062408
11.01.2021,ADULT SOCIAL CARE,SHARE COMMUNITY LTD,780,LD LTS 18-64,DAYCARE,2103198186,1000062408
11.01.2021,ADULT SOCIAL CARE,ELEANOR NURSING AND SOCIAL CARE LTD,735.25,LD LTS 18-64,HOMECARE - SPOT,2103198130,1000081695
11.01.2021,ADULT SOCIAL CARE,ELEANOR NURSING AND SOCIAL CARE LTD,"23,235.05",LD LTS 18-64,HOMECARE - SPOT,2103198136,1000081695
11.01.2021,ADULT SOCIAL CARE,REMARK LIVING,288,LD LTS 18-64,SUPPORTED LIVING,2103198185,1000081741
11.01.2021,ADULT SOCIAL CARE,REMARK LIVING,920,LD LTS 18-64,SUPPORTED LIVING,2103198187,1000081741
11.01.2021,ADULT SOCIAL CARE,REDACTED PERSONAL DATA,"1,267.50",LD LTS 18-64,SUPPORTED LIVING,REDACTED,REDACTED
11.01.2021,ADULT SOCIAL CARE,REDACTED PERSONAL DATA,"3,003.00",LD LTS 18-64,SUPPORTED LIVING,REDACTED,REDACTED
11.01.2021,ADULT SOCIAL CARE,REDACTED PERSONAL DATA,"3,042.00",LD LTS 18-64,SUPPORTED LIVING,REDACTED,REDACTED
11.01.2021,ADULT SOCIAL CARE,REDACTED PERSONAL DATA,"3,978.00",LD LTS 18-64,SUPPORTED LIVING,REDACTED,REDACTED
11.01.2021,ADULT SOCIAL CARE,NATIONAL YOUTH ADVOCACY SERVICE,375,ORIENT ST � RESPITE,ADVOCACY,5902450279,1000083351
11.01.2021,ADULT SOCIAL CARE,THE CAMDEN SOCIETY (SOCIAL CARE),705.6,PHY LTS 18-64,DAYCARE,2103198224,1000036369
11.01.2021,ADULT SOCIAL CARE,SAGECARE LTD,571.23,PHY LTS 18-64,HOMECARE - C&V,2103198264,1000080924
11.01.2021,ADULT SOCIAL CARE,SAGECARE LTD,679.6,PHY LTS 18-64,HOMECARE - C&V,2103198276,1000080924
11.01.2021,ADULT SOCIAL CARE,SAGECARE LTD,"1,244.19",PHY LTS 18-64,HOMECARE - C&V,2103198268,1000080924
11.01.2021,ADULT SOCIAL CARE,ELEANOR NURSING AND SOCIAL CARE LTD,795.8,PHY LTS 18-64,HOMECARE - C&V,2103198129,1000081695
11.01.2021,ADULT SOCIAL CARE,ELEANOR NURSING AND SOCIAL CARE LTD,865,PHY LTS 18-64,HOMECARE - SPOT,2103198137,1000081695
11.01.2021,ADULT SOCIAL CARE,ELEANOR NURSING AND SOCIAL CARE LTD,"1,297.52",PHY LTS 18-64,HOMECARE - SPOT,2103198131,1000081695
11.01.2021,ADULT SOCIAL CARE,ELEANOR NURSING AND SOCIAL CARE LTD,"3,563.80",PHY LTS 18-64,HOMECARE - SPOT,2103198128,1000081695
11.01.2021,ADULT SOCIAL CARE,REMARK LIVING,920,PHY LTS 18-64,SUPPORTED LIVING,2103198182,1000081741
11.01.2021,ADULT SOCIAL CARE,ELEANOR NURSING AND SOCIAL CARE LTD,847.7,PHY LTS 65+,HOMECARE - SPOT,2103198134,1000081695
11.01.2021,ADULT SOCIAL CARE,ELEANOR NURSING AND SOCIAL CARE LTD,"1,193.70",PHY LTS 65+,HOMECARE - SPOT,2103198138,1000081695
11.01.2021,ADULT SOCIAL CARE,ELEANOR NURSING AND SOCIAL CARE LTD,"1,522.40",PHY LTS 65+,HOMECARE - SPOT,2103198135,1000081695
11.01.2021,ADULT SOCIAL CARE,SAGECARE LTD,283.2,PHY STS 18-64,HOMECARE - IC,2103198270,1000080924
11.01.2021,ADULT SOCIAL CARE,SAGECARE LTD,301.54,PHY STS 18-64,HOMECARE - IC,2103198263,1000080924
11.01.2021,ADULT SOCIAL CARE,SAGECARE LTD,872.77,PHY STS 18-64,HOMECARE - IC,2103198274,1000080924
11.01.2021,ADULT SOCIAL CARE,SAGECARE LTD,"1,342.50",PHY STS 18-64,HOMECARE - IC,2103198275,1000080924
11.01.2021,ADULT SOCIAL CARE,SAGECARE LTD,358,PHY STS 65+,HOMECARE - IC,2103198265,1000080924
11.01.2021,ADULT SOCIAL CARE,ELEANOR NURSING AND SOCIAL CARE LTD,916.9,SEN LTS 65+,HOMECARE - SPOT,2103198127,1000081695
11.01.2021,ADULT SOCIAL CARE,MEDACS HOMECARE,259.5,SPECIALIST CARE,SECTION 17 PAYMENTS TO AGENCIES/CARERS,2103198139,11287415
11.01.2021,ADULT SOCIAL CARE,MEDACS HOMECARE,276.8,SPECIALIST CARE,SECTION 17 PAYMENTS TO AGENCIES/CARERS,2103198140,11287415
11.01.2021,ADULT SOCIAL CARE,MEDACS HOMECARE,294.1,SPECIALIST CARE,SECTION 17 PAYMENTS TO AGENCIES/CARERS,2103198143,11287415
11.01.2021,ADULT SOCIAL CARE,MEDACS HOMECARE,"1,211.00",SPECIALIST CARE,SECTION 17 PAYMENTS TO AGENCIES/CARERS,2103198142,11287415
11.01.2021,ADULT SOCIAL CARE,INTERSERVE HEALTHCARE,342.72,SPECIALIST CARE,SECTION 17 PAYMENTS TO AGENCIES/CARERS,2103198155,1000049612
11.01.2021,ADULT SOCIAL CARE,FOCUSED HEALTHCARE LTD,366.24,SPECIALIST CARE,SECTION 17 PAYMENTS TO AGENCIES/CARERS,2103198157,1000069262
11.01.2021,ADULT SOCIAL CARE,FOCUSED HEALTHCARE LTD,503.58,SPECIALIST CARE,SECTION 17 PAYMENTS TO AGENCIES/CARERS,2103198158,1000069262
11.01.2021,ADULT SOCIAL CARE,FOCUSED HEALTHCARE LTD,"1,098.72",SPECIALIST CARE,SECTION 17 PAYMENTS TO AGENCIES/CARERS,2103198159,1000069262
11.01.2021,ADULT SOCIAL CARE,FOCUSED HEALTHCARE LTD,"3,862.52",SPECIALIST CARE,SECTION 17 PAYMENTS TO AGENCIES/CARERS,2103198161,1000069262
11.01.2021,ADULT SOCIAL CARE,FOCUSED HEALTHCARE LTD,"6,304.92",SPECIALIST CARE,SECTION 17 PAYMENTS TO AGENCIES/CARERS,2103198160,1000069262
11.01.2021,ASSET MANAGEMENT,STANNAH LIFT SERVICES LTD,"5,451.00",ADAPTATIONS,BUILDING R&M,5902450411,1063595
11.01.2021,ASSET MANAGEMENT,STANNAH LIFT SERVICES LTD,"5,703.00",ADAPTATIONS,BUILDING R&M,5902450417,1063595
11.01.2021,ASSET MANAGEMENT,PINNACLE BUILDING SERVICES,595,ADAPTATIONS,BUILDING R&M,5902450475,1000082308
11.01.2021,ASSET MANAGEMENT,CAPITAL SERVICES LONDON LTD,"7,666.67",COMMERCIAL (QS),PROFESSIONAL FEES,5902450200,1000082548
11.01.2021,ASSET MANAGEMENT,LPS CONSULTING (LONDON) LIMITED,"12,000.00",COMMERCIAL (QS),PROFESSIONAL FEES,5902450418,1000084208
11.01.2021,ASSET MANAGEMENT,CHESHIRE ESTATE AND LEGAL LTD,"1,499.42",DISREPAIR,LEGAL FEES & COURT COSTS,5902450490,1000081908
11.01.2021,ASSET MANAGEMENT,TECCURA SOFTWARE LTD,290.05,REPAIRS OPERATIONS,BUILDING R&M,5902450477,1000078938
11.01.2021,ASSET MANAGEMENT,CHRIS DAVIS CONSULTANCY LTD,"2,080.02",REPAIRS OPERATIONS,PROFESSIONAL FEES,5902450344,1000084202
11.01.2021,CENTRAL FUNCTIONS,NORTHGATE PUBLIC SERVICES (UK) LTD,"31,250.00",BUSINESS APPLICATIONS,SOFTWARE,5902450399,1000037405
11.01.2021,CENTRAL FUNCTIONS,KENT COUNTY COUNCIL - LASER,"14,452.03",HEATING ACCOUNT,ELECTRICITY,5902450387,1000012926
11.01.2021,CENTRAL FUNCTIONS,KENT COUNTY COUNCIL - LASER,"60,893.83",HEATING ACCOUNT,ELECTRICITY,5902450387,1000012926
11.01.2021,CENTRAL FUNCTIONS,KENT COUNTY COUNCIL - LASER,"57,055.81",HEATING ACCOUNT,GAS,5902450389,1000012926
11.01.2021,CENTRAL FUNCTIONS,KENT COUNTY COUNCIL - LASER,"472,148.47",HEATING ACCOUNT,GAS,5902450389,1000012926
11.01.2021,CENTRAL FUNCTIONS,SAFER LONDON BUSINESS,810,LEDBURY ESTATE,SECURITY SERVICES,5902450179,1000076641
11.01.2021,CHIEF EXECUTIVE,COMMUNITY OPPORTUNITY,"16,655.00",CAPITAL PS (REGEN),CONSTRUCTION FEES,5902450308,1000082846
11.01.2021,CHIEF EXECUTIVE'S OFFICE,RENAISI LTD,"39,115.44",CHIEF EXECUTIVE'S OFFICE,EXTERNAL AGENCIES AND BODIES,5902450407,1000022051
11.01.2021,CHIEF EXECUTIVE'S OFFICE,J C CONSULTANT SERVICES LTD,"24,000.00",CHIEF EXECUTIVE'S OFFICE,EXTERNAL AGENCIES AND BODIES,5902450301,1000042476
11.01.2021,CHIEF EXECUTIVE'S OFFICE,J C CONSULTANT SERVICES LTD,"25,500.00",CHIEF EXECUTIVE'S OFFICE,EXTERNAL AGENCIES AND BODIES,5902450304,1000042476
11.01.2021,CHILDREN AND ADULT,SHARPE PRITCHARD LLP,904,CAPITAL PS (EDUCATION),CONSTRUCTION FEES - LEGAL,5902450334,1790085
11.01.2021,CHILDREN AND FAMILIES,KENT COUNTY COUNCIL - LASER,"4,917.83",CENTRAL SUPPORT,ELECTRICITY,5902450287,1000012926
11.01.2021,CHILDREN AND FAMILIES,KATTZ LTD,"27,964.29",CHILDREN�S RESID,RESIDENTIAL CARE,2103198189,1000080147
11.01.2021,CHILDREN AND FAMILIES,KATTZ LTD,"28,896.43",CHILDREN�S RESID,RESIDENTIAL CARE,2103198191,1000080147
11.01.2021,CHILDREN AND FAMILIES,CONTACT PROFESSIONALS,645,CONTACT SERVICE,OTHER PAYMENTS FOR CLIENTS,2103198148,1000057263
11.01.2021,CHILDREN AND FAMILIES,CONTACT PROFESSIONALS,720,CONTACT SERVICE,OTHER PAYMENTS FOR CLIENTS,2103198144,1000057263
11.01.2021,CHILDREN AND FAMILIES,CONTACT PROFESSIONALS,885,CONTACT SERVICE,OTHER PAYMENTS FOR CLIENTS,2103198145,1000057263
11.01.2021,CHILDREN AND FAMILIES,REDACTED PERSONAL DATA,500,FE SUPPORT,OTHER PAYMENTS FOR CLIENTS,REDACTED,REDACTED
11.01.2021,CHILDREN AND FAMILIES,REDACTED PERSONAL DATA,410,FOSTERING ALLOWANCES,OTHER PAYMENTS FOR CLIENTS,REDACTED,REDACTED
11.01.2021,CHILDREN AND FAMILIES,TACT,414,FRIENDS & FAMILY FOSTERING,EXTERNAL AGENCIES AND BODIES,2103198174,1000012941
11.01.2021,CHILDREN AND FAMILIES,TACT,"2,754.00",FRIENDS & FAMILY FOSTERING,EXTERNAL AGENCIES AND BODIES,2103198164,1000012941
11.01.2021,CHILDREN AND FAMILIES,TACT,"3,906.00",FRIENDS & FAMILY FOSTERING,EXTERNAL AGENCIES AND BODIES,2103198166,1000012941
11.01.2021,CHILDREN AND FAMILIES,FOLLOWING WHISPERS FAMILY SERVICE LTD,"1,200.00",FRIENDS & FAMILY FOSTERING,EXTERNAL AGENCIES AND BODIES,2103198170,1000065611
11.01.2021,CHILDREN AND FAMILIES,FOSTERING SUPPORT GROUP LTD,"9,163.29",FRIENDS & FAMILY FOSTERING,EXTERNAL AGENCIES AND BODIES,2103198179,1000065830
11.01.2021,CHILDREN AND FAMILIES,FLOURISH FOSTERING LTD,"4,364.71",FRIENDS & FAMILY FOSTERING,EXTERNAL AGENCIES AND BODIES,2103198176,1000084796
11.01.2021,CHILDREN AND FAMILIES,FLOURISH FOSTERING LTD,"4,570.02",FRIENDS & FAMILY FOSTERING,EXTERNAL AGENCIES AND BODIES,2103198177,1000084796
11.01.2021,CHILDREN AND FAMILIES,FLOURISH FOSTERING LTD,"4,674.27",FRIENDS & FAMILY FOSTERING,EXTERNAL AGENCIES AND BODIES,2103198171,1000084796
11.01.2021,CHILDREN AND FAMILIES,FLOURISH FOSTERING LTD,"4,805.49",FRIENDS & FAMILY FOSTERING,EXTERNAL AGENCIES AND BODIES,2103198165,1000084796
11.01.2021,CHILDREN AND FAMILIES,FLOURISH FOSTERING LTD,"4,805.49",FRIENDS & FAMILY FOSTERING,EXTERNAL AGENCIES AND BODIES,2103198168,1000084796
11.01.2021,CHILDREN AND FAMILIES,CITYGLEN LTD,"1,395.00",SEMI-IND CARELEAVERS,EXTERNAL AGENCIES AND BODIES,5902449872,1000026239
11.01.2021,CHILDREN AND FAMILIES,YOUNG FUTURES,300,SEMI-IND LAC 16-17,EXTERNAL AGENCIES AND BODIES,2103198262,1000059563
11.01.2021,CHILDREN AND FAMILIES,FUTURE FOUNDATIONS LTD,300,SEMI-IND LAC 16-17,EXTERNAL AGENCIES AND BODIES,2103198252,1000063272
11.01.2021,CHILDREN AND FAMILIES,FUTURE FOUNDATIONS LTD,300,SEMI-IND LAC 16-17,EXTERNAL AGENCIES AND BODIES,2103198259,1000063272
11.01.2021,CHILDREN AND FAMILIES,FUTURE FOUNDATIONS LTD,"2,802.85",SEMI-IND LAC 16-17,EXTERNAL AGENCIES AND BODIES,2103198256,1000063272
11.01.2021,CHILDREN AND FAMILIES,FUTURE FOUNDATIONS LTD,300,SEMI-IND LAC 16-17,OTHER PAYMENTS FOR CLIENTS,2103198253,1000063272
11.01.2021,COMMUNITIES,CHANGE GROW LIVE SERVICES LTD,"285,061.00",ADULT SM SERVICE,OTHER CONTRACTORS,5902450430,1000082721
11.01.2021,COMMUNITIES,JANUS RESONANCE FACTOR LTD,"18,143.75",ANCILLARY AND RECOVERY SERVICES,OTHER CONTRACTORS,5902450404,1000079872
11.01.2021,COMMUNITIES,BROWNING EST MGMT ASSN,"159,898.00",BROWNING EMB,M&M ALLOWANCE CO-OPS,5902450392,1000059362
11.01.2021,COMMUNITIES,COMMUNITY SOUTHWARK,"95,932.50",CVS & VOLUNTEERING,GRANTS,5902450413,1000018147
11.01.2021,COMMUNITIES,DELAWYK RESIDENTS MGT ORG LTD,867.44,DELAWYK RMO RENT INCOME,M&M ALLOWANCE CO-OPS,5902450386,1000052920
11.01.2021,COMMUNITIES,DEYNSFORD TENANT MANAGEMENT ORGANISATION,"90,677.50",D'EYNSFORD ESTATE,M&M ALLOWANCE CO-OPS,5902450481,1000075613
11.01.2021,COMMUNITIES,COMMUNITY SOUTHWARK,"30,000.00",HEALTHWATCH,GRANTS,5902450415,1000018147
11.01.2021,COMMUNITIES,CARE UNLIMITED GROUP LTD,"5,870.40",NO RECOURSE TO PUBLIC FUNDS,RESIDENTIAL CARE,5902450454,11172617
11.01.2021,COMMUNITIES,CARE UNLIMITED GROUP LTD,"6,066.39",NO RECOURSE TO PUBLIC FUNDS,RESIDENTIAL CARE,5902450453,11172617
11.01.2021,COMMUNITIES,A & M PROPERTY AND CONSTRUCTION LTD,"1,658.50",NO RECOURSE TO PUBLIC FUNDS,ACCOMMODATION CHARGES,5902450468,1000014564
11.01.2021,COMMUNITIES,GROVE HOTEL LTD,"1,385.00",NO RECOURSE TO PUBLIC FUNDS,ACCOMMODATION CHARGES,5902450465,1000043663
11.01.2021,COMMUNITIES,HOMELY HOUSING LETS LTD,"22,075.74",NO RECOURSE TO PUBLIC FUNDS,ACCOMMODATION CHARGES,5902450456,1000050013
11.01.2021,COMMUNITIES,RS REAL ESTATE LTD,"4,340.00",NO RECOURSE TO PUBLIC FUNDS,ACCOMMODATION CHARGES,5902450457,1000072485
11.01.2021,COMMUNITIES,SOUTH OF THE RIVER INVESTMENTS LTD,"6,357.40",NO RECOURSE TO PUBLIC FUNDS,ACCOMMODATION CHARGES,5902450461,1000073638
11.01.2021,COMMUNITIES,STENFORD PROPERTY LTD,"12,070.00",NO RECOURSE TO PUBLIC FUNDS,ACCOMMODATION CHARGES,5902450471,1000074759
11.01.2021,COMMUNITIES,CROWN HOUSING LTD,"1,927.50",NO RECOURSE TO PUBLIC FUNDS,ACCOMMODATION CHARGES,5902450467,1000075070
11.01.2021,COMMUNITIES,FINEFAIR LTD,"1,240.00",NO RECOURSE TO PUBLIC FUNDS,ACCOMMODATION CHARGES,5902450463,1000075570
